Workbook

Sheet Index
B1: Massachusetts Department of Elementary and Secondary Education
B2: FY18 Charter School End of Year Financial Report Summary
B3: Last Updated: May 2019
B5: Data Context
B6: This data was collected via the FY2018 Charter School End of Year Financial Report (18CSEOYFR) as well as SIMS and EPIMS databases.
B8: Technical Tips
B9: Please be sure to enable macros before using this file. You will receive a Security Warning message at the top of this page that reads "Macros have been disabled". Please click "Enable Content".
B11: Instructions for Viewing Data
B12: Use the drop-down menu to select a charter school that was operating in FY18 or a statewide charter summary total then navigate to any of the first three tabs linked below. There is additional statewide summary data provided in tabs 4 and 5.
C15: =VLOOKUP(E15, CSORDER, 2, FALSE) ->  | D15: =VLOOKUP(E15, CSORDER, 3, FALSE) ->  | E15: 1
B18: 1. Statement of Net Position
B19: 2. Statement of Revenues, Expenses and Change in Net Position
B20: 3. Schedule of Functional Expenses
B22: In addition, statewide summary data is available for the following:
B23: 4. Expenditures Per Pupil
B24: 5. Average Teacher Salaries
B26: For researchers, the following raw data sets are available:
B27: BAL18_raw (Balance Sheet Data)
B28: INC18_raw (Income Statement Data)
B29: FE18_raw (Schedule of Functional Expenses Data)
B30: FTE_raw (Student FTE Enrollment Data)
B31: EPIMS18_raw (Teacher FTE Enrollment Data)

Sheet 1. Statement of Net Position
A1: NAME: | B1: =SCHOOLNAME ->  | F1: LEA | G1: =LEA -> 
A3: Statement of Net Position
A4: For the Year Ended June 30, 2018
F6: =B1 ->  | G6: Charter School Foundation (Component Unit) | H6: 2018 Total (Memorandum Only) | J6: Line | K6: Rec. Acct#
C7: ASSETS
C8: Current Assets
A9: 01 | C9: Cash and Cash Equivalents | D9: Assets that are cash or can be converted into cash immediately. | F9: =VLOOKUP($G$1&$A9, BAL, 6,FALSE) ->  | G9: =VLOOKUP($G$1&$A9, BAL, 7,FALSE) ->  | H9: =VLOOKUP($G$1&$A9, BAL, 8,FALSE) ->  | J9: =A9 -> 01 | K9: 10XX
A10: 02 | C10: Accounts Receivable net of doubtful accounts | D10: A school's claim for money, goods and services from customers and other entities. | J10: 02 | K10: 11XX
A11: 03 | C11: Grants Receivable - State | D11: Claims for goods and services provided under state awarded contracts. | J11: 03 | K11: 11XX
A12: 04 | C12: Grants Receivable - Federal | D12: Claims for goods and services provided under federal awarded contracts. | J12: 04 | K12: 11XX
A13: 05 | C13: Grants Receivable - Private | D13: Claims for goods and services provided from private awards received. | J13: 05 | K13: 11XX
A14: 06 | C14: Contributions Receivable | D14: Unconditional promises to give by private individuals or corporations. | J14: 06 | K14: 11XX
A15: 07 | C15: Due from related parties | D15: Amounts to be received from related parties. | J15: 07 | K15: 12XX
A16: 08 | C16: Prepaid Expenses / Inventory | D16: An expense paid but not incurred as of year end. Also include short-term inventories of supplies such as uniforms. | J16: 08 | K16: 13XX
A17: 09 | C17: Short-Term Investments | D17: Readily marketable security for which the intention of the school is the conversion to cash in the short term. | J17: 09 | K17: 14XX
A18: 10 | C18: Deposit (Security, Other) | D18: Security deposits for leases, or other deposits. | J18: 10 | K18: 15XX
A19: 11 | C19: Restricted Current Assets | D19: Current assets restricted by external sources for future purchases. | J19: 11 | K19: 15XX
A20: 12 | C20: TOTAL CURRENT ASSETS | D20: Calculates automatically. | J20: 12 | K20: NA
C21: Noncurrent Assets
C22: Capital Assets
A23: 13 | C23: - Land and Buildings | D23: Value of land and building inclusive of remodeling, reconditioning, or altering the building purchased to make it available for the purpose for which it was acquired, including construction in progress. | F23: =VLOOKUP($G$1&$A23, BAL, 6,FALSE) ->  | G23: =VLOOKUP($G$1&$A23, BAL, 7,FALSE) ->  | H23: =VLOOKUP($G$1&$A23, BAL, 8,FALSE) ->  | J23: =A23 -> 13 | K23: 15XX
A24: 14 | C24: - Building/Leasehold Improvement | D24: Value of improvements on leased property that revert back to the owners upon termination of the lease. | J24: 14 | K24: 15XX
A25: 15 | C25: - Furniture and Equipment | D25: Value of furniture and equipment that meet the school's capitalization policy. | J25: 15 | K25: 15XX
A26: 16 | C26: - Less Accumulated Depreciation | D26: The aggregate, at a given point in time, of the depreciation charges made during the useful life of the fixed asset. Enter as a negative number. | J26: 16 | K26: 16XX
A27: 17 | C27: Net Capital Assets | D27: Calculates automatically. | J27: 17 | K27: NA
A28: 18 | C28: Restricted Noncurrent Assets | D28: Noncurrent assets restricted by external sources for future purchases. | J28: 18 | K28: 10XX
A29: 19 | C29: Long-Term Investments | D29: Investments that do not meet the criteria of "Short-Term Investments" above. | J29: 19 | K29: 14XX
A30: 20 | C30: Building Acquisition / Financing Costs / Deferred Expenses | D30: Costs related to building acquisition, construction, and/or financing costs which are amortized. Also include long-term pre-paid leases or expenses which are amortized. | J30: 20 | K30: 14XX
A31: 21 | C31: Long-Term Grants / Contributions Receivable | D31: Please enter a brief description in the highlighted green cell, if applicable. | J31: 21 | K31: 14XX
A32: 22 | C32: TOTAL NONCURRENT ASSETS | D32: Calculates automatically. | J32: 22 | K32: NA
A33: 23 | C33: TOTAL ASSETS | D33: Calculates automatically. | J33: 23 | K33: NA
C35: LIABILITIES AND NET ASSETS
C36: Current Liabilities
A37: 24 | C37: Accounts Payable | D37: Obligations for goods or services purchased for which invoices have been received. | F37: =VLOOKUP($G$1&$A37, BAL, 6,FALSE) ->  | G37: =VLOOKUP($G$1&$A37, BAL, 7,FALSE) ->  | H37: =VLOOKUP($G$1&$A37, BAL, 8,FALSE) ->  | J37: =A37 -> 24 | K37: 20XX
A38: 25 | C38: Accrued Expenses / Accrued Payroll | D38: An unpaid expense incurred that has not been paid as of the end of the period, including accrued payroll. | J38: 25 | K38: 21XX
A39: 26 | C39: Deferred Revenue | D39: Cash received for services not performed (i.e., grant funds received that were not expended). | J39: 26 | K39: 22XX
A40: 27 | C40: Due to related parties | D40: Amounts due to related parties such as the school's component unit. | J40: 27 | K40: 23XX
A41: 28 | C41: Current Debt Payable | D41: Debt obligations due within one year of financial statement date. | J41: 28 | K41: 24XX
A42: 29 | C42: Current Lease Obligations Payable | D42: Lease obligations due within one year of financial statement date. | J42: 29 | K42: 24XX
A43: 30 | C43: TOTAL CURRENT LIABILITIES | D43: Calculates automatically. | J43: 30 | K43: NA
C44: Noncurrent Liabilities
A45: 31 | C45: Noncurrent Lease Obligations | D45: Lease obligations due after one year of financial statement date. | F45: =VLOOKUP($G$1&$A45, BAL, 6,FALSE) ->  | G45: =VLOOKUP($G$1&$A45, BAL, 7,FALSE) ->  | H45: =VLOOKUP($G$1&$A45, BAL, 8,FALSE) ->  | J45: =A45 -> 31 | K45: 26XX
A46: 32 | C46: Long-Term Debt | D46: Debt obligations due after one year of financial statement date. | F46: =VLOOKUP($G$1&$A46, BAL, 6,FALSE) ->  | G46: =VLOOKUP($G$1&$A46, BAL, 7,FALSE) ->  | H46: =VLOOKUP($G$1&$A46, BAL, 8,FALSE) ->  | J46: =A46 -> 32 | K46: 26XX
A47: 33 | C47: Deferred Revenue | D47: Cash received for services not performed (i.e., grant funds received that were not expended). | F47: =VLOOKUP($G$1&$A47, BAL, 6,FALSE) ->  | G47: =VLOOKUP($G$1&$A47, BAL, 7,FALSE) ->  | H47: =VLOOKUP($G$1&$A47, BAL, 8,FALSE) ->  | J47: =A47 -> 33 | K47: 2XXX
A48: 34 | C48: TOTAL NONCURRENT LIABILITIES | D48: Calculates automatically. | F48: =VLOOKUP($G$1&$A48, BAL, 6,FALSE) ->  | G48: =VLOOKUP($G$1&$A48, BAL, 7,FALSE) ->  | H48: =VLOOKUP($G$1&$A48, BAL, 8,FALSE) ->  | J48: =A48 -> 34 | K48: NA
A49: 35 | C49: TOTAL LIABILITIES | D49: Calculates automatically. | F49: =VLOOKUP($G$1&$A49, BAL, 6,FALSE) ->  | G49: =VLOOKUP($G$1&$A49, BAL, 7,FALSE) ->  | H49: =VLOOKUP($G$1&$A49, BAL, 8,FALSE) ->  | J49: =A49 -> 35 | K49: NA
C51: NET ASSETS
A52: 36 | C52: Investment in capital assets (net of related debt) | D52: Represents capital assets reduced by accumulated depreciation and any outstanding debt used to acquire, construct or improve those assets. | F52: =VLOOKUP($G$1&$A52, BAL, 6,FALSE) ->  | G52: =VLOOKUP($G$1&$A52, BAL, 7,FALSE) ->  | H52: =VLOOKUP($G$1&$A52, BAL, 8,FALSE) ->  | J52: =A52 -> 36 | K52: 3XXX
A53: 37 | C53: Temporarily Restricted | D53: Net assets that are temporarily restricted by a funder or the school's Board for a specific purpose. | J53: 37 | K53: 32XX
A54: 38 | C54: Permanently Restricted | D54: Net assets that are restricted by an outside agency or person, as contrasted with assets over which the entity has control and discretion. E.g., a donor scholarship fund. | J54: 38 | K54: 33XX
A55: 39 | C55: Unrestricted (non-capital) | D55: Net assets that do not meet the definitions of any of the above categories. | J55: 39 | K55: 30XX
A56: 40 | C56: TOTAL NET ASSETS | D56: Calculates automatically. | J56: 40 | K56: NA
A57: 41 | C57: TOTAL LIABILITIES AND NET ASSETS | D57: Calculates automatically. MUST RECONCILE WITH LINE 23 (TOTAL ASSETS) | J57: 41 | K57: NA

Sheet 2. Stmt Rev, Exp and Change
B1: NAME: | C1: =SCHOOLNAME ->  | F1: LEA | G1: =LEA ->  | M1: =3 -> 3
A3: Statement of Revenues, Expenses and Change in Net Position
A4: =YEAREND -> For the Year Ended June 30, 2018
D6: Restricted – The use of these funds are restricted to a particular purpose or project. Unrestricted – These use of these funds are unrestricted and came be used toward any purpose. | F6: =C1 ->  | G6: Charter School Foundation (Component Unit) | H6: 2018 Total (Memorandum Only) | J6: Line | K6: Rec. Acct#
C7: REVENUES
A8: 01 | C8: Tuition | D8: Total tuition paid to the charter school by either the Commonwealth or sending school district (Horace Mann), inclusive of local transportation and facilities reimbursement embedded in Commonwealth tuition payments. This should include any reimbursements received for local transportation reimbursement, if applicable. | F8: =VLOOKUP($G$1&$A8, INC, 6,FALSE) ->  | H8: =VLOOKUP($G$1&$A8, INC, 8,FALSE) ->  | J8: =A8 -> 01 | K8: 4000
A9: 02a | B9: ^ | C9: Grants - State - passed through ESE | D9: Grants awarded through the ESE. | G9: =VLOOKUP($G$1&$A9, INC, 7,FALSE) ->  | J9: 02a | K9: 41XX
A10: 02b | B10: ^ | C10: Grants - State - other non-ESE pass-through | D10: Grants awarded directly by the Commonwealth of MA. | J10: 02b | K10: 41XX
A11: 03 | B11: ^ | C11: Grants - Federal - Passed through ESE | D11: Grants from federal sources that pass through ESE such as Title I, IDEA, Charter School Start-Up Assistance, etc. | J11: 03 | K11: 41XX
A12: 04 | B12: ^ | C12: Grants - Federal - Direct or other pass-through | D12: Grants from federal sources awarded directly from federal agencies or passed-through other agencies. | J12: 04 | K12: 41XX
A13: 05a | B13: ^ | C13: Grants - Private (restricted) | D13: Grants awarded by private (non-governmental) foundations, corporations, or individuals that are restricted. | J13: 05a | K13: 41XX
A14: 05b | C14: Grants - Private (unrestricted) | D14: Grants awarded by private (non-governmental) foundations, corporations, or individuals that are unrestricted. | J14: 05b | K14: 41XX
A15: 06 | B15: ^ | C15: Nutrition Funding - State | D15: Funding for nutrition programs is split between the federal and state governments. | J15: 06 | K15: 42XX
A16: 07 | B16: ^ | C16: Nutrition Funding - Federal | D16: Funding for nutrition programs is split between the federal and state governments. | J16: 07 | K16: 42XX
A17: 08 | C17: Nutrition Funding - Fees | D17: Fees collected from students for nutrition programs. | J17: 08 | K17: 42XX
A18: 09 | C18: Other Program / Student Activity Fees | D18: Any fees that the school collects for transportation, uniforms, etc. | G18: =VLOOKUP($G$1&$A18, INC, 7,FALSE) ->  | J18: 09 | K18: 43XX
A19: 10 | C19: Regional Transportation Aid | D19: Reimbursements from the Commonwealth for regional transportation costs, if applicable. | J19: 10 | K19: 45XX
A20: 11 | C20: Medicaid Reimbursements | D20: Reimbursement from Medicaid | J20: 11 | K20: 45XX
A21: 12 | C21: Circuit Breaker Reimbursements | D21: Reimbursements from the Commonwealth for high-cost special education students, if applicable. | J21: 12 | K21: 45XX
A22: 13a | C22: Contributions, in-kind, host district | D22: Recorded monetary value of in-kind donations for services that would otherwise have been purchased, provided by the school's host district (e.g. transportation, food). | J22: 13a | K22: 44XX
A23: 13b | C23: Contributions, in-kind, other | D23: Recorded monetary value of in-kind donations for services that would otherwise have been purchased, provided by individuals/organizations other than the host district. | G23: =VLOOKUP($G$1&$A23, INC, 7,FALSE) ->  | J23: 13b | K23: 44XX
A24: 13c | C24: Contributions, on-behalf, pension | D24: In accordance with GASB 68, recorded retirement payments to former retired School’s employees. | J24: 13c | K24: 44XX
A25: 14 | C25: Contributions, from Component Unit (restricted) | D25: Restricted contributions made to the School by the Component Unit | J25: 14 | K25: 44XX
A26: 14b | C26: Contributions, from Component Unit (unrestricted) | D26: Unrestricted contributions made to the School by the Component Unit | J26: 14b | K26: 44XX
A27: 15 | C27: Contributions / Fundraising (restricted) | D27: Restricted donations from individuals, businesses, or corporations. | J27: 15 | K27: 44XX
A28: 15b | C28: Contributions / Fundraising (unrestricted) | D28: Unrestricted donations from individuals, businesses, or corporations. | J28: 15b | K28: 44XX
A29: 16 | C29: Interest / Investment Income (restricted) | D29: Restricted income generated from interest/investments. | J29: 16 | K29: 47XX
A30: 16a | C30: Interest / Investment Income (unrestricted) | D30: Unrestricted income generated from interest/investments. | J30: 16b | K30: 47XX
A31: 17 | C31: Rental Income | D31: Income generated from rental of space. | J31: =A31 -> 17 | K31: 46XX
A32: 18 | C32: Loan Forgiveness or Other Reimbursement | D32: Revenue recorded for loan forgiveness or other credit. | J32: =A32 -> 18 | K32: 4XXX
A33: 19 | C33: Miscellaneous Income | D33: Miscellaneous Income. | J33: =A33 -> 19 | K33: 4XXX
A34: 20 | C34: TOTAL REVENUES | D34: Calculates automatically. | J34: =A34 -> 20 | K34: NA
B35: ^ | C35: Non-"General Fund" revenue sources
C37: EXPENSES
A38: 21 | C38: Administration | D38: Charter School figures will be populated from the Sch_FuncExp sheet. | F38: =VLOOKUP($G$1&$A38, INC, 6,FALSE) ->  | H38: =VLOOKUP($G$1&$A38, INC, 8,FALSE) ->  | J38: =A38 -> 21 | K38: NA
A39: 22 | C39: Instructional Services | D39: Charter School figures will be populated from the Sch_FuncExp sheet. | J39: 22 | K39: NA
A40: 23 | C40: Pupil Services | D40: Charter School figures will be populated from the Sch_FuncExp sheet. | J40: 23 | K40: NA
A41: 24 | C41: Operation & Maintenance of Plant | D41: Charter School figures will be populated from the Sch_FuncExp sheet. | J41: 24 | K41: NA
A42: 25 | C42: Fixed Charges | D42: Charter School figures will be populated from the Sch_FuncExp sheet. | J42: 25 | K42: NA
A43: 26 | C43: Community Services | D43: Charter School figures will be populated from the Sch_FuncExp sheet. | J43: 26 | K43: NA
A44: 27 | C44: Non-Operating Financing Expenses | D44: Charter School figures will be populated from the Sch_FuncExp sheet. | J44: 27 | K44: NA
A45: 28 | C45: Component Unit Expenses | D45: Aggregate operating expenses for the Component Unit. | G45: =VLOOKUP($G$1&$A45, INC, 7,FALSE) ->  | J45: 28 | K45: NA
A46: 29 | C46: Contributions to School | D46: Contributions made by the Component Unit to the School | G46: =VLOOKUP($G$1&$A46, INC, 7,FALSE) ->  | J46: 29 | K46: NA
A47: 30 | C47: TOTAL EXPENSES | D47: Calculates automatically. | F47: =VLOOKUP($G$1&$A47, INC, 6,FALSE) ->  | G47: =VLOOKUP($G$1&$A47, INC, 7,FALSE) ->  | J47: 30 | K47: NA
A49: 31 | C49: TOTAL GAIN/(LOSS) | D49: Calculates automatically. | F49: =VLOOKUP($G$1&$A49, INC, 6,FALSE) ->  | G49: =VLOOKUP($G$1&$A49, INC, 7,FALSE) ->  | H49: =VLOOKUP($G$1&$A49, INC, 8,FALSE) ->  | J49: =A49 -> 31 | K49: NA
A50: 32 | C50: Gain/Loss on Sale of Asset or Lease Transaction | D50: Gain/Loss recorded on sale of school assets or lease transaction. | F50: =VLOOKUP($G$1&$A50, INC, 6,FALSE) ->  | G50: =VLOOKUP($G$1&$A50, INC, 7,FALSE) ->  | H50: =VLOOKUP($G$1&$A50, INC, 8,FALSE) ->  | J50: =A50 -> 32 | K50: 5XXX
A51: 33 | C51: Other Gain/Loss | D51: Other Gain or Loss that is a non-recurring, unusual occurrence such as a prior-period adjustment | F51: =VLOOKUP($G$1&$A51, INC, 6,FALSE) ->  | G51: =VLOOKUP($G$1&$A51, INC, 7,FALSE) ->  | H51: =VLOOKUP($G$1&$A51, INC, 8,FALSE) ->  | J51: =A51 -> 33 | K51: 5XXX
A52: 34 | C52: TOTAL CHANGES IN NET ASSETS: | D52: Calculates automatically. | F52: =VLOOKUP($G$1&$A52, INC, 6,FALSE) ->  | G52: =VLOOKUP($G$1&$A52, INC, 7,FALSE) ->  | H52: =VLOOKUP($G$1&$A52, INC, 8,FALSE) ->  | J52: =A52 -> 34 | K52: NA
A54: 35 | C54: NET ASSETS AT BEGINNING OF YEAR | D54: Please enter values from previous year's audit. | F54: =VLOOKUP($G$1&$A54, INC, 6,FALSE) ->  | G54: =VLOOKUP($G$1&$A54, INC, 7,FALSE) ->  | H54: =VLOOKUP($G$1&$A54, INC, 8,FALSE) ->  | J54: =A54 -> 35 | K54: NA
A55: 36 | C55: NET ASSETS AT END OF YEAR | D55: Calculates automatically. MUST RECONCILE WITH BALANCE SHEET LINE 40 (TOTAL NET ASSETS) | F55: =VLOOKUP($G$1&$A55, INC, 6,FALSE) ->  | G55: =VLOOKUP($G$1&$A55, INC, 7,FALSE) ->  | H55: =VLOOKUP($G$1&$A55, INC, 8,FALSE) ->  | J55: =A55 -> 36 | K55: NA
F56: 0 | G56: 0 | H56: 0

Sheet 3. Schedule of Func Exp
B1: NAME: | C1: =SCHOOLNAME ->  | H1: =LEA -> 
A3: Schedule of Functional Expenses
A4: =YEAREND -> For the Year Ended June 30, 2018
F5: "General" Fund
F6: 1 | G6: 2 | H6: 3 | I6: 4 | J6: 5 | K6: 6 | L6: 7
F7: General Education | G7: Special Education | H7: Undistributed | I7: State Grants & Nut. Reimb. | J7: Federal Grants & Nut. Reimb. | K7: Private Grants (Designated) | L7: TOTAL | O7: Rec. | Q7: Crosswalk to EOYR, if possible
A8: Line | C8: Functional Category | D8: For salaried personnel, please provide a full-time equivalency (FTE) total that corresponds to the salary expense reported. | F8: Expenses | G8: Expenses | H8: Expenses | I8: Expenses | J8: Expenses | K8: Expenses | L8: Expenses | N8: Line | O8: Acct# | S8: Defintions
A10: 100 | C10: Administration | D10: =C10&" - Calculates automatically." -> Administration - Calculates automatically. | H10: =VLOOKUP($H$1&$A10, FE, 8,FALSE) ->  | I10: =VLOOKUP($H$1&$A10, FE, 9,FALSE) ->  | J10: =VLOOKUP($H$1&$A10, FE, 10,FALSE) ->  | K10: =VLOOKUP($H$1&$A10, FE, 11,FALSE) ->  | L10: =VLOOKUP($H$1&$A10, FE, 12,FALSE) ->  | N10: =A10 -> 100 | O10: NA | Q10: 1000 series | S10: 1 | T10: General Education | U10: Expenditures from "operating" revenues recognized on all lines except 2 - 5a and 6 - 7 of the Income Statement for General Education programs (defined as non-special education programs). These expenditures should include English Language Learner programs, required summer school, and extended programs.
A11: 110 | C11: Subtotal - Board of Trustees | D11: Calculates automatically | H11: =VLOOKUP($H$1&$A11, FE, 8,FALSE) ->  | N11: 110 | O11: NA | Q11: 1100 | S11: 2 | T11: Special Education | U11: Expenditures from "operating" revenues recognized on all lines except 2 - 5a and 6 - 7 of the Income Statement for Special Education, defined as programs for instruction of students with special needs, provided for under MGL Ch. 71B and 603 CMR 28.00. Note that all special education expenditures by charter schools will be for "in-district" students, as the fiscal responsibility of any special needs student currently enrolled in or determined to require a private day or residential school shall remain with the school district where the student resides per MGL Chapter 71 Section 89(s).
A12: 111 | C12: Contracted Services | D12: Contracted professional services, including all related expenses covered by the contract. (Ex: board training consultant, facilitator for board retreat, board attorney) | N12: 111 | O12: 53X1 | Q12: 1100 | S12: 3 | T12: Undistributed | U12: Expenditures that cannot be assigned to either General Education and Special Education program areas from "operating" revenues recognized on all lines except 2 - 5a and 6 - 7 of the Income Statement.
A13: 112 | C13: Travel and other expenses | D13: Travel and other expenses for board members such as dues, subscriptions and memberships. (Ex: board member travels to charter school conference, dues for board-specific professional association) | N13: 112 | O13: 57X1 | Q13: 1100 | S13: 4 | T13: State Grants & Funding | U13: Expenditures from state revenue sources recognized in Line 2 and 6 of the Income Statement. Amounts here should reconcile with final expenditure reports for state grants filed with ESE.
A14: 120 | C14: Subtotal - School Leaders | D14: Calculates automatically | N14: 120 | O14: NA | Q14: 1210, 1220 | S14: 5 | T14: Federal Grants & Funding | U14: Expenditures from federal revenue sources recognized in Line 3, 4, and 7 of the Income Statement. Amounts here should reconcile with final expenditure reports for state and federal grants filed with ESE.
A15: 121 | C15: Salaries - Professional | D15: Salaries for non-instructional school-wide administrative personnel (Ex: executive director). Principals and Instructional Leaders should be noted in Instructional Services. If role is instructional and administrative, split accordingly. | N15: 121 | O15: 5XX1 | Q15: 1210, 1220 | S15: 6 | T15: Private Grants (Restricted) | U15: Expenditures from restricted private grants for operating expenses listed in the Income Statement as line 5a. Note that all other private donations/contributions should be captured in the "general fund" columns.
A16: 122 | C16: Contracted Services | D16: Contracted professional services, including all related expenses covered by the contract. (Ex: interim school leader) | N16: 122 | O16: 53X1 | Q16: 1210, 1220
A17: 130 | C17: Subtotal - Business and Finance | D17: Calculates automatically | N17: 130 | O17: NA | Q17: 1410
A18: 131 | C18: Salaries - Professional | D18: Salaries for non-instructional school-wide administrative personnel. (Ex: business manager, accountant, chief financial officer) | N18: 131 | O18: 5XX1 | Q18: 1410
A19: 132 | C19: Contracted Services | D19: Contracted professional services, including all related expenses covered by the contract. (Ex: contracted accounting/book keeping firm, auditor) | N19: 132 | O19: 53X1 | Q19: 1410
A20: 140 | C20: Subtotal - Human Resources | D20: Calculates automatically | N20: 140 | O20: NA | Q20: 1420
A21: 141 | C21: Salaries - Professional | D21: Salaries for non-instructional school-wide administrative personnel. (Ex: HR director, Staff Recruitment) | N21: 141 | O21: 5XX1 | Q21: 1420
A22: 142 | C22: Contracted Services | D22: Contracted professional services, including all related expenses covered by the contract. (Ex: contracted HR company, payroll company) | N22: 142 | O22: 53X1 | Q22: 1420
A23: 150 | C23: Subtotal - Legal Services | D23: Calculates automatically | N23: 150 | O23: NA | Q23: 1430, 1435
A24: 151 | C24: Salaries - Professional | D24: Salaries for non-instructional school-wide administrative personnel. (Ex. school attorney) | N24: 151 | O24: 5XX1 | Q24: 1430, 1435
A25: 152 | C25: Contracted Services | D25: Contracted professional services, including all related expenses covered by the contract. (Ex: contracted attorney) | N25: 152 | O25: 53X1 | Q25: 1430, 1435
A26: 160 | C26: Subtotal - Info. Management & Technology | D26: Calculates automatically | N26: 160 | O26: NA | Q26: 1450
A27: 161 | C27: Salaries - Professional | D27: Salaries for non-instructional school-wide administrative personnel. (Ex: network support technician, Enrollment Director/Registrar, SIMS administrator) | N27: 161 | O27: 5XX1 | Q27: 1450
A28: 162 | C28: Contracted Services | D28: Contracted professional services, including all related expenses covered by the contract. (Ex: contracted IT professional) | N28: 162 | O28: 53X1 | Q28: 1450
A29: 163 | C29: Supplies and Materials | D29: Materials and items of an expendable nature. Unit price of less than $5000. (Ex: non-instructional computers, non-instructional software such accounting software) | N29: 163 | O29: 54X1 | Q29: 1230
A30: 164 | C30: Depreciation for Information Technology | D30: Annual depreciation expense for capitalized Information Management and Technology. | N30: 164 | O30: 5701 | Q30: 1450
A31: 170 | C31: Subtotal - Development (Private) | D31: Calculates automatically | N31: 170 | O31: NA | Q31: 1230
A32: 170a | C32: Salaries - Professional - Private | D32: Salaries apportioned to private development personnel (this could be % of a salary). (Ex: grant writer) | N32: 170a | O32: 5XX1 | Q32: 1230
A33: 170b | C33: Contracted Services - Private | D33: Contracts apportioned to professional services for private development (including all related expenses covered by the contract). (Ex: contracted fundraiser, contracted grant writer) | N33: 170b | O33: 53X1 | Q33: 1230??
A34: 170c | C34: Fundraising - Private | D34: Expenses related to private fundraising. (Ex: invitations to fundraiser, fundraising software, space rental for fundraising event) | N34: 170c | O34: 5891
A35: 171 | C35: Subtotal - Development (Public) | D35: Calculates automatically | N35: 171 | O35: NA
A36: 171a | C36: Salaries - Professional - Public | D36: Salaries apportioned to public development personnel (this could be a % of a salary). (Ex: grant writer) | N36: 171a | O36: 5XX1
A37: 171b | C37: Contracted Services - Public | D37: Contracts apportioned to professional services for public development (including all related expenses covered by the contract). (Ex: contracted grant writer) | N37: 171b | O37: 53X1
A38: 180 | C38: Subtotal - Other Administration | D38: Calculates automatically | N38: 180 | O38: NA | Q38: 1230
A39: 181 | C39: Salaries | D39: Salaries for student recruitment personnel and administrative support personnel who prepare, transcribe, systematize or preserve communications, records and transactions. (Ex: registrar, office secretary) | N39: 181 | O39: 5XX1 | Q39: 1230
A40: 182 | C40: Contracted Services | D40: Contracts for student recruitment personnel and administrative support personnel who prepare, transcribe, systematize or preserve communications, records and transactions. (Ex: registrar, office secretary) | N40: 182
A41: 183 | C41: Recruitment/Advertising | D41: Recruiting/advertising for students, staff, and board members. (Ex: brochures for open house) | N41: =A41 -> 183 | O41: 58X1 | Q41: 1230??
A42: 184 | C42: Travel, Dues, and other expenses | D42: Travel and other expenses for non-instructional staff and the school such as dues, subscriptions and memberships. (Ex: IT director attends IT conference, business manager attends finance conference) | N42: 184 | O42: 57X1 | Q42: 1230
A43: 185 | C43: Supplies and Materials | D43: Materials and items of an expendable nature. Unit price of less than $5000. (Ex: office furniture, office supplies) | L43: =SUM(F43,G43,H43,I43,J43,K43) ->  | N43: 185 | O43: 54X1 | Q43: 1230
A45: 200 | C45: Instructional Services | D45: Calculates automatically | F45: =VLOOKUP($H$1&$A45, FE, 6,FALSE) ->  | G45: =VLOOKUP($H$1&$A45, FE, 7,FALSE) ->  | H45: =VLOOKUP($H$1&$A45, FE, 8,FALSE) ->  | I45: =VLOOKUP($H$1&$A45, FE, 9,FALSE) ->  | J45: =VLOOKUP($H$1&$A45, FE, 10,FALSE) ->  | K45: =VLOOKUP($H$1&$A45, FE, 11,FALSE) ->  | L45: =VLOOKUP($H$1&$A45, FE, 12,FALSE) ->  | N45: =A45 -> 200 | O45: NA | Q45: 2000 series
A46: 210 | C46: Subtotal - Instructional Leadership | D46: Calculates automatically | N46: 210 | O46: NA | Q46: 2100s, 2200s, 2315
A47: 211 | C47: Salaries - Professional | D47: Salaries for instructional personnel in leadership roles. (Ex: Principal/Asst. Principals (undistributed), Curriculum Directors (including SPED), Department Heads, Technology/Instructional Coordinators, Team Leaders) | N47: 211 | O47: 5XX2 | Q47: 2110, 2120, 2210, 2220, 2250, 2315
A48: 212 | C48: Salaries - Clerical | D48: Salaries for administrative support personnel who prepare, transcribe, systematize or preserve communications, records and transactions. (Ex: secretary) | N48: 212 | O48: 5XX2 | Q48: 2110, 2120, 2210, 2220, 2250, 2315
A49: 213 | C49: Contracted Services | D49: Contracted professional services, including all related expenses covered by the contract. (Ex: contracted instructional consultant) | N49: 213 | O49: 53X2 | Q49: 2110, 2120, 2210, 2220, 2250, 2315
A50: 214 | C50: Supplies and Materials | D50: Materials and items of an expendable nature. Unit price of less than $5000. (Ex: white boards, instructional computers) | N50: 214 | O50: 54X2 | Q50: 2110, 2120, 2210, 2220, 2250, 2315
A51: 215 | C51: Travel and other expenses | D51: Travel and other expenses for staff such as dues, subscriptions and memberships. (Ex: teaching seminar) | N51: 215 | O51: 57X2 | Q51: 2110, 2120, 2210, 2220, 2250, 2315
A52: 220 | C52: Subtotal - Classroom and Specialist Teachers | D52: Calculates automatically | N52: 220 | O52: NA | Q52: 2300
A53: 221 | C53: Salaries - Teachers, Classroom | D53: Salaries for teachers with primary responsibility for teaching designated curriculum to established "classes" of students in a group instruction setting. Also includes itinerant music, art, health, physical education teachers who travel from classroom-to-classroom. Teacher EPIMS codes: 2305 - Teacher, 2306 - Co Teacher, 2307 - Virtual Teacher, 2308 - Virtual Teacher – Co Teacher | N53: 221 | O53: 5XX2 | Q53: 2305
A54: 222 | C54: Salaries - Teachers, Specialists | D54: Salaries for teachers who provide individualized instruction to students (1-on-1 or small groups) to supplement the services delivered by the students' classroom teachers, e.g. reading recovery, Title I reading specialists, special education, academic support, and language acquisitions services. NOT paraprofessionals. Teacher EPIMS codes: 23010 - Teacher - specialized content instruction | N54: 222 | O54: 5XX2 | Q54: 2310
A55: 230 | C55: Subtotal - Other Teaching Services | D55: Calculates automatically | N55: 230 | O55: NA | Q55: 2300
A56: 231 | C56: Salaries - Professional | D56: Salaries for Medical/Therapeutic service professionals. (Ex: OT, PT, Speech, Vision and other therapeutic services that are provided by licensed practitioners, librarians, media center directors, substitute teachers on payroll, after-school teachers, MCAS administrator) | N56: 231 | O56: 5XX2 | Q56: 2320, 2325, 2340
A57: 232 | C57: Salaries - Nonclerical Paraprofessionals | D57: Salaries for paraprofessionals hired to assist teachers/specialists with classroom instruction in the preparation or reproduction of instructional materials or classroom instruction. (Ex: American Sign Language Specialists, general teacher's assistant, after-school employees) | N57: 232 | O57: 5XX2 | Q57: 2330
A58: 233 | C58: Salaries - Clerical | D58: Salaries for administrative support personnel who prepare, transcribe, systematize or preserve communications, records and transactions. (Ex: secretary, after-school employees) | N58: 233 | O58: 5XX2 | Q58: 2320, 2325, 2340
A59: 234 | C59: Contracted Services | D59: Contracted professional services, including all related expenses covered by the contract, for other teaching services (Ex: non-payroll substitute teachers should be included here, contracted OT, PT, after-school contracted workers) | N59: 234 | O59: 53X2 | Q59: 2320, 2325, 2340
A60: 240 | C60: Subtotal - Professional Development | D60: Calculates automatically | H60: =VLOOKUP($H$1&$A60, FE, 8,FALSE) ->  | N60: 240 | O60: NA | Q60: 2350s
A61: 241 | C61: Salaries - Professional | D61: Salaries for full-time or prorated salary of director/staff for professional development, including training for new teachers, new curriculum or instructional practices, master and mentor teachers, coaches; Also salaries of teacher/instructional staff. | H61: =VLOOKUP($H$1&$A61, FE, 8,FALSE) ->  | N61: 241 | O61: 5XX2 | Q61: 2351, 2353
A62: 242 | C62: Contracted Services | D62: Contracted professional services, including all related expenses covered by the contract, for professional development (Ex: non-payroll substitute teachers) | H62: =VLOOKUP($H$1&$A62, FE, 8,FALSE) ->  | N62: 242 | O62: 53X2 | Q62: 2351, 2353
A63: 243 | C63: Supplies and Materials | D63: Materials and items of an expendable nature. Unit price of less than $5000. (Ex: professional development handouts) | H63: =VLOOKUP($H$1&$A63, FE, 8,FALSE) ->  | N63: 243 | O63: 54X2 | Q63: 2351, 2353
A64: 244 | C64: Travel and other expenses | D64: Travel and other expenses for staff such as dues, subscriptions and memberships. (Ex: professional development seminar, tuition reimbursements for teacher higher education coursework) | H64: =VLOOKUP($H$1&$A64, FE, 8,FALSE) ->  | N64: 244 | O64: 57X2 | Q64: 2351, 2353
A65: 250 | C65: Subtotal - Guidance, Psychological & Testing | D65: Calculates automatically | N65: 250 | O65: NA | Q65: 2700s, 2800s
A66: 251 | C66: Salaries - Professional | D66: Salaries for Guidance, Pyschological & Testing Professionals (Ex: Director of Guidance, school social workers, and counselors for guidance, school adjustment, higher education, career planning, and workplace learning placement; psychological evaluations and other services provided by a licensed mental health professional.) | N66: 251 | O66: 5XX2 | Q66: 2710, 2720, 2800
A67: 252 | C67: Salaries - Clerical | D67: Salaries for administrative support personnel who prepare, transcribe, systematize or preserve communications, records and transactions. (Ex: secretary) | N67: 252 | O67: 5XX2 | Q67: 2710, 2720, 2800
A68: 253 | C68: Contracted Services | D68: Contracted professional services, including all related expenses covered by the contract, for guidance, psychological, and testing. (Ex: contracted guidance counselor) | N68: 253 | O68: 53X2 | Q68: 2710, 2720, 2800
A69: 254 | C69: Supplies and Materials | D69: Materials and items of an expendable nature. Unit price of less than $5000. (Ex: pyschological (not academic related) testing materials) | N69: 254 | O69: 54X2 | Q69: 2710, 2720, 2800
A70: 260 | C70: Subtotal - Materials, Equipment & Technology | D70: Calculates automatically | H70: =VLOOKUP($H$1&$A70, FE, 8,FALSE) ->  | N70: 260 | O70: NA | Q70: 2451
A71: 261 | C71: Textbooks & Related Media/Materials | D71: Expenditures for all textbooks and related media/materials (Ex: hard copy and online text books.) | N71: 261 | O71: 54X2 | Q71: 2410
A72: 262 | C72: Other Instructional Materials | D72: Books and other materials, excluding textbooks but including online materials, for use in school libraries or classroom libraries (Ex: trade books, subscription to online magazine, periodicals, reference materials, etc.) | N72: 262 | O72: 54X2 | Q72: 2415
A73: 263 | C73: Instructional Equipment | D73: Non-capitalized expenditures for purchase of science laboratory, physical education, equipment, irrespective of unit cost. Also includes lease/purchase of copy equipment primarily used to produce instructional materials. Does not include classroom technology equipment. | N73: 263 | O73: 54X2 | Q73: 2420
A74: 264 | C74: General Supplies | D74: Papers, pens, pencils, crayons, chalk, paint, toner printer cartridges, calculators, etc. | N74: 264 | O74: 54X2 | Q74: 2430
A75: 265 | C75: Other Instructional Services | D75: Cost for field trips, including admissions and transportation costs. Also, distance learning services. | N75: 265 | O75: 58X2 | Q75: 2440
A76: 266 | C76: Classroom Instructional Technology | D76: Computers, servers, networks, scanners, digital cameras, etc. used in the classroom or in computer laboratories. | H76: =VLOOKUP($H$1&$A76, FE, 8,FALSE) ->  | N76: 266 | O76: 54X2 | Q76: 2451
A77: 267 | C77: Other Instructional Hardware | D77: Computers, servers, networks, scanners, digital cameras, etc. for school libraries and media centers. | H77: =VLOOKUP($H$1&$A77, FE, 8,FALSE) ->  | N77: 267 | O77: 54X2 | Q77: 2453
A78: 268 | C78: Instructional Software | D78: Software licenses (Ex: Online textbook guide, student data communication software such as Edline, Powerschool) | F78: =VLOOKUP($H$1&$A78, FE, 6,FALSE) ->  | G78: =VLOOKUP($H$1&$A78, FE, 7,FALSE) ->  | N78: 268 | O78: 54X2 | Q78: 2455
A79: 269 | C79: Depreciation for Instructional Equipment | D79: Annual depreciation expense for capitalized Instructional Materials, Equipment, & Technology. | F79: =VLOOKUP($H$1&$A79, FE, 6,FALSE) ->  | G79: =VLOOKUP($H$1&$A79, FE, 7,FALSE) ->  | N79: 269 | O79: 5702 | Q79: NA
A81: 300 | C81: Subtotal - Pupil Services | D81: Calculates automatically | F81: =VLOOKUP($H$1&$A81, FE, 6,FALSE) ->  | G81: =VLOOKUP($H$1&$A81, FE, 7,FALSE) ->  | H81: =VLOOKUP($H$1&$A81, FE, 8,FALSE) ->  | I81: =VLOOKUP($H$1&$A81, FE, 9,FALSE) ->  | J81: =VLOOKUP($H$1&$A81, FE, 10,FALSE) ->  | K81: =VLOOKUP($H$1&$A81, FE, 11,FALSE) ->  | L81: =VLOOKUP($H$1&$A81, FE, 12,FALSE) ->  | N81: =A81 -> 300 | O81: NA | Q81: 3000 series
A82: 310 | C82: Health Services | D82: Salaries for school physicians, school nurses, and clerical support staff. Expenses for school medical supplies, dues and subscriptions, and travel. | N82: 310 | O82: 5XX3 | Q82: various salary 3000's
A83: 315 | C83: Health Services - Contracted | D83: Contracted services for school physicians, school nurses, and clerical support staff. Expenses for school medical supplies, dues and subscriptions, and travel. | N83: 315
A84: 320 | C84: Athletic Services | D84: Salaries for coaches, trainers and assistants. Expenses for athletic supplies, uniforms, travel expenses and transportation to and from athletic events. | N84: 320
A85: 325 | C85: Athletic Services - Contracted | D85: Contracted services for coaches, trainers and assistants. Expenses for athletic supplies, uniforms, travel expenses and transportation to and from athletic events. | N85: 325
A86: 330 | C86: Food Services | D86: Salaries for cafeteria workers, food directors, and other food-related services for personell on payroll. Expenses for food, supplies, dues and subscriptions, and travel. | N86: 330 | O86: 5XX3 | Q86: various salary 3000's
A87: 335 | C87: Food Services - Contracted | D87: Contracted services for cafeteria workers, food directors, and other food-related services for personell on payroll. Expenses for food, supplies, dues and subscriptions, and travel. | N87: 335
A88: 340 | C88: Student Transportation (to and from school) | D88: Salaries and related costs incurred by the school; Or, monetary fair market value of services provided by sending district. (Please note: More detail is required in the Schedule 7C worksheet for those seeking reimbursement.) | N88: 340 | O88: 58X3 | Q88: 3300
A89: 345 | C89: Student Transportation (to and from school) | D89: Contracted professional services and related costs incurred by the school; Or, monetary fair market value of services provided by sending district. (Please note: More detail is required in the Schedule 7C worksheet for those seeking reimbursement.) | N89: 345
A90: 350 | C90: Depreciation of Transportation Vehicles | D90: Annual depreciation expense for capitalized transportation vehicles. (Please note: More detail is required in the Schedule 7C worksheet for those seeking state or district reimbursement for transportation costs.) | N90: 350 | O90: 5703 | Q90: 3300
A91: 360 | C91: Other Student Activities | D91: Salaries and contracted services for other student activities such as musical directors, drama coaches and other extra-curricular personnel. Expenses for supplies and materials, travel expenses and transportation to and from related events. | N91: 360 | O91: 58X3 | Q91: 3520/3600
A93: 400 | C93: Operation & Maintenance of Plant | D93: Calculates automatically | H93: =VLOOKUP($H$1&$A93, FE, 8,FALSE) ->  | I93: =VLOOKUP($H$1&$A93, FE, 9,FALSE) ->  | J93: =VLOOKUP($H$1&$A93, FE, 10,FALSE) ->  | K93: =VLOOKUP($H$1&$A93, FE, 11,FALSE) ->  | L93: =VLOOKUP($H$1&$A93, FE, 12,FALSE) ->  | N93: =A93 -> 400 | O93: NA | Q93: 4000 series
A94: 410 | C94: Operation & Maintenance of Buildings and Grounds | D94: Salaries and contracted services for plant managers, custodians, maintenance, etc. Expenses for supplies and travel expenses. | N94: 410 | O94: 5XX4 | Q94: various 4000's salaries
A95: 420 | C95: Utilities | D95: Cost of fuel, oil, electricity, gas, water, trash, waste disposal, telephone services, etc. | N95: 420 | O95: 55X4 | Q95: 4120 and 4130
A96: 430 | C96: Maintenance of Equipment | D96: Equipment parts and repair, materials, and tools, contracted services, including vehicles. | N96: 430 | O96: 55X4 | Q96: 4230
A97: 440 | C97: Networking and Telecommunications | D97: Costs for installing and maintaining school technology infrastructure, including wiring, file servers, etc. | N97: 440 | O97: 54X4 | Q97: 4400
A99: 500 | C99: Fixed Charges | D99: Calculates automatically | H99: =VLOOKUP($H$1&$A99, FE, 8,FALSE) ->  | I99: =VLOOKUP($H$1&$A99, FE, 9,FALSE) ->  | J99: =VLOOKUP($H$1&$A99, FE, 10,FALSE) ->  | K99: =VLOOKUP($H$1&$A99, FE, 11,FALSE) ->  | L99: =VLOOKUP($H$1&$A99, FE, 12,FALSE) ->  | N99: =A99 -> 500 | O99: NA | Q99: 5000 series
A100: 510 | C100: Employee Retirement | D100: "Payroll taxes", including contributions to Medicaid, social security, pension plans, and other employee retirement systems, school's portion, for non-MTRS employees; and Federal grant MTRS "surcharge" | N100: 510 | O100: 52X5 | Q100: 5100
A101: 520 | C101: Fringe Benefits | D101: Employee unemployment, health, and life insurance premiums or payments, and worker's compensation or other benefits, paid by the school for the benefit of the employee. | N101: 520 | O101: 52X5 | Q101: 5200, 5250
A102: 530 | C102: Insurance (non-employee) | D102: Insurance premiums for property, fire, liability, fidelity bonds; self-insurance costs. | N102: 530 | O102: 52X5 | Q102: 5260
A103: 550 | C103: Rental/Lease of Equipment | D103: Annual operating lease/rental costs of equipment. | N103: 550 | O103: 56X5 | Q103: 5300
A104: 560 | C104: Short-Term Interest | D104: Interest costs for short-term (less than one year) lines of credit that are needed to sustain cash flow for ongoing operations. | N104: 560 | O104: 57X5 | Q104: 5400, 5450
A106: 600 | C106: Community Services | D106: Calculates automatically | H106: =VLOOKUP($H$1&$A106, FE, 8,FALSE) ->  | I106: =VLOOKUP($H$1&$A106, FE, 9,FALSE) ->  | J106: =VLOOKUP($H$1&$A106, FE, 10,FALSE) ->  | K106: =VLOOKUP($H$1&$A106, FE, 11,FALSE) ->  | L106: =VLOOKUP($H$1&$A106, FE, 12,FALSE) ->  | N106: =A106 -> 600 | O106: NA | Q106: 6000 series
A107: 610 | C107: Dissemination Activities | D107: Activities designed to disseminate the school's best practices to external groups, including presentations at or hosting of conferences, etc. | H107: =VLOOKUP($H$1&$A107, FE, 8,FALSE) ->  | I107: =VLOOKUP($H$1&$A107, FE, 9,FALSE) ->  | J107: =VLOOKUP($H$1&$A107, FE, 10,FALSE) ->  | K107: =VLOOKUP($H$1&$A107, FE, 11,FALSE) ->  | L107: =VLOOKUP($H$1&$A107, FE, 12,FALSE) ->  | N107: =A107 -> 610 | O107: 58X6 | Q107: 6200
A108: 620 | C108: Civic Activities | D108: Materials and items of an expendable nature. Unit price of less than $5000. (Ex: fundraising activities for a charitable agency) | H108: =VLOOKUP($H$1&$A108, FE, 8,FALSE) ->  | I108: =VLOOKUP($H$1&$A108, FE, 9,FALSE) ->  | J108: =VLOOKUP($H$1&$A108, FE, 10,FALSE) ->  | K108: =VLOOKUP($H$1&$A108, FE, 11,FALSE) ->  | L108: =VLOOKUP($H$1&$A108, FE, 12,FALSE) ->  | N108: =A108 -> 620 | O108: 58X6 | Q108: 6200
A110: 700 | C110: Non-Operating / Capital Facilities Costs | D110: Calculates automatically | H110: =VLOOKUP($H$1&$A110, FE, 8,FALSE) ->  | I110: =VLOOKUP($H$1&$A110, FE, 9,FALSE) ->  | J110: =VLOOKUP($H$1&$A110, FE, 10,FALSE) ->  | K110: =VLOOKUP($H$1&$A110, FE, 11,FALSE) ->  | L110: =VLOOKUP($H$1&$A110, FE, 12,FALSE) ->  | N110: =A110 -> 700 | O110: NA | Q110: 7000 series
A111: 720 | C111: Long-Term Interest, facilities related | D111: Annual debt service costs for long-term financing (greater than one year) related to capital facilities costs. | H111: =VLOOKUP($H$1&$A111, FE, 8,FALSE) ->  | N111: 720 | O111: 57X7 | Q111: 8200
A112: 725 | C112: Long-Term Interest, non-facilities related | D112: Annual debt service costs for long-term financing (greater than one year) not related to capital facilities costs | N112: 725 | O112: 57X7 | Q112: 8300
A113: 730 | C113: Other costs related to capital facilities acquisition | D113: Expenses (e.g.,architectural design, closing costs, site exploration, etc.) related to capital facilities acquisition or lease. | N113: 730 | O113: 58X7 | Q113: 8000
A114: 740 | C114: Rental/Lease of Buildings & Grounds | D114: Annual operating lease/rental costs of Building & Grounds. | N114: 740 | O114: 58X7 | Q114: 7000
A115: 750 | C115: Depreciation of Equipment, Building, & Grounds | D115: Annual depreciation expense for capitalized Equipment, Networking and Telecommunications, Building, & Grounds. | N115: 750 | O115: 5707 | Q115: 5350*
A116: 760 | C116: Bad debt / loss on disposal of assets | D116: Write-off costs for bad debt or loss on disposal of assets | N116: 760 | O116: 5707 | Q116: NA
A118: 800 | C118: TOTALS | D118: Calculates automatically | F118: =VLOOKUP($H$1&$A118, FE, 6,FALSE) ->  | G118: =VLOOKUP($H$1&$A118, FE, 7,FALSE) ->  | H118: =VLOOKUP($H$1&$A118, FE, 8,FALSE) ->  | I118: =VLOOKUP($H$1&$A118, FE, 9,FALSE) ->  | J118: =VLOOKUP($H$1&$A118, FE, 10,FALSE) ->  | K118: =VLOOKUP($H$1&$A118, FE, 11,FALSE) ->  | L118: =VLOOKUP($H$1&$A118, FE, 12,FALSE) ->  | N118: =A118 -> 800 | O118: NA
A120: 910 | C120: Reference: Capitalized Expenditures | D120: Reference line for cash expenditures that are not expensed in the fiscal year | H120: =VLOOKUP($H$1&$A120, FE, 8,FALSE) ->  | I120: =VLOOKUP($H$1&$A120, FE, 9,FALSE) ->  | J120: =VLOOKUP($H$1&$A120, FE, 10,FALSE) ->  | K120: =VLOOKUP($H$1&$A120, FE, 11,FALSE) ->  | L120: =VLOOKUP($H$1&$A120, FE, 12,FALSE) ->  | N120: =A120 -> 910
A121: 920 | C121: Reference: Deferrals/Carryovers | D121: Reference line for cash expenditures that are not expensed in the fiscal year | H121: =VLOOKUP($H$1&$A121, FE, 8,FALSE) ->  | I121: =VLOOKUP($H$1&$A121, FE, 9,FALSE) ->  | J121: =VLOOKUP($H$1&$A121, FE, 10,FALSE) ->  | K121: =VLOOKUP($H$1&$A121, FE, 11,FALSE) ->  | L121: =VLOOKUP($H$1&$A121, FE, 12,FALSE) ->  | N121: =A121 -> 920
A122: 900 | C122: Reference: Totals | H122: =VLOOKUP($H$1&$A122, FE, 8,FALSE) ->  | I122: =VLOOKUP($H$1&$A122, FE, 9,FALSE) ->  | J122: =VLOOKUP($H$1&$A122, FE, 10,FALSE) ->  | K122: =VLOOKUP($H$1&$A122, FE, 11,FALSE) ->  | L122: =VLOOKUP($H$1&$A122, FE, 12,FALSE) ->  | N122: =A122 -> 900

Sheet 4. EXPPP
A1: Massachusetts Department of Elementary and Secondary Education
A2: FY18 Charter School Expenditures Per Pupil, All Funds, Summary By Function
A3: =Index!B3 -> Last Updated: May 2019
B4: Return to Index | F4: ----------------------------- Operating Expenditures Per Pupil In The Charter School ------------------------------------------- | S4: --- Exp pp Facilities Costs2 ---
E5: fte pupils | G5: instruc- | H5: classroom & | I5: other | J5: profes- | K5: instructn'l | L5: guidance, | N5: operations | O5: insurance, | P5: total operating | Q5: total operating | S5: Rental/Lease of | T5: Capital
D6: location | E6: at the | F6: admini- | G6: tional | H6: specialist | I6: teaching | J6: sional dev- | K6: materials, | L6: counseling | M6: pupil | N6: and | O6: retirement | P6: expenditures | Q6: expenditures | S6: Building & | T6: Facilities
A7: LEA | B7: Charter School | C7: type | D7: in FY14 | E7: charter | F7: stration | G7: leadership | H7: teachers | I7: services | J7: elopment | K7: equip & tech | L7: & testing | M7: services | N7: maintenance | O7: & other 1 | P7: aggregate | Q7: per pupil | S7: Grounds | T7: Expenses3
F8: 100 | G8: 210 | H8: 220 | I8: 230 | J8: 240 | K8: 260 | L8: 250 | M8: 300 | N8: 400 | O8: 500 | S8: 540 | T8: 720
A9: 445 | B9: Abby Kelley Foster Charter Public School | C9: =VLOOKUP(A9, TYPE, 3, FALSE) -> C | D9: =VLOOKUP(A9, FACTS, 6, FALSE) -> Worcester | E9: =VLOOKUP(A9, FTE, 2, FALSE) -> 1424.91 | F9: =VLOOKUP($A9&100, FE, 12, FALSE)/$E9 -> 721.2939765 | G9: =VLOOKUP($A9&210, FE, 12, FALSE)/$E9 -> 1093.838909 | H9: =VLOOKUP($A9&220, FE, 12, FALSE)/$E9 -> 4562.497281 | I9: =VLOOKUP($A9&230, FE, 12, FALSE)/$E9 -> 798.6813202 | J9: =VLOOKUP($A9&240, FE, 12, FALSE)/$E9 -> 48.856419 | K9: =VLOOKUP($A9&260, FE, 12, FALSE)/$E9 -> 296.4095978 | L9: =VLOOKUP($A9&250, FE, 12, FALSE)/$E9 -> 337.3132338 | M9: =VLOOKUP($A9&300, FE, 12, FALSE)/$E9 -> 1603.648336 | N9: =VLOOKUP($A9&400, FE, 12, FALSE)/$E9 -> 1212.454822 | O9: =VLOOKUP($A9&500, FE, 12, FALSE)/$E9 -> 3550.190538 | P9: =VLOOKUP($A9&800,FE,12,FALSE)-VLOOKUP($A9&700,FE,12,FALSE)-VLOOKUP($A9&600,FE,12,FALSE) -> 20269607.55 | Q9: =SUM(F9:O9) -> 14225.18443 | S9: =VLOOKUP($A9&740, FE, 12, FALSE)/$E9 -> 0 | T9: =(VLOOKUP($A9&700, FE, 12, FALSE)-VLOOKUP($A9&740, FE, 12, FALSE)-VLOOKUP($A9&725, FE, 12, FALSE))/$E9 -> 1539.436175
A10: 412 | B10: Academy of the Pacific Rim Charter Public School | C10: C | D10: Boston | E10: =VLOOKUP(A10, FTE, 2, FALSE) -> 525.12 | F10: 1847.686243 | G10: 1385.332876 | H10: 6068.689062 | I10: 717.6054997 | J10: 382.1793114 | K10: 760.6718464 | L10: 804.0923979 | M10: 2282.046009 | N10: 992.0551493 | O10: 4341.859004 | P10: 10283014 | Q10: =SUM(F10:O10) -> 19582.2174 | S10: 0 | T10: 2015.156536
A11: 430 | B11: Advanced Math and Science Academy Charter School | C11: C | D11: Marlborough | E11: 990.15 | F11: 2152.354088 | G11: 875.6612735 | H11: 5146.002394 | I11: 132.4118164 | J11: 351.3646114 | K11: 390.5222138 | L11: 274.7175377 | M11: 1729.156441 | N11: 763.3608443 | O11: 3536.526849 | P11: 15200860.1 | Q11: 15352.07807 | S11: 1520.005615 | T11: 152.3923042
A12: 409 | B12: Alma del Mar Charter School | C12: C | D12: New Bedford | E12: 408.08 | F12: 1536.198785 | G12: 335.5665556 | H12: 5177.416193 | I12: 1405.717016 | J12: 526.1100765 | K12: 595.4910802 | L12: 319.509655 | M12: 2957.469124 | N12: 699.1447755 | O12: 2611.191433 | P12: 6596129.5 | Q12: 16163.81469 | S12: 2821.740835 | T12: 34.9196236
A13: 3509 | B13: Argosy Collegiate Charter School | C13: C | D13: Fall River | E13: 397.13 | F13: 1589.794475 | G13: 952.0544406 | H13: 4585.10518 | I13: 332.2895022 | J13: 115.4636769 | K13: 1096.765719 | L13: 313.2450331 | M13: 2311.813361 | N13: 858.3136756 | O13: 2304.029537 | P13: 5742052.87 | Q13: 14458.8746 | S13: 1534.542845 | T13: 217.3097726
A14: 491 | B14: Atlantis Charter School | C14: C | D14: Fall River | E14: 1209.77 | F14: 1143.745505 | G14: 699.6321615 | H14: 3608.581797 | I14: 1344.77876 | J14: 30.3305587 | K14: 236.3176472 | L14: 444.9581325 | M14: 1230.641362 | N14: 682.5933855 | O14: 3463.591426 | P14: 15588093 | Q14: 12885.17073 | S14: 735.9539417 | T14: 1245.712821
A15: 427 | B15: Barnstable Community Horace Mann Charter Public School | C15: HM | D15: Barnstable | E15: 303.05 | F15: 997.2545785 | G15: 23.63306385 | H15: 6005.259858 | I15: 1015.248309 | J15: 51.07408018 | K15: 128.8500247 | L15: 569.5858769 | M15: 1625.23346 | N15: 852.2950008 | O15: 1205.966012 | P15: 3780367 | Q15: 12474.40026 | S15: 502.369246 | T15: 0
A16: 3502 | B16: Baystate Academy Charter Public School | C16: C | D16: Springfield | E16: 440.7 | F16: 1207.690039 | G16: 1111.136828 | H16: 4552.260041 | I16: 991.8652144 | J16: 549.516678 | K16: 750.9961425 | L16: 545.1282051 | M16: 3058.590878 | N16: 570.3017926 | O16: 2863.340141 | P16: 7139704 | Q16: 16200.82596 | S16: 1497.6855 | T16: 320.3222147
A17: 420 | B17: Benjamin Banneker Charter Public School | C17: C | D17: Cambridge | E17: 350.6 | F17: 2661.720194 | G17: 1889.925157 | H17: 4882.299258 | I17: 2259.696235 | J17: 249.0958642 | K17: 726.577239 | L17: 298.2688534 | M17: 3859.936737 | N17: 1157.454136 | O17: 4680.266115 | P17: 7946433.07 | Q17: 22665.23979 | S17: 1331.362236 | T17: 546.8015117
A18: 447 | B18: Benjamin Franklin Classical Charter Public School | C18: C | D18: Franklin | E18: 445.15 | F18: 1410.205032 | G18: 662.9182747 | H18: 4853.336089 | I18: 1542.291744 | J18: 105.1698304 | K18: 493.2894755 | L18: 326.6079973 | M18: 779.4022689 | N18: 608.8566101 | O18: 3671.638841 | P18: 6434071.75 | Q18: 14453.71616 | S18: 646.9729305 | T18: 102.4396271
A19: 3511 | B19: Bentley Academy Charter School | C19: HM | D19: Salem | E19: 286.0004457 | F19: 773.6142139 | G19: 570.4536564 | H19: 6519.611737 | I19: 1791.441893 | J19: 241.1011977 | K19: 129.9458464 | L19: 231.7813819 | M19: 1085.167181 | N19: 1033.17769 | O19: 2135.420658 | P19: 4150357.089 | Q19: 14511.71546 | S19: 0 | T19: 0
A20: 414 | B20: Berkshire Arts and Technology Charter Public School | C20: C | D20: Adams | E20: 350.68 | F20: 1945.550987 | G20: 1679.821518 | H20: 4597.728071 | I20: 915.6480552 | J20: 540.766083 | K20: 590.0449983 | L20: 705.5289438 | M20: 1919.912741 | N20: 1049.662912 | O20: 3506.434869 | P20: 6119751.46 | Q20: 17451.09918 | S20: 0 | T20: 1501.120879
A21: 449 | B21: Boston Collegiate Charter School | C21: C | D21: Boston | E21: 697.23 | F21: 1699.23024 | G21: 1820.1842 | H21: 7118.786025 | I21: 145.8086715 | J21: 230.8162299 | K21: 305.5194412 | L21: 1113.307273 | M21: 1668.551712 | N21: 1238.786254 | O21: 4158.521578 | P21: 13595644.49 | Q21: 19499.51162 | S21: 12.56687176 | T21: 1154.350788
A22: 424 | B22: Boston Day and Evening Academy Charter School | C22: HM | D22: Boston | E22: 401.5642458 | F22: 690.8306526 | G22: 1321.409728 | H22: 6168.163042 | I22: 1551.35136 | J22: 158.0620303 | K22: 112.6407056 | L22: 193.8698497 | M22: 2677.917721 | N22: 872.4121573 | O22: 2158.920893 | P22: 6387111.49 | Q22: 15905.57814 | S22: 0 | T22: 0
A23: 411 | B23: Boston Green Academy Horace Mann Charter School | C23: HM | D23: Boston | E23: 469.05 | F23: 1178.185503 | G23: 1374.145336 | H23: 7164.635199 | I23: 1454.816139 | J23: 108.2938919 | K23: 165.9552713 | L23: 541.5889564 | M23: 932.8759407 | N23: 967.548918 | O23: 2554.533824 | P23: 7712391.67 | Q23: 16442.57898 | S23: 0 | T23: 0
A24: 416 | B24: Boston Preparatory Charter Public School | C24: C | D24: Boston | E24: 459.57 | F24: 2852.784124 | G24: 2064.706138 | H24: 5791.953348 | I24: 286.3024131 | J24: 232.4564267 | K24: 1407.633222 | L24: 907.8725765 | M24: 2812.059099 | N24: 969.8000305 | O24: 4868.376961 | P24: 10199671 | Q24: 22193.94434 | S24: 1800.369911 | T24: 68.59237983
A25: 481 | B25: Boston Renaissance Charter Public School | C25: C | D25: Boston | E25: 942.76 | F25: 1418.755569 | G25: 784.5687131 | H25: 6141.836735 | I25: 1700.775383 | J25: 828.0898638 | K25: 364.5371038 | L25: 312.9110272 | M25: 2849.515253 | N25: 978.182146 | O25: 5211.175697 | P25: 19411756 | Q25: 20590.34749 | S25: 0 | T25: 1677.122491
A26: 417 | B26: Bridge Boston Charter School | C26: C | D26: Boston | E26: 309.85 | F26: 3280.12264 | G26: 1041.700823 | H26: 5357.221236 | I26: 2806.745199 | J26: 83.81797644 | K26: 736.8984993 | L26: 460.8907536 | M26: 2639.990318 | N26: 1058.964015 | O26: 3870.714862 | P26: 6611290 | Q26: 21337.06632 | S26: 658.5250928 | T26: 3242.552848
A27: 428 | B27: Brooke Charter School | C27: C | D27: Boston | E27: 1752.78 | F27: 1485.069587 | G27: 1850.99268 | H27: 6038.019575 | I27: 580.9431418 | J27: 38.11460651 | K27: 920.1983249 | L27: 814.6024715 | M27: 2094.076062 | N27: 1448.988784 | O27: 3600.228192 | P27: 33077120.52 | Q27: 18871.23342 | S27: 938.7615502 | T27: 1471.002773
A28: 432 | B28: Cape Cod Lighthouse Charter School | C28: C | D28: Harwich | E28: 242.13 | F28: 1694.081692 | G28: 344.6578284 | H28: 7322.211209 | I28: 957.4732582 | J28: 113.860323 | K28: 278.0944121 | L28: 394.205592 | M28: 823.7971338 | N28: 438.5247594 | O28: 4972.605625 | P28: 4198416 | Q28: 17339.51183 | S28: 0 | T28: 1115.896419
A29: 418 | B29: Christa McAuliffe Charter School | C29: C | D29: Framingham | E29: 396.57 | F29: 1898.267645 | G29: 1380.936531 | H29: 7048.142825 | I29: 554.0837683 | J29: 26.49469198 | K29: 503.4067126 | L29: 448.0343949 | M29: 1649.754142 | N29: 509.1862723 | O29: 4064.039136 | P29: 7170916 | Q29: 18082.34612 | S29: 1624.268099 | T29: 212.812366
A30: 437 | B30: City on a Hill Charter Public School Circuit Street | C30: C | D30: Boston | E30: 276.66 | F30: 5790.19374 | G30: 2966.829321 | H30: 5949.953011 | I30: 1227.868141 | J30: 752.3711415 | K30: 572.2366804 | L30: 952.9422396 | M30: 2094.354081 | N30: 1601.481963 | O30: 7660.897853 | P30: 8180595 | Q30: 29569.12817 | S30: 2171.112557 | T30: 5.779657341
A31: 3504 | B31: City on a Hill Charter Public School Dudley Square | C31: C | D31: Boston | E31: 265.03 | F31: 1905.709529 | G31: 2263.748392 | H31: 5617.595329 | I31: 1010.295966 | J31: 243.7671006 | K31: 512.144134 | L31: 792.8323963 | M31: 1509.587933 | N31: 1376.849524 | O31: 4572.47038 | P31: 5248919.332 | Q31: 19805.00068 | S31: 2921.352596 | T31: 7.995321284
A32: 3507 | B32: City On A Hill Charter Public School New Bedford | C32: C | D32: =VLOOKUP(A32, FACTS, 6, FALSE) -> New Bedford | E32: =VLOOKUP(A32, FTE, 2, FALSE) -> 228.68 | F32: 1659.662008 | G32: 3030.758084 | H32: 3930.413679 | I32: 1386.234039 | J32: 286.5959192 | K32: 708.1925199 | L32: 572.9141158 | M32: 1971.584747 | N32: 1254.684302 | O32: 3238.570813 | P32: 4125298.067 | Q32: =SUM(F32:O32) -> 18039.61023 | S32: 1286.338341 | T32: 9.266223544
A33: 438 | B33: Codman Academy Charter Public School | C33: C | D33: Boston | E33: 344.13 | F33: 1558.914364 | G33: 2835.475402 | H33: 5441.122599 | I33: 2681.736262 | J33: 339.5636533 | K33: 1163.608956 | L33: 492.3933688 | M33: 2513.798012 | N33: 867.8744079 | O33: 5107.450673 | P33: 7915656.82 | Q33: 23001.9377 | S33: 1293.551855 | T33: 6.439426961
A34: 3503 | B34: Collegiate Charter School of Lowell | C34: C | D34: Lowell | E34: 755.86 | F34: 798.3331834 | G34: 2370.014407 | H34: 2403.702392 | I34: 1011.828923 | J34: 25.17499272 | K34: 659.5786918 | L34: 88.90532638 | M34: 1426.26157 | N34: 679.4292858 | O34: 1708.441193 | P34: 8444218.46 | Q34: 11171.66997 | S34: 2869.344111 | T34: 213.4629561
A35: 436 | B35: Community Charter School of Cambridge | C35: C | D35: Cambridge | E35: 361.69 | F35: 1632.472559 | G35: 2346.354613 | H35: 7384.62219 | I35: 534.5323343 | J35: 475.7388924 | K35: 720.6115734 | L35: 895.9993364 | M35: 1559.913185 | N35: 1075.63936 | O35: 4579.985623 | P35: 7669951 | Q35: 21205.86967 | S35: 3808.078741 | T35: 332.408969
A36: 426 | B36: Community Day Charter Public School - Gateway | C36: C | D36: Lawrence | E36: 319.74 | F36: 1295.946707 | G36: 2029.317571 | H36: 5851.982861 | I36: 471.9084256 | J36: 95.09914305 | K36: 749.8467505 | L36: 428.4856446 | M36: 1755.485707 | N36: 825.1485582 | O36: 3189.919935 | P36: 5337465 | Q36: 16693.1413 | S36: 610.9307562 | T36: 11.70951398
A37: 440 | B37: Community Day Charter Public School - Prospect | C37: C | D37: Lawrence | E37: 399.91 | F37: 1279.557901 | G37: 1222.017454 | H37: 6346.880548 | I37: 560.2935661 | J37: 69.00802681 | K37: 355.359956 | L37: 773.5040384 | M37: 1504.123428 | N37: 710.3373259 | O37: 4288.127329 | P37: 6842144 | Q37: 17109.20957 | S37: 524.1979445 | T37: 11.63011678
A38: 431 | B38: Community Day Charter Public School - R. Kingman Webster | C38: C | D38: Lawrence | E38: 319.8 | F38: 1317.964353 | G38: 1468.055034 | H38: 5545.916198 | I38: 572.673546 | J38: 52.47654784 | K38: 362.1513446 | L38: 119.9155722 | M38: 1831.319575 | N38: 523.8836773 | O38: 3025.222014 | P38: 4739301 | Q38: 14819.57786 | S38: 1547.126329 | T38: 37.65791119
A39: 439 | B39: Conservatory Lab Charter School | C39: C | D39: =VLOOKUP(A39, FACTS, 6, FALSE) -> Boston | E39: =VLOOKUP(A39, FTE, 2, FALSE) -> 446.22 | F39: =VLOOKUP($A39&100, FE, 12, FALSE)/$E39 -> 2260.393259 | G39: 1262.652996 | H39: 4962.286227 | I39: 1821.497087 | J39: 60.18201784 | K39: 465.9608489 | L39: 0 | M39: 3091.456815 | N39: 749.1662185 | O39: 3449.873538 | P39: 8087054.34 | Q39: 18123.46901 | S39: 1425.92228 | T39: 27.4833042
A40: 407 | B40: Dudley Street Neighborhood Charter School | C40: HM | D40: Boston | E40: 288.1381215 | F40: 4011.157475 | G40: 1075.824915 | H40: 6077.887753 | I40: 590.0364696 | J40: 243.7164497 | K40: 372.2863168 | L40: 318.2917953 | M40: 1888.843576 | N40: 590.3431975 | O40: 3047.516397 | P40: 5248696.46 | Q40: 18215.90434 | S40: 0 | T40: 0
A41: 452 | B41: Edward M. Kennedy Academy for Health Careers: A Horace Mann Charter Public School | C41: =VLOOKUP(A41, TYPE, 3, FALSE) -> HM | D41: Boston | E41: 367.7833333 | F41: 1727.712874 | G41: 1427.253365 | H41: 8236.379209 | I41: 888.3463996 | J41: 1020.745004 | K41: 321.3739974 | L41: 2155.869851 | M41: 3020.259211 | N41: 207.2714914 | O41: 2630.918566 | P41: 7957408 | Q41: 21636.12997 | S41: 973.8260751 | T41: 0
A42: 410 | B42: Excel Academy Charter School | C42: C | D42: Boston/Chelsea | E42: 1126.08 | F42: 2019.067634 | G42: 2555.667474 | H42: 5190.741084 | I42: 584.4335861 | J42: 327.3044544 | K42: 742.2398853 | L42: 805.6851001 | M42: 1509.059062 | N42: 876.7441034 | O42: 3577.647236 | P42: 20481807 | Q42: 18188.58962 | S42: 378.4393649 | T42: 2464.031863
A43: 413 | B43: Four Rivers Charter Public School | C43: C | D43: Greenfield | E43: 221.05 | F43: 1553.707306 | G43: 1217.525447 | H43: 6138.8057 | I43: 696.1501923 | J43: 208.310337 | K43: 771.1015607 | L43: 478.9595114 | M43: 963.7367112 | N43: 894.8699389 | O43: 4540.805248 | P43: 3860411 | Q43: =SUM(F43:O43) -> 17463.97195 | S43: 2094.376838 | T43: 78.33974214
A44: 446 | B44: Foxborough Regional Charter School | C44: C | D44: Foxborough | E44: 1462.21 | F44: 905.5764015 | G44: 594.4245218 | H44: 3903.745105 | I44: 500.1689224 | J44: 87.27969991 | K44: 401.0590339 | L44: 678.209792 | M44: 1479.226496 | N44: 1122.989646 | O44: 2847.913131 | P44: 18307735.92 | Q44: 12520.59275 | S44: 0 | T44: 1974.167561
A45: 478 | B45: Francis W. Parker Charter Essential School | C45: C | D45: Devens | E45: 396.62 | F45: 1499.442521 | G45: 1859.29797 | H45: 5402.501109 | I45: 92.1789118 | J45: 90.03615551 | K45: 693.0786433 | L45: 664.387575 | M45: 1157.361253 | N45: 872.6679744 | O45: 4120.678735 | P45: 6525045.827 | Q45: 16451.63085 | S45: 406.2216731 | T45: 697.0790177
A46: 496 | B46: Global Learning Charter Public School | C46: C | D46: New Bedford | E46: 505.45 | F46: 1399.721041 | G46: 1188.491443 | H46: 4780.500544 | I46: 661.9487585 | J46: 103.1358196 | K46: 747.2964685 | L46: 529.8664556 | M46: 1686.538728 | N46: 628.9306559 | O46: 3489.524186 | P46: 7690904 | Q46: 15215.9541 | S46: 481.3987536 | T46: 368.1412603
A47: 499 | B47: Hampden Charter School of Science | C47: C | D47: Chicopee | E47: 489.8 | F47: 1379.56717 | G47: 609.1465904 | H47: 4085.412413 | I47: 731.5108207 | J47: 166.2780727 | K47: 638.4075133 | L47: 497.1906901 | M47: 2125.830951 | N47: 843.5157207 | O47: 3589.087383 | P47: 7183381 | Q47: 14665.94733 | S47: 1248.840343 | T47: 264.4671294
A48: 419 | B48: Helen Y Davis Leadership Academy Charter Public School | C48: C | D48: Boston | E48: 214.33 | F48: 2825.148136 | G48: 887.0480101 | H48: 7598.609621 | I48: 1576.125601 | J48: 143.7642887 | K48: 204.1011524 | L48: 556.9682266 | M48: 2257.990015 | N48: 683.2267998 | O48: 4552.003919 | P48: 4562011 | Q48: 21284.98577 | S48: 1591.43377 | T48: 64.56865581
A49: 455 | B49: Hill View Montessori Charter Public School | C49: C | D49: Haverhill | E49: 301.87 | F49: 1761.004737 | G49: 615.2780998 | H49: 3660.667903 | I49: 1157.004671 | J49: 73.86292112 | K49: 308.5434127 | L49: 490.1547024 | M49: 380.8891245 | N49: 1142.109186 | O49: 2505.910425 | P49: 3651246 | Q49: 12095.42518 | S49: 0 | T49: 498.9763806
A50: 450 | B50: Hilltown Cooperative Charter Public School | C50: C | D50: East Hampton | E50: 217.99 | F50: 744.4900684 | G50: 1457.544979 | H50: 5644.675352 | I50: 1690.230286 | J50: 34.59860544 | K50: 523.9935777 | L50: 450.5835589 | M50: 564.1650993 | N50: 658.022524 | O50: 4080.825359 | P50: 3454951.72 | Q50: 15849.12941 | S50: 0 | T50: 860.6570026
A51: 453 | B51: Holyoke Community Charter School | C51: C | D51: Holyoke | E51: 702.48 | F51: 755.1773431 | G51: 2809.137171 | H51: 3857.769004 | I51: 747.6806884 | J51: 147.1148075 | K51: 721.9358985 | L51: 254.6167151 | M51: 2185.612587 | N51: 1171.681357 | O51: 2886.014563 | P51: 10914249.21 | Q51: 15536.74013 | S51: 0 | T51: 922.1936283
A52: 435 | B52: Innovation Academy Charter School | C52: C | D52: Tyngsborough | E52: 800.83 | F52: 1325.404892 | G52: 861.1627936 | H52: 5016.214428 | I52: 743.0490866 | J52: 70.94014959 | K52: 145.6538841 | L52: 383.428443 | M52: 1303.345279 | N52: 1027.210519 | O52: 3784.813256 | P52: 11741147 | Q52: 14661.22273 | S52: 0 | T52: 1147.285941
A53: 463 | B53: KIPP Academy Boston Charter School | C53: C | D53: Boston | E53: 554.95 | F53: 3212.17443 | G53: 781.9227678 | H53: 5283.37025 | I53: 3061.703793 | J53: 25.76448329 | K53: 736.4591405 | L53: 796.9474727 | M53: 2267.714208 | N53: 1216.271736 | O53: 3870.635192 | P53: 11794332.08 | Q53: 21252.96347 | S53: 688.6692495 | T53: 3023.771511
A54: 429 | B54: KIPP Academy Lynn Charter School | C54: C | D54: Lynn | E54: 1330.57 | F54: 2232.344785 | G54: 1328.586756 | H54: 4738.934652 | I54: 1798.217275 | J54: 132.996385 | K54: 777.852349 | L54: 1073.137678 | M54: 1610.456 | N54: 838.1122376 | O54: 3756.106781 | P54: 24331794.16 | Q54: 18286.7449 | S54: 1134.759539 | T54: 445.8698152
A55: 454 | B55: Lawrence Family Development Charter School | C55: C | D55: Lawrence | E55: 737.03 | F55: 1273.333514 | G55: 959.635293 | H55: 4845.034802 | I55: 1168.411055 | J55: 78.09587127 | K55: 557.2527577 | L55: 293.647477 | M55: 1104.344464 | N55: 1305.033716 | O55: 2641.082453 | P55: 10484894 | Q55: 14225.8714 | S55: 1512.397053 | T55: 154.2067487
A56: 3514 | B56: Libertas Academy Charter School (New school opening FY18) | C56: C | D56: Springfield | E56: 87.56 | F56: 4464.693696 | G56: 6.806075834 | H56: 4406.77227 | I56: 1462.51873 | J56: 536.4100046 | K56: 2066.072522 | L56: 486.8027638 | M56: 4002.630196 | N56: 456.2913431 | O56: 1870.196779 | P56: 1730115.06 | Q56: 19759.19438 | S56: 1051.658291 | T56: 144.1297396
A57: 456 | B57: Lowell Community Charter Public School | C57: C | D57: Lowell | E57: 805.36 | F57: 1453.877769 | G57: 967.4474024 | H57: 5469.653223 | I57: 740.4552002 | J57: 145.6007251 | K57: 676.4055826 | L57: 117.3749379 | M57: 1330.090891 | N57: 1185.74923 | O57: 3673.729761 | P57: 12692783.44 | Q57: 15760.38472 | S57: 0 | T57: 795.9148704
A58: 458 | B58: Lowell Middlesex Academy Charter School | C58: C | D58: Lowell | E58: 96.1 | F58: 2668.839646 | G58: 2466.1923 | H58: 8843.336941 | I58: 0 | J58: 74.53787721 | K58: 328.4901145 | L58: 108.2006243 | M58: 1013.968574 | N58: 1291.995005 | O58: 3808.280021 | P58: 1980029.13 | Q58: 20603.8411 | S58: 0 | T58: 821.2695109
A59: 464 | B59: Marblehead Community Charter Public School | C59: C | D59: Marblehead | E59: 229.43 | F59: 1876.419823 | G59: 718.7508172 | H59: 5497.877348 | I59: 728.9717997 | J59: 65.45351523 | K59: 445.3994682 | L59: 231.0944515 | M59: 1366.351393 | N59: 930.1878569 | O59: 4300.902236 | P59: 3707912 | Q59: 16161.40871 | S59: 0 | T59: 992.7123741
A60: 466 | B60: Martha's Vineyard Public Charter School | C60: C | D60: West Tisbury | E60: 184.76 | F60: 2025.281446 | G60: 1031.229703 | H60: 7846.422386 | I60: 4009.558346 | J60: 97.52652089 | K60: 467.6607491 | L60: 859.1632388 | M60: 2519.592985 | N60: 1093.001732 | O60: 8047.775493 | P60: 5172765 | Q60: =SUM(F60:O60) -> 27997.2126 | S60: 1234.033341 | T60: 103.2149816
A61: 492 | B61: Martin Luther King, Jr. Charter School of Excellence | C61: C | D61: Springfield | E61: 356.6 | F61: 1310.974229 | G61: 608.7266685 | H61: 7017.293859 | I61: 163.0678632 | J61: 51.82919237 | K61: 619.212507 | L61: 373.5358385 | M61: 3045.614077 | N61: 1045.565984 | O61: 4693.576024 | P61: 6750222.7 | Q61: 18929.39624 | S61: 970.491447 | T61: 100.859843
A62: 469 | B62: Match Charter Public School | C62: C | D62: Boston | E62: 1217.57 | F62: 1458.751448 | G62: 2695.773549 | H62: 5798.464154 | I62: 1279.499331 | J62: 254.3927659 | K62: 842.0427573 | L62: 942.2891497 | M62: 1723.667633 | N62: 1517.903693 | O62: 3467.189566 | P62: 24327017 | Q62: 19979.97405 | S62: 0 | T62: 2205.464162
A63: 470 | B63: Mystic Valley Regional Charter School | C63: C | D63: Malden | E63: 1563.67 | F63: 1231.729841 | G63: 1296.391182 | H63: 4028.755428 | I63: 494.8767963 | J63: 203.8166621 | K63: 379.5762533 | L63: 131.7413521 | M63: 1220.863098 | N63: 1537.814884 | O63: 2552.358234 | P63: 20449557 | Q63: 13077.92373 | S63: 192.509289 | T63: 591.5448912
A64: 444 | B64: Neighborhood House Charter School | C64: C | D64: =VLOOKUP(A64, FACTS, 6, FALSE) -> Boston | E64: =VLOOKUP(A64, FTE, 2, FALSE) -> 551.68 | F64: 2814.834977 | G64: 1191.324681 | H64: 5471.458092 | I64: 1308.807642 | J64: 341.8394722 | K64: 381.2336862 | L64: 832.1454466 | M64: 1691.107164 | N64: 1904.805322 | O64: 3957.722122 | P64: 10975827.3 | Q64: =SUM(F64:O64) -> 19895.2786 | S64: 909.4094403 | T64: 299.3601363
A65: 3513 | B65: New Heights Charter School of Brockton | C65: C | D65: Brockton | E65: 417.54 | F65: 1637.196748 | G65: 612.770034 | H65: 3451.527997 | I65: 1748.852805 | J65: 377.1806294 | K65: 813.4915457 | L65: 113.974709 | M65: 2484.661877 | N65: 433.8123294 | O65: 2585.630119 | P65: 5953744.11 | Q65: 14259.09879 | S65: 1021.490157 | T65: 552.3255257
A66: 3515 | B66: Old Sturbridge Academy Charter Public School | C66: C | D66: =VLOOKUP(A66, FACTS, 6, FALSE) -> Sturbridge | E66: =VLOOKUP(A66, FTE, 2, FALSE) -> 159.86 | F66: =VLOOKUP($A66&100, FE, 12, FALSE)/$E66 -> 2132.485738 | G66: =VLOOKUP($A66&210, FE, 12, FALSE)/$E66 -> 1340.444827 | H66: =VLOOKUP($A66&220, FE, 12, FALSE)/$E66 -> 2811.042287 | I66: =VLOOKUP($A66&230, FE, 12, FALSE)/$E66 -> 2554.025335 | J66: =VLOOKUP($A66&240, FE, 12, FALSE)/$E66 -> 0 | K66: =VLOOKUP($A66&260, FE, 12, FALSE)/$E66 -> 1510.433192 | L66: =VLOOKUP($A66&250, FE, 12, FALSE)/$E66 -> 582.5002502 | M66: =VLOOKUP($A66&300, FE, 12, FALSE)/$E66 -> 2603.909859 | N66: =VLOOKUP($A66&400, FE, 12, FALSE)/$E66 -> 709.9822345 | O66: =VLOOKUP($A66&500, FE, 12, FALSE)/$E66 -> 1353.740273 | P66: =VLOOKUP($A66&800,FE,12,FALSE)-VLOOKUP($A66&700,FE,12,FALSE)-VLOOKUP($A66&600,FE,12,FALSE) -> 2493586.44 | Q66: 15598.56399 | S66: 1654.953084 | T66: 6.005442262
A67: 3501 | B67: Paulo Freire Social Justice Charter School | C67: C | D67: Holyoke | E67: 289.18 | F67: 2873.985292 | G67: 866.0236877 | H67: 5905.676119 | I67: 2326.912131 | J67: 236.5450239 | K67: 268.8807699 | L67: 291.2712497 | M67: 1758.191817 | N67: 501.0131752 | O67: 1446.493326 | P67: 4764238.357 | Q67: =SUM(F67:O67) -> 16474.99259 | S67: 3192.487551 | T67: 0
A68: 493 | B68: Phoenix Academy Charter Public High School, Chelsea | C68: C | D68: Chelsea | E68: 197 | F68: 6987.751269 | G68: 4523.563452 | H68: 3403.548223 | I68: 1098.431472 | J68: 540.0101523 | K68: 326.5939086 | L68: 141.9593909 | M68: 1021.335025 | N68: 1234.832487 | O68: 4237.472081 | P68: 4632553 | Q68: 23515.49746 | S68: =VLOOKUP($A68&740, FE, 12, FALSE)/$E68 -> 2299.634518 | T68: =(VLOOKUP($A68&700, FE, 12, FALSE)-VLOOKUP($A68&740, FE, 12, FALSE)-VLOOKUP($A68&725, FE, 12, FALSE))/$E68 -> 325.0964467
A69: 3508 | B69: Phoenix Academy Public Charter High School, Springfield | C69: C | D69: Springfield | E69: 190.54 | F69: 3779.159232 | G69: 2504.488559 | H69: 2560.690669 | I69: 696.0270809 | J69: 399.6273748 | K69: 343.1615409 | L69: 249.4226934 | M69: 853.2066758 | N69: 745.9221161 | O69: 2502.855044 | P69: 2788469.25 | Q69: 14634.56098 | S69: 2205.610371 | T69: 446.8772961
A70: 494 | B70: Pioneer Charter School of Science | C70: C | D70: Everett | E70: 669.34 | F70: 1989.045787 | G70: 748.8565453 | H70: 4789.739206 | I70: 373.365584 | J70: 106.5543072 | K70: 740.56732 | L70: 385.8298174 | M70: 1128.687573 | N70: 1190.632578 | O70: 3234.247916 | P70: 9830949.077 | Q70: 14687.52663 | S70: 1339.678654 | T70: 0
A71: 3506 | B71: Pioneer Charter School of Science II | C71: C | D71: Saugus | E71: 353.02 | F71: 1628.697073 | G71: 447.7929518 | H71: 4553.886182 | I71: 887.9952977 | J71: 240.7154835 | K71: 890.3888165 | L71: 466.3248541 | M71: 1414.346609 | N71: 959.4050479 | O71: 3326.984109 | P71: 5230533.689 | Q71: 14816.53642 | S71: 2035.126565 | T71: 0
A72: 497 | B72: Pioneer Valley Chinese Immersion Charter School | C72: C | D72: Hadley | E72: 492.66 | F72: 1278.663074 | G72: 940.6642106 | H72: 6824.736268 | I72: 552.7452807 | J72: 72.09000122 | K72: 300.1882231 | L72: 627.1706248 | M72: 1109.334511 | N72: 675.5574839 | O72: 3969.480128 | P72: 8055301.28 | Q72: 16350.62981 | S72: 1478.774408 | T72: 237.7664109
A73: 479 | B73: Pioneer Valley Performing Arts Charter Public School | C73: =VLOOKUP(A73, TYPE, 3, FALSE) -> C | D73: South Hadley | E73: 401.35 | F73: 1956.377227 | G73: 639.3845771 | H73: 5537.08733 | I73: 768.3916781 | J73: 130.7960633 | K73: 316.0956771 | L73: 609.2139031 | M73: 1335.557493 | N73: 868.5436651 | O73: 4586.114364 | P73: 6721634 | Q73: 16747.56198 | S73: 749.2861592 | T73: 234.7701507
A74: 487 | B74: Prospect Hill Academy Charter School | C74: C | D74: Somerville (K-6); Cambridge (7-12) | E74: 1150.76 | F74: 2097.481664 | G74: 2250.507491 | H74: 6066.321388 | I74: 1226.152282 | J74: 121.1442873 | K74: 1040.205603 | L74: 386.7551879 | M74: 663.1991032 | N74: 990.7269978 | O74: 5006.646912 | P74: 22841597.4 | Q74: 19849.14092 | S74: 1472.808405 | T74: 1184.414648
A75: 483 | B75: Rising Tide Charter Public School | C75: C | D75: Plymouth | E75: 661.53 | F75: 1053.018744 | G75: 1305.545357 | H75: 5550.888063 | I75: 76.04262845 | J75: 54.64083262 | K75: 260.2307378 | L75: 368.8262664 | M75: 1523.571448 | N75: 984.5911297 | O75: 3763.350324 | P75: 9883724.93 | Q75: 14940.70553 | S75: 302.4696386 | T75: 1349.56977
A76: 482 | B76: River Valley Charter School | C76: C | D76: Newburyport | E76: 288 | F76: 1691.284722 | G76: 846.1284722 | H76: 5078.024306 | I76: 1846.270833 | J76: 297.8472222 | K76: 744.0138889 | L76: 293.5486111 | M76: 650.8090278 | N76: 640.5 | O76: 3587 | P76: 4514523 | Q76: 15675.42708 | S76: 0 | T76: 1457.270833
A77: 484 | B77: Roxbury Preparatory Charter School | C77: C | D77: Boston | E77: 1407.31 | F77: 2631.698418 | G77: 2227.344544 | H77: 4489.150933 | I77: 405.7869268 | J77: 672.9480356 | K77: 871.7503606 | L77: 294.7680326 | M77: 1418.80467 | N77: 1024.800506 | O77: 3840.51133 | P77: 25159274.25 | Q77: 17877.56376 | S77: 1658.367382 | T77: 930.9397006
A78: 441 | B78: Sabis International Charter School | C78: C | D78: Springfield | E78: 1570.44 | F78: 1337.068535 | G78: 985.5425358 | H78: 3365.881651 | I78: 820.2370801 | J78: 149.0590854 | K78: 660.6786442 | L78: 653.5821808 | M78: 2344.202949 | N78: 778.9265047 | O78: 2777.475898 | P78: 21786172.42 | Q78: 13872.65506 | S78: 0 | T78: 1764.077596
A79: 485 | B79: Salem Academy Charter School | C79: C | D79: Salem | E79: 474.22 | F79: 1824.315255 | G79: 1158.137152 | H79: 5469.041943 | I79: 1385.354371 | J79: 117.8332841 | K79: 395.298933 | L79: 698.778879 | M79: 991.9181814 | N79: 873.2354182 | O79: 3860.955864 | P79: 7954978.51 | Q79: 16774.86928 | S79: 2351.206803 | T79: 235.4676521
A80: 486 | B80: Seven Hills Charter Public School | C80: C | D80: Worcester | E80: 664.53 | F80: 1107.345041 | G80: 735.0668894 | H80: 4428.362903 | I80: 1180.854138 | J80: 264.0573037 | K80: 513.1626864 | L80: 849.5628489 | M80: 2419.339985 | N80: 782.1302274 | O80: 2844.059711 | P80: 10050313 | Q80: 15123.94173 | S80: 1224.624923 | T80: 0
A81: 477 | B81: Silver Hill Horace Mann Charter School | C81: HM | D81: =VLOOKUP(A81, FACTS, 6, FALSE) -> Haverhill | E81: =VLOOKUP(A81, FTE, 2, FALSE) -> 558.5 | F81: 52.23921218 | G81: 379.222453 | H81: 5071.084047 | I81: 823.608308 | J81: 90.73634736 | K81: 129.3394628 | L81: 75.29572068 | M81: 150.6147538 | N81: 418.5029722 | O81: 1107.410385 | P81: 4634462.97 | Q81: =SUM(F81:O81) -> 8298.053662 | S81: 0 | T81: 0
A82: 474 | B82: Sizer School, A North Central Charter Essential School | C82: C | D82: Fitchburg | E82: 350.89 | F82: 1640.086409 | G82: 1124.246374 | H82: 5413.941891 | I82: 748.4869617 | J82: 82.07304283 | K82: 364.9568241 | L82: 1073.915244 | M82: 1413.889652 | N82: 1060.389125 | O82: 3835.248739 | P82: 5879945.93 | Q82: 16757.23426 | S82: 0.002849895979 | T82: 30.49950127
A83: 488 | B83: South Shore Charter Public School | C83: C | D83: Norwell | E83: 923.71 | F83: 1026.882896 | G83: 681.0351734 | H83: 5667.000899 | I83: 824.0768206 | J83: 107.3756915 | K83: 550.5180197 | L83: 383.2187591 | M83: 454.1479469 | N83: 683.0401316 | O83: 3049.68226 | P83: 12402634.4 | Q83: 13426.9786 | S83: 1238.852021 | T83: 235.6042481
A84: 3510 | B84: Springfield Preparatory Charter School | C84: C | D84: Springfield | E84: 210.37 | F84: =VLOOKUP($A84&100, FE, 12, FALSE)/$E84 -> 2249.034796 | G84: 901.633693 | H84: 4947.998431 | I84: 1016.746352 | J84: 267.2590198 | K84: 818.6253743 | L84: 117.7354185 | M84: 2975.027143 | N84: 166.9628749 | O84: 2419.921329 | P84: 3340874.28 | Q84: 15880.94443 | S84: 1135.599182 | T84: 40.8375719
A85: 489 | B85: Sturgis Charter Public School | C85: C | D85: Hyannis | E85: 819.11 | F85: 973.1696598 | G85: 756.4588395 | H85: 7703.108252 | I85: 538.7249576 | J85: 129.1816728 | K85: 521.4342396 | L85: 1056.419773 | M85: 956.8128823 | N85: 561.6339686 | O85: 1516.001514 | P85: 12051521 | Q85: =SUM(F85:O85) -> 14712.94576 | S85: 1786.817399 | T85: 64.02436791
A86: 480 | B86: UP Academy Charter School of Boston | C86: HM | D86: Boston | E86: 502.027027 | F86: 1217.360754 | G86: 2010.752331 | H86: 6147.961133 | I86: 344.3752043 | J86: 64.44232732 | K86: 455.5072291 | L86: 407.9449807 | M86: 1909.07682 | N86: 1278.009839 | O86: 2033.708277 | P86: 7966736.621 | Q86: 15869.1389 | S86: 0 | T86: 14.72430686
A87: 3505 | B87: UP Academy Charter School of Dorchester | C87: =VLOOKUP(A87, TYPE, 3, FALSE) -> HM | D87: =VLOOKUP(A87, FACTS, 6, FALSE) -> Boston | E87: =VLOOKUP(A87, FTE, 2, FALSE) -> 733.7201426 | F87: 938.3040481 | G87: 1576.288009 | H87: 5554.945629 | I87: 966.470389 | J87: 43.78272877 | K87: 397.6605971 | L87: 193.4076787 | M87: 1630.608458 | N87: 1291.166747 | O87: 1940.624194 | P87: 10663344.48 | Q87: =SUM(F87:O87) -> 14533.25848 | S87: 0 | T87: 59.31718032
A88: 498 | B88: Veritas Preparatory Charter School | C88: C | D88: Springfield | E88: 317.55 | F88: 2230.025413 | G88: 1399.31299 | H88: 5728.399748 | I88: 279.9952134 | J88: 294.044119 | K88: 663.3794363 | L88: 1081.349142 | M88: 2317.866667 | N88: 994.8588254 | O88: 3398.379279 | P88: 5838985.82 | Q88: 18387.61083 | S88: 1043.561896 | T88: 164.8605889
A90: C | B90: Commonwealth Charter Statewide Totals | C90: C | E90: =SUMIF(C9:C88,"C",E9:E88) -> 41223.8 | F90: =VLOOKUP($A90&100, FE, 12, FALSE)/$E90 -> 1682.53723 | G90: 1364.352835 | H90: 5106.461865 | I90: 948.0007331 | J90: 202.3014751 | K90: 601.531884 | L90: 535.1878426 | M90: 1692.929782 | N90: 986.9278904 | O90: 3547.829801 | P90: =VLOOKUP($A90&800,FE,12,FALSE)-VLOOKUP($A90&700,FE,12,FALSE)-VLOOKUP($A90&600,FE,12,FALSE) -> 687120827 | Q90: =SUM(F90:O90) -> 16668.06134 | S90: 904.500834 | T90: 867.4408366
A91: HM | B91: Horace Mann Charter Statewide Totals | C91: HM | E91: =SUMIF(C9:C88,"HM",E9:E88) -> 3909.833316 | F91: 1144.161402 | G91: 1165.828206 | H91: 6214.301871 | I91: 1013.877907 | J91: 194.2511633 | K91: 260.2251267 | L91: 471.6697887 | M91: 1588.249901 | N91: 876.4955365 | O91: 2033.437765 | P91: =VLOOKUP($A91&800,FE,12,FALSE)-VLOOKUP($A91&700,FE,12,FALSE)-VLOOKUP($A91&600,FE,12,FALSE) -> 58500875.78 | Q91: =SUM(F91:O91) -> 14962.49867 | S91: 130.5426495 | T91: =(VLOOKUP($A91&700, FE, 12, FALSE)-VLOOKUP($A91&740, FE, 12, FALSE)-VLOOKUP($A91&725, FE, 12, FALSE))/$E91 -> 13.02209222
A92: ALL | B92: All Charter Schools Statewide Totals | C92: ALL | E92: =SUM(E90:E91) -> 45133.63332 | F92: 1635.898846 | G92: 1347.155057 | H92: 5202.431754 | I92: 953.7075365 | J92: 201.6040932 | K92: 571.9651854 | L92: 529.685405 | M92: 1683.86158 | N92: 977.3613639 | O92: 3416.641151 | P92: =VLOOKUP($A92&800,FE,12,FALSE)-VLOOKUP($A92&700,FE,12,FALSE)-VLOOKUP($A92&600,FE,12,FALSE) -> 745621702.8 | Q92: 16520.31197 | S92: 837.454437 | T92: 793.4243077
F93: ----------------------------- Operating Expenditures Per Pupil In The Charter School -------------------------------------------
A94: Notes: | B94: 1. These figures do not include facilities lease costs -- see data presented at right.
B95: 2. The majority of charter schools lease their facilities. In many cases, Horace Mann charter schools are provided their facilities in kind by their host districts; some report a monetary figure for these in-kind revenues and expenditures, some do not.
B96: 3. Capital facilities costs include facilities-related long-term interest; depreciation of equipment, buildings, and grounds; bad debt or loss on disposal of assets; and other costs related to capital facilities acquisition.
B97: Charter schools that report significant costs in this category either own their buildings or have invested heavily in leasehold improvements.

Sheet 5. AVGTCHSAL
A1: Massachusetts Department of Elementary and Secondary Education
A2: FY18 Average Teacher Salaries
A3: =Index!B3 -> Last Updated: May 2019
A5: Return to Index
A6: Average teacher salaries are calculated from data submitted on the Charter School End of Year Financial Report. The calculation includes professional teachers paid from all funding sources, including tuition revenue, federal and state grants, and private grants/contributions. Beginning in FY08, the Educator Personnel Management Information System (EPIMS) was the source for the total number of theachers, which is shown in full-time equivalents (e.g., a teacher who worked half-time would count as .5 FTE's).
A8: LEA | B8: Charter School | C8: Type | D8: Location | E8: Total Salaries | F8: Total Teachers | G8: Average Salaries
A9: 445 | B9: Abby Kelley Foster Charter Public School | C9: =VLOOKUP(A9, TYPE, 3, FALSE) -> C | D9: =VLOOKUP(A9, FACTS, 6, FALSE) -> Worcester | E9: =VLOOKUP($A9&220, FE, 12, FALSE) -> 6501148 | F9: =VLOOKUP(A9, TEACHEREPIMS, 2, FALSE) -> 112.453 | G9: =E9/F9 -> 57812.13485
A10: 412 | B10: Academy of the Pacific Rim Charter Public School | C10: C | D10: Boston | E10: 3186790 | F10: 43.874 | G10: =E10/F10 -> 72635.04581
A11: 430 | B11: Advanced Math and Science Academy Charter School | C11: C | D11: Marlborough | E11: 5095314.27 | F11: 78.48 | G11: 64925.00344
A12: 409 | B12: Alma del Mar Charter School | C12: C | D12: New Bedford | E12: 2112800 | F12: 36.006 | G12: 58679.10904
A13: 3509 | B13: Argosy Collegiate Charter School | C13: C | D13: Fall River | E13: 1820882.82 | F13: 31.301 | G13: 58173.3114
A14: 491 | B14: Atlantis Charter School | C14: C | D14: Fall River | E14: 4365554 | F14: 90.052 | G14: 48478.14596
A15: 427 | B15: Barnstable Community Horace Mann Charter Public School | C15: HM | D15: Barnstable | E15: 1819894 | F15: 23 | G15: 79125.82609
A16: 3502 | B16: Baystate Academy Charter Public School | C16: C | D16: Springfield | E16: 2006181 | F16: 46.67 | G16: 42986.52239
A17: 420 | B17: Benjamin Banneker Charter Public School | C17: C | D17: Cambridge | E17: 1711734.12 | F17: 17.8 | G17: 96164.8382
A18: 447 | B18: Benjamin Franklin Classical Charter Public School | C18: C | D18: Franklin | E18: 2160462.56 | F18: 32.8 | G18: 65867.76098
A19: 3511 | B19: Bentley Academy Charter School | C19: HM | D19: Salem | E19: 1864611.863 | F19: 25.39 | G19: 73438.82878
A20: 414 | B20: Berkshire Arts and Technology Charter Public School | C20: C | D20: Adams | E20: 1612331.28 | F20: 31.771 | G20: 50748.52161
A21: 449 | B21: Boston Collegiate Charter School | C21: C | D21: Boston | E21: 4963431.18 | F21: 63.508 | G21: 78154.42432
A22: 424 | B22: Boston Day and Evening Academy Charter School | C22: HM | D22: Boston | E22: 2476913.74 | F22: 20.5 | G22: 120825.0605
A23: 411 | B23: Boston Green Academy Horace Mann Charter School | C23: HM | D23: Boston | E23: 3360572.14 | F23: 44.42 | G23: 75654.48312
A24: 416 | B24: Boston Preparatory Charter Public School | C24: C | D24: Boston | E24: 2661808 | F24: 44.304 | G24: 60080.53449
A25: 481 | B25: Boston Renaissance Charter Public School | C25: C | D25: Boston | E25: 5790278 | F25: 84.4 | G25: 68605.18957
A26: 417 | B26: Bridge Boston Charter School | C26: C | D26: Boston | E26: 1659935 | F26: 27.84 | G26: 59624.10201
A27: 428 | B27: Brooke Charter School | C27: C | D27: Boston | E27: 10583319.95 | F27: =VLOOKUP(A27, TEACHEREPIMS, 4, FALSE) -> 109.457 | G27: 96689.29306
A28: 432 | B28: Cape Cod Lighthouse Charter School | C28: C | D28: Harwich | E28: 1772927 | F28: =VLOOKUP(A28, TEACHEREPIMS, 4, FALSE) -> 22.5 | G28: 78796.75556
A29: 418 | B29: Christa McAuliffe Charter School | C29: C | D29: Framingham | E29: 2795082 | F29: 39.5 | G29: 70761.56962
A30: 437 | B30: City on a Hill Charter Public School Circuit Street | C30: C | D30: Boston | E30: 1646114 | F30: 26.7 | G30: 61652.20974
A31: 3504 | B31: City on a Hill Charter Public School Dudley Square | C31: C | D31: Boston | E31: 1488831.29 | F31: 22.95 | G31: 64872.82309
A32: 3507 | B32: City On A Hill Charter Public School New Bedford | C32: C | D32: New Bedford | E32: 898807 | F32: 17.3 | G32: 51954.16185
A33: 438 | B33: Codman Academy Charter Public School | C33: C | D33: Boston | E33: 1872453.52 | F33: 35.393 | G33: 52904.6286
A34: 3503 | B34: Collegiate Charter School of Lowell | C34: C | D34: Lowell | E34: 1816862.49 | F34: 35 | G34: 51910.35686
A35: 436 | B35: Community Charter School of Cambridge | C35: C | D35: Cambridge | E35: 2670944 | F35: 39.189 | G35: 68155.45178
A36: 426 | B36: Community Day Charter Public School - Gateway | C36: C | D36: Lawrence | E36: 1871113 | F36: 32.5 | G36: 57572.70769
A37: 440 | B37: Community Day Charter Public School - Prospect | C37: C | D37: Lawrence | E37: 2538181 | F37: 45.3 | G37: 56030.48565
A38: 431 | B38: Community Day Charter Public School - R. Kingman Webster | C38: C | D38: =VLOOKUP(A38, FACTS, 6, FALSE) -> Lawrence | E38: =VLOOKUP($A38&220, FE, 12, FALSE) -> 1773584 | F38: =VLOOKUP(A38, TEACHEREPIMS, 2, FALSE) -> 32.5 | G38: 54571.81538
A39: 439 | B39: Conservatory Lab Charter School | C39: C | D39: Boston | E39: 2214271.36 | F39: 24.25 | G39: 91310.15918
A40: 407 | B40: Dudley Street Neighborhood Charter School | C40: HM | D40: Boston | E40: 1751271.16 | F40: 19.5 | G40: 89808.77744
A41: 452 | B41: Edward M. Kennedy Academy for Health Careers: A Horace Mann Charter Public School | C41: =VLOOKUP(A41, TYPE, 3, FALSE) -> HM | D41: Boston | E41: 3029203 | F41: =VLOOKUP(A41, TEACHEREPIMS, 4, FALSE) -> 24.98 | G41: 121265.1321
A42: 410 | B42: Excel Academy Charter School | C42: C | D42: Boston/Chelsea | E42: 5845189.72 | F42: =VLOOKUP(A42, TEACHEREPIMS, 2, FALSE) -> 88.989 | G42: 65684.40729
A43: 413 | B43: Four Rivers Charter Public School | C43: C | D43: Greenfield | E43: 1356983 | F43: 21.127 | G43: 64229.80073
A44: 446 | B44: Foxborough Regional Charter School | C44: C | D44: Foxborough | E44: 5708095.13 | F44: 111.694 | G44: 51104.7606
A45: 478 | B45: Francis W. Parker Charter Essential School | C45: C | D45: Devens | E45: 2142739.99 | F45: 46.25 | G45: 46329.5133
A46: 496 | B46: Global Learning Charter Public School | C46: C | D46: New Bedford | E46: 2416304 | F46: 36.117 | G46: 66902.12365
A47: 499 | B47: Hampden Charter School of Science | C47: C | D47: Chicopee | E47: 2001035 | F47: 42.243 | G47: 47369.62337
A48: 419 | B48: Helen Y Davis Leadership Academy Charter Public School | C48: C | D48: Boston | E48: 1628610 | F48: 11.852 | G48: 137412.2511
A49: 455 | B49: Hill View Montessori Charter Public School | C49: C | D49: Haverhill | E49: 1105045.82 | F49: 24.072 | G49: 45905.85826
A50: 450 | B50: Hilltown Cooperative Charter Public School | C50: C | D50: East Hampton | E50: 1230482.78 | F50: 19.93 | G50: 61740.2298
A51: 453 | B51: Holyoke Community Charter School | C51: C | D51: Holyoke | E51: 2710005.57 | F51: 51.92 | G51: 52195.79295
A52: 435 | B52: Innovation Academy Charter School | C52: C | D52: Tyngsborough | E52: 4017135 | F52: 74.263 | G52: 54093.35739
A53: 463 | B53: KIPP Academy Boston Charter School | C53: C | D53: Boston | E53: 2932006.32 | F53: 51.1 | G53: 57377.81448
A54: 429 | B54: KIPP Academy Lynn Charter School | C54: C | D54: Lynn | E54: 6305484.28 | F54: 100.503 | G54: 62739.2643
A55: 454 | B55: Lawrence Family Development Charter School | C55: C | D55: Lawrence | E55: 3570936 | F55: 60.499 | G55: 59024.71115
A56: 3514 | B56: Libertas Academy Charter School (New school opening FY18) | C56: C | D56: Springfield | E56: 385856.98 | F56: 7.52 | G56: 51310.76862
A57: 456 | B57: Lowell Community Charter Public School | C57: C | D57: Lowell | E57: 4405039.92 | F57: 64.462 | G57: 68335.4522
A58: 458 | B58: Lowell Middlesex Academy Charter School | C58: C | D58: Lowell | E58: 849844.68 | F58: 10.5 | G58: 80937.58857
A59: 464 | B59: Marblehead Community Charter Public School | C59: C | D59: Marblehead | E59: 1261378 | F59: 22.3 | G59: 56564.03587
A60: 466 | B60: Martha's Vineyard Public Charter School | C60: C | D60: West Tisbury | E60: 1449705 | F60: 17.63 | G60: 82229.43846
A61: 492 | B61: Martin Luther King, Jr. Charter School of Excellence | C61: C | D61: Springfield | E61: 2502366.99 | F61: 35.791 | G61: 69916.09595
A62: 469 | B62: Match Charter Public School | C62: C | D62: Boston | E62: 7060036 | F62: 101.464 | G62: 69581.68414
A63: 470 | B63: Mystic Valley Regional Charter School | C63: C | D63: Malden | E63: 6299644 | F63: 95.797 | G63: 65760.3474
A64: 444 | B64: Neighborhood House Charter School | C64: C | D64: Boston | E64: 3018494 | F64: 57.85 | G64: 52177.94296
A65: 3513 | B65: New Heights Charter School of Brockton | C65: C | D65: Brockton | E65: 1441151 | F65: 26.201 | G65: 55003.66398
A66: 3515 | B66: Old Sturbridge Academy Charter Public School | C66: C | D66: Sturbridge | E66: 449373.22 | F66: 13.25 | G66: 33914.96
A67: 3501 | B67: Paulo Freire Social Justice Charter School | C67: C | D67: Holyoke | E67: 1707803.42 | F67: =VLOOKUP(A67, TEACHEREPIMS, 4, FALSE) -> 34.156 | G67: 50000.10013
A68: 493 | B68: Phoenix Academy Charter Public High School, Chelsea | C68: C | D68: =VLOOKUP(A68, FACTS, 6, FALSE) -> Chelsea | E68: =VLOOKUP($A68&220, FE, 12, FALSE) -> 670499 | F68: =VLOOKUP(A68, TEACHEREPIMS, 2, FALSE) -> 16.1 | G68: 41645.90062
A69: 3508 | B69: Phoenix Academy Public Charter High School, Springfield | C69: C | D69: Springfield | E69: 487914 | F69: 13.421 | G69: =E69/F69 -> 36354.51904
A70: 494 | B70: Pioneer Charter School of Science | C70: C | D70: Everett | E70: 3205964.04 | F70: 60.551 | G70: 52946.50856
A71: 3506 | B71: Pioneer Charter School of Science II | C71: C | D71: Saugus | E71: 1607612.9 | F71: 33.4 | G71: 48132.12275
A72: 497 | B72: Pioneer Valley Chinese Immersion Charter School | C72: C | D72: Hadley | E72: 3362274.57 | F72: 64.053 | G72: 52492.07016
A73: 479 | B73: Pioneer Valley Performing Arts Charter Public School | C73: =VLOOKUP(A73, TYPE, 3, FALSE) -> C | D73: South Hadley | E73: 2222310 | F73: 39.826 | G73: 55800.4821
A74: 487 | B74: Prospect Hill Academy Charter School | C74: C | D74: Somerville (K-6); Cambridge (7-12) | E74: 6980880 | F74: 111.263 | G74: 62742.15148
A75: 483 | B75: Rising Tide Charter Public School | C75: C | D75: Plymouth | E75: 3672078.98 | F75: 58.25 | G75: 63039.98249
A76: 482 | B76: River Valley Charter School | C76: C | D76: Newburyport | E76: 1462471 | F76: 20.751 | G76: 70477.13363
A77: 484 | B77: Roxbury Preparatory Charter School | C77: C | D77: Boston | E77: 6317627 | F77: 114.436 | G77: 55206.63952
A78: 441 | B78: Sabis International Charter School | C78: C | D78: Springfield | E78: 5285915.18 | F78: 65.4 | G78: 80824.39113
A79: 485 | B79: Salem Academy Charter School | C79: C | D79: =VLOOKUP(A79, FACTS, 6, FALSE) -> Salem | E79: 2593529.07 | F79: =VLOOKUP(A79, TEACHEREPIMS, 2, FALSE) -> 46.102 | G79: =E79/F79 -> 56256.32445
A80: 486 | B80: Seven Hills Charter Public School | C80: C | D80: Worcester | E80: 2942780 | F80: 34.75 | G80: 84684.31655
A81: 477 | B81: Silver Hill Horace Mann Charter School | C81: HM | D81: Haverhill | E81: 2832200.44 | F81: 36.2 | G81: 78237.58122
A82: 474 | B82: Sizer School, A North Central Charter Essential School | C82: C | D82: Fitchburg | E82: 1899698.07 | F82: 37.707 | G82: 50380.51476
A83: 488 | B83: South Shore Charter Public School | C83: C | D83: Norwell | E83: 5234665.4 | F83: 76.686 | G83: 68261.0307
A84: 3510 | B84: Springfield Preparatory Charter School | C84: C | D84: =VLOOKUP(A84, FACTS, 6, FALSE) -> Springfield | E84: 1040910.43 | F84: =VLOOKUP(A84, TEACHEREPIMS, 2, FALSE) -> 19.3 | G84: =E84/F84 -> 53933.1829
A85: 489 | B85: Sturgis Charter Public School | C85: C | D85: Hyannis | E85: 6309693 | F85: 85.094 | G85: 74149.68153
A86: 480 | B86: UP Academy Charter School of Boston | C86: HM | D86: Boston | E86: 3086442.65 | F86: 28.5 | G86: 108296.2333
A87: 3505 | B87: UP Academy Charter School of Dorchester | C87: =VLOOKUP(A87, TYPE, 3, FALSE) -> HM | D87: =VLOOKUP(A87, FACTS, 6, FALSE) -> Boston | E87: 4075775.499 | F87: =VLOOKUP(A87, TEACHEREPIMS, 2, FALSE) -> 41.01 | G87: =E87/F87 -> 99384.91828
A88: 498 | B88: Veritas Preparatory Charter School | C88: C | D88: Springfield | E88: 1819053.34 | F88: 31 | G88: 58679.14
A89: C | B89: Commonwealth Charter Statewide Totals | C89: C | E89: =VLOOKUP($A89&220, FE, 12, FALSE) -> 210507762.6 | F89: =SUMIF($C9:$C86,"C",F9:F86) -> 3348.368 | G89: =E89/F89 -> 62868.76551
A90: HM | B90: Horace Mann Charter Statewide Totals | C90: HM | E90: 24296884.49 | F90: =SUMIF($C9:$C86,"HM",F9:F86) -> 222.49 | G90: =E90/F90 -> 109204.3889
A91: ALL | B91: All Charter Schools Statewide Totals | C91: ALL | E91: 234804647.1 | F91: =SUM(F89:F90) -> 3570.858 | G91: =E91/F91 -> 65755.80634

Sheet BAL18 (hidden)
B1: 1 | C1: 2 | D1: 3 | E1: 4 | F1: 5 | G1: 6 | H1: 7 | I1: 8
A2: FY | B2: vlookup | C2: cha_code | D2: cha_type | E2: balance_id | F2: Line_Desc | G2: balance_sch | H2: balance_found | I2: balance_total
A3: 2018 | B3: =C3&E3 -> 40701 | C3: 407 | D3: =VLOOKUP(C3, TYPE, 3, FALSE) -> HM | E3: 01 | F3: Cash and Cash Equivalents | G3: 138919.54 | H3: 0 | I3: 138919.54 | J3: =D3&E3 -> HM01
A4: 2018 | B4: =C4&E4 -> 40702 | C4: 407 | D4: HM | E4: 02 | F4: Accounts Receivable net of doubtful accounts | G4: 0 | H4: 0 | I4: 0 | J4: =D4&E4 -> HM02
A5: 2018 | B5: 40703 | C5: 407 | D5: HM | E5: 03 | F5: Grants Receivable - State | G5: 292 | H5: 0 | I5: 292 | J5: HM03
A6: 2018 | B6: 40704 | C6: 407 | D6: HM | E6: 04 | F6: Grants Receivable - Federal | G6: 0 | H6: 0 | I6: 0 | J6: HM04
A7: 2018 | B7: 40705 | C7: 407 | D7: HM | E7: 05 | F7: Grants Receivable - Private | G7: 0 | H7: 0 | I7: 0 | J7: HM05
A8: 2018 | B8: 40706 | C8: 407 | D8: HM | E8: 06 | F8: Contributions Receivable | G8: 0 | H8: 0 | I8: 0 | J8: HM06
A9: 2018 | B9: 40707 | C9: 407 | D9: HM | E9: 07 | F9: Due from related parties | G9: 58699.09 | H9: 0 | I9: 58699.09 | J9: HM07
A10: 2018 | B10: 40708 | C10: 407 | D10: HM | E10: 08 | F10: Prepaid Expenses / Inventory | G10: 2258.44 | H10: 0 | I10: 2258.44 | J10: HM08
A11: 2018 | B11: 40709 | C11: 407 | D11: HM | E11: 09 | F11: Short-Term Investments | G11: 0 | H11: 0 | I11: 0 | J11: HM09
A12: 2018 | B12: 40710 | C12: 407 | D12: HM | E12: 10 | F12: Deposit (Security, Other) | G12: 0 | H12: 0 | I12: 0 | J12: HM10
A13: 2018 | B13: 40711 | C13: 407 | D13: HM | E13: 11 | F13: Restricted Current Assets | G13: 0 | H13: 0 | I13: 0 | J13: HM11
A14: 2018 | B14: 40712 | C14: 407 | D14: HM | E14: 12 | F14: TOTAL CURRENT ASSETS | G14: 200169.07 | H14: 0 | I14: 200169.07 | J14: HM12
A15: 2018 | B15: 40713 | C15: 407 | D15: HM | E15: 13 | F15: - Land and Buildings | G15: 0 | H15: 0 | I15: 0 | J15: HM13
A16: 2018 | B16: 40714 | C16: 407 | D16: HM | E16: 14 | F16: - Building/Leasehold Improvement | G16: 0 | H16: 0 | I16: 0 | J16: HM14
A17: 2018 | B17: 40715 | C17: 407 | D17: HM | E17: 15 | F17: - Furniture and Equipment | G17: 79774.3 | H17: 0 | I17: 79774.3 | J17: HM15
A18: 2018 | B18: 40716 | C18: 407 | D18: HM | E18: 16 | F18: - Less Accumulated Depreciation | G18: -79774.3 | H18: 0 | I18: -79774.3 | J18: HM16
A19: 2018 | B19: 40717 | C19: 407 | D19: HM | E19: 17 | F19: Net Capital Assets | G19: 0 | H19: 0 | I19: 0 | J19: HM17
A20: 2018 | B20: 40718 | C20: 407 | D20: HM | E20: 18 | F20: Restricted Noncurrent Assets | G20: 0 | H20: 0 | I20: 0 | J20: HM18
A21: 2018 | B21: 40719 | C21: 407 | D21: HM | E21: 19 | F21: Long-Term Investments | G21: 0 | H21: 0 | I21: 0 | J21: HM19
A22: 2018 | B22: 40720 | C22: 407 | D22: HM | E22: 20 | F22: Building Acquisition / Financing Costs / Deferred Expenses | G22: 0 | H22: 0 | I22: 0 | J22: HM20
A23: 2018 | B23: 40721 | C23: 407 | D23: HM | E23: 21 | F23: Long-Term Grants / Contributions Receivable | G23: 0 | H23: 0 | I23: 0 | J23: HM21
A24: 2018 | B24: 40722 | C24: 407 | D24: HM | E24: 22 | F24: TOTAL NONCURRENT ASSETS | G24: 0 | H24: 0 | I24: 0 | J24: HM22
A25: 2018 | B25: 40723 | C25: 407 | D25: HM | E25: 23 | F25: TOTAL ASSETS | G25: 200169 | H25: 0 | I25: 200169 | J25: HM23
A26: 2018 | B26: 40724 | C26: 407 | D26: HM | E26: 24 | F26: Accounts Payable | G26: 0 | H26: 0 | I26: 0 | J26: HM24
A27: 2018 | B27: 40725 | C27: 407 | D27: HM | E27: 25 | F27: Accrued Expenses / Accrued Payroll | G27: 39805 | H27: 0 | I27: 39805 | J27: HM25
A28: 2018 | B28: 40726 | C28: 407 | D28: HM | E28: 26 | F28: Deferred Revenue | G28: 0 | H28: 0 | I28: 0 | J28: HM26
A29: 2018 | B29: 40727 | C29: 407 | D29: HM | E29: 27 | F29: Due to related parties | G29: 0 | H29: 0 | I29: 0 | J29: HM27
A30: 2018 | B30: 40728 | C30: 407 | D30: HM | E30: 28 | F30: Current Debt Payable | G30: 0 | H30: 0 | I30: 0 | J30: HM28
A31: 2018 | B31: 40729 | C31: 407 | D31: HM | E31: 29 | F31: Current Lease Obligations Payable | G31: 0 | H31: 0 | I31: 0 | J31: HM29
A32: 2018 | B32: 40730 | C32: 407 | D32: HM | E32: 30 | F32: TOTAL CURRENT LIABILITIES | G32: 39805 | H32: 0 | I32: 39805 | J32: HM30
A33: 2018 | B33: 40731 | C33: 407 | D33: HM | E33: 31 | F33: Noncurrent Lease Obligations | G33: 0 | H33: 0 | I33: 0 | J33: HM31
A34: 2018 | B34: 40732 | C34: 407 | D34: HM | E34: 32 | F34: Long-Term Debt | G34: 0 | H34: 0 | I34: 0 | J34: HM32
A35: 2018 | B35: 40733 | C35: 407 | D35: HM | E35: 33 | F35: Deferred Revenue | G35: 0 | H35: 0 | I35: 0 | J35: HM33
A36: 2018 | B36: 40734 | C36: 407 | D36: HM | E36: 34 | F36: TOTAL NONCURRENT LIABILITIES | G36: 0 | H36: 0 | I36: 0 | J36: HM34
A37: 2018 | B37: 40735 | C37: 407 | D37: HM | E37: 35 | F37: TOTAL LIABILITIES | G37: 39805 | H37: 0 | I37: 39805 | J37: HM35
A38: 2018 | B38: 40736 | C38: 407 | D38: HM | E38: 36 | F38: Investment in capital assets (net of related debt) | G38: 0 | H38: 0 | I38: 0 | J38: HM36
A39: 2018 | B39: 40737 | C39: 407 | D39: HM | E39: 37 | F39: Temporarily Restricted | G39: 0 | H39: 0 | I39: 0 | J39: HM37
A40: 2018 | B40: 40738 | C40: 407 | D40: HM | E40: 38 | F40: Permanently Restricted | G40: 0 | H40: 0 | I40: 0 | J40: HM38
A41: 2018 | B41: 40739 | C41: 407 | D41: HM | E41: 39 | F41: Unrestricted (non-capital) | G41: 160364.36 | H41: 0 | I41: 160364.36 | J41: HM39
A42: 2018 | B42: 40740 | C42: 407 | D42: HM | E42: 40 | F42: TOTAL NET ASSETS | G42: 160364 | H42: 0 | I42: 160364 | J42: HM40
A43: 2018 | B43: 40741 | C43: 407 | D43: HM | E43: 41 | F43: TOTAL LIABILITIES AND NET ASSETS | G43: 200169 | H43: 0 | I43: 200169 | J43: HM41
A44: 2018 | B44: 40901 | C44: 409 | D44: C | E44: 01 | F44: Cash and Cash Equivalents | G44: 1965320 | H44: 1090615 | I44: 3055935 | J44: C01
A45: 2018 | B45: 40902 | C45: 409 | D45: C | E45: 02 | F45: Accounts Receivable net of doubtful accounts | G45: 14957.26 | H45: 0 | I45: 14957.26 | J45: C02
A46: 2018 | B46: 40903 | C46: 409 | D46: C | E46: 03 | F46: Grants Receivable - State | G46: 819.82 | H46: 0 | I46: 819.82 | J46: C03
A47: 2018 | B47: 40904 | C47: 409 | D47: C | E47: 04 | F47: Grants Receivable - Federal | G47: 43093.17 | H47: 0 | I47: 43093.17 | J47: C04
A48: 2018 | B48: 40905 | C48: 409 | D48: C | E48: 05 | F48: Grants Receivable - Private | G48: 0 | H48: 0 | I48: 0 | J48: C05
A49: 2018 | B49: 40906 | C49: 409 | D49: C | E49: 06 | F49: Contributions Receivable | G49: 0 | H49: 0 | I49: 0 | J49: C06
A50: 2018 | B50: 40907 | C50: 409 | D50: C | E50: 07 | F50: Due from related parties | G50: 27924 | H50: -27924 | I50: 0 | J50: C07
A51: 2018 | B51: 40908 | C51: 409 | D51: C | E51: 08 | F51: Prepaid Expenses / Inventory | G51: 61552 | H51: 3253 | I51: 64805 | J51: C08
A52: 2018 | B52: 40909 | C52: 409 | D52: C | E52: 09 | F52: Short-Term Investments | G52: 0 | H52: 0 | I52: 0 | J52: C09
A53: 2018 | B53: 40910 | C53: 409 | D53: C | E53: 10 | F53: Deposit (Security, Other) | G53: 0 | H53: 0 | I53: 0 | J53: C10
A54: 2018 | B54: 40911 | C54: 409 | D54: C | E54: 11 | F54: Restricted Current Assets | G54: 0 | H54: 130000 | I54: 130000 | J54: C11
A55: 2018 | B55: 40912 | C55: 409 | D55: C | E55: 12 | F55: TOTAL CURRENT ASSETS | G55: 2113666.25 | H55: 1195944 | I55: 3309610.25 | J55: C12
A56: 2018 | B56: 40913 | C56: 409 | D56: C | E56: 13 | F56: - Land and Buildings | G56: 0 | H56: 14752627 | I56: 14752627 | J56: C13
A57: 2018 | B57: 40914 | C57: 409 | D57: C | E57: 14 | F57: - Building/Leasehold Improvement | G57: 0 | H57: 0 | I57: 0 | J57: C14
A58: 2018 | B58: 40915 | C58: 409 | D58: C | E58: 15 | F58: - Furniture and Equipment | G58: 75846 | H58: 395165 | I58: 471011 | J58: C15
A59: 2018 | B59: 40916 | C59: 409 | D59: C | E59: 16 | F59: - Less Accumulated Depreciation | G59: -31610 | H59: -772883 | I59: -804493 | J59: C16
A60: 2018 | B60: 40917 | C60: 409 | D60: C | E60: 17 | F60: Net Capital Assets | G60: 44236 | H60: 14374909 | I60: 14419145 | J60: C17
A61: 2018 | B61: 40918 | C61: 409 | D61: C | E61: 18 | F61: Restricted Noncurrent Assets | G61: 0 | H61: 945 | I61: 945 | J61: C18
A62: 2018 | B62: 40919 | C62: 409 | D62: C | E62: 19 | F62: Long-Term Investments | G62: 0 | H62: 0 | I62: 0 | J62: C19
A63: 2018 | B63: 40920 | C63: 409 | D63: C | E63: 20 | F63: Building Acquisition / Financing Costs / Deferred Expenses | G63: 0 | H63: 0 | I63: 0 | J63: C20
A64: 2018 | B64: 40921 | C64: 409 | D64: C | E64: 21 | F64: Long-Term Grants / Contributions Receivable | G64: 0 | H64: 10042850 | I64: 10042850 | J64: C21
A65: 2018 | B65: 40922 | C65: 409 | D65: C | E65: 22 | F65: TOTAL NONCURRENT ASSETS | G65: 44236 | H65: 24418704 | I65: 24462940 | J65: C22
A66: 2018 | B66: 40923 | C66: 409 | D66: C | E66: 23 | F66: TOTAL ASSETS | G66: 2157902 | H66: 25614648 | I66: 27772550 | J66: C23
A67: 2018 | B67: 40924 | C67: 409 | D67: =VLOOKUP(C67, TYPE, 3, FALSE) -> C | E67: 24 | F67: Accounts Payable | G67: 90871 | H67: 0 | I67: 90871 | J67: C24
A68: 2018 | B68: =C68&E68 -> 40925 | C68: 409 | D68: C | E68: 25 | F68: Accrued Expenses / Accrued Payroll | G68: 248816 | H68: 15000 | I68: 263816 | J68: =D68&E68 -> C25
A69: 2018 | B69: 40926 | C69: 409 | D69: C | E69: 26 | F69: Deferred Revenue | G69: 0 | H69: 0 | I69: 0 | J69: C26
A70: 2018 | B70: 40927 | C70: 409 | D70: C | E70: 27 | F70: Due to related parties | G70: 0 | H70: 0 | I70: 0 | J70: C27
A71: 2018 | B71: 40928 | C71: 409 | D71: C | E71: 28 | F71: Current Debt Payable | G71: 0 | H71: 190482 | I71: 190482 | J71: C28
A72: 2018 | B72: 40929 | C72: 409 | D72: C | E72: 29 | F72: Current Lease Obligations Payable | G72: 0 | H72: 0 | I72: 0 | J72: C29
A73: 2018 | B73: 40930 | C73: 409 | D73: C | E73: 30 | F73: TOTAL CURRENT LIABILITIES | G73: 339687 | H73: 205482 | I73: 545169 | J73: C30
A74: 2018 | B74: 40931 | C74: 409 | D74: C | E74: 31 | F74: Noncurrent Lease Obligations | G74: 730339 | H74: -730339 | I74: 0 | J74: C31
A75: 2018 | B75: 40932 | C75: 409 | D75: C | E75: 32 | F75: Long-Term Debt | G75: 0 | H75: 23444557 | I75: 23444557 | J75: C32
A76: 2018 | B76: 40933 | C76: 409 | D76: C | E76: 33 | F76: Deferred Revenue | G76: 0 | H76: 0 | I76: 0 | J76: C33
A77: 2018 | B77: 40934 | C77: 409 | D77: C | E77: 34 | F77: TOTAL NONCURRENT LIABILITIES | G77: 730339 | H77: 22714218 | I77: 23444557 | J77: C34
A78: 2018 | B78: 40935 | C78: 409 | D78: C | E78: 35 | F78: TOTAL LIABILITIES | G78: 1070026 | H78: 22919700 | I78: 23989726 | J78: C35
A79: 2018 | B79: 40936 | C79: 409 | D79: C | E79: 36 | F79: Investment in capital assets (net of related debt) | G79: 44236 | H79: 251112 | I79: 295348 | J79: C36
A80: 2018 | B80: 40937 | C80: 409 | D80: C | E80: 37 | F80: Temporarily Restricted | G80: 0 | H80: 1002218 | I80: 1002218 | J80: C37
A81: 2018 | B81: 40938 | C81: 409 | D81: C | E81: 38 | F81: Permanently Restricted | G81: 0 | H81: 0 | I81: 0 | J81: C38
A82: 2018 | B82: 40939 | C82: 409 | D82: C | E82: 39 | F82: Unrestricted (non-capital) | G82: 1043640 | H82: 1441618 | I82: 2485258 | J82: C39
A83: 2018 | B83: 40940 | C83: 409 | D83: C | E83: 40 | F83: TOTAL NET ASSETS | G83: 1087876 | H83: 2694948 | I83: 3782824 | J83: C40
A84: 2018 | B84: 40941 | C84: 409 | D84: C | E84: 41 | F84: TOTAL LIABILITIES AND NET ASSETS | G84: 2157902 | H84: 25614648 | I84: 27772550 | J84: C41
A85: 2018 | B85: 41001 | C85: 410 | D85: C | E85: 01 | F85: Cash and Cash Equivalents | G85: 1983526 | H85: 2916952 | I85: 4900478 | J85: C01
A86: 2018 | B86: 41002 | C86: 410 | D86: C | E86: 02 | F86: Accounts Receivable net of doubtful accounts | G86: 35972 | H86: 35537 | I86: 71509 | J86: C02
A87: 2018 | B87: 41003 | C87: 410 | D87: C | E87: 03 | F87: Grants Receivable - State | G87: 195711 | H87: 0 | I87: 195711 | J87: C03
A88: 2018 | B88: 41004 | C88: 410 | D88: C | E88: 04 | F88: Grants Receivable - Federal | G88: 498900 | H88: 0 | I88: 498900 | J88: C04
A89: 2018 | B89: 41005 | C89: 410 | D89: C | E89: 05 | F89: Grants Receivable - Private | G89: 10000 | H89: 590858 | I89: 600858 | J89: C05
A90: 2018 | B90: 41006 | C90: 410 | D90: C | E90: 06 | F90: Contributions Receivable | G90: 0 | H90: 0 | I90: 0 | J90: C06
A91: 2018 | B91: 41007 | C91: 410 | D91: C | E91: 07 | F91: Due from related parties | G91: -2377286 | H91: 2377286 | I91: 0 | J91: C07
A92: 2018 | B92: 41008 | C92: 410 | D92: C | E92: 08 | F92: Prepaid Expenses / Inventory | G92: 326102 | H92: 0 | I92: 326102 | J92: C08
A93: 2018 | B93: 41009 | C93: 410 | D93: C | E93: 09 | F93: Short-Term Investments | G93: 0 | H93: 0 | I93: 0 | J93: C09
A94: 2018 | B94: 41010 | C94: 410 | D94: C | E94: 10 | F94: Deposit (Security, Other) | G94: 0 | H94: 37050 | I94: 37050 | J94: C10
A95: 2018 | B95: 41011 | C95: 410 | D95: C | E95: 11 | F95: Restricted Current Assets | G95: 0 | H95: 0 | I95: 0 | J95: C11
A96: 2018 | B96: 41012 | C96: 410 | D96: C | E96: 12 | F96: TOTAL CURRENT ASSETS | G96: 672925 | H96: 5957683 | I96: 6630608 | J96: C12
A97: 2018 | B97: 41013 | C97: 410 | D97: C | E97: 13 | F97: - Land and Buildings | G97: 30567361 | H97: 2208803 | I97: 32776164 | J97: C13
A98: 2018 | B98: 41014 | C98: 410 | D98: C | E98: 14 | F98: - Building/Leasehold Improvement | G98: 1031007 | H98: 0 | I98: 1031007 | J98: C14
A99: 2018 | B99: 41015 | C99: 410 | D99: C | E99: 15 | F99: - Furniture and Equipment | G99: 1109768 | H99: 0 | I99: 1109768 | J99: C15
A100: 2018 | B100: 41016 | C100: 410 | D100: C | E100: 16 | F100: - Less Accumulated Depreciation | G100: -2612925 | H100: 0 | I100: -2612925 | J100: C16
A101: 2018 | B101: 41017 | C101: 410 | D101: C | E101: 17 | F101: Net Capital Assets | G101: 30095211 | H101: 2208803 | I101: 32304014 | J101: C17
A102: 2018 | B102: 41018 | C102: 410 | D102: C | E102: 18 | F102: Restricted Noncurrent Assets | G102: 999878 | H102: 258105 | I102: 1257983 | J102: C18
A103: 2018 | B103: 41019 | C103: 410 | D103: C | E103: 19 | F103: Long-Term Investments | G103: 0 | H103: 0 | I103: 0 | J103: C19
A104: 2018 | B104: 41020 | C104: 410 | D104: C | E104: 20 | F104: Building Acquisition / Financing Costs / Deferred Expenses | G104: -9645524 | H104: 9645524 | I104: 0 | J104: C20
A105: 2018 | B105: 41021 | C105: 410 | D105: C | E105: 21 | F105: Long-Term Grants / Contributions Receivable | G105: 0 | H105: 6667775 | I105: 6667775 | J105: C21
A106: 2018 | B106: 41022 | C106: 410 | D106: C | E106: 22 | F106: TOTAL NONCURRENT ASSETS | G106: 21449565 | H106: 18780207 | I106: 40229772 | J106: C22
A107: 2018 | B107: 41023 | C107: 410 | D107: C | E107: 23 | F107: TOTAL ASSETS | G107: 22122490 | H107: 24737890 | I107: 46860380 | J107: C23
A108: 2018 | B108: 41024 | C108: 410 | D108: C | E108: 24 | F108: Accounts Payable | G108: 568942 | H108: 488528 | I108: 1057470 | J108: C24
A109: 2018 | B109: 41025 | C109: 410 | D109: C | E109: 25 | F109: Accrued Expenses / Accrued Payroll | G109: 845852 | H109: 10844 | I109: 856696 | J109: C25
A110: 2018 | B110: 41026 | C110: 410 | D110: C | E110: 26 | F110: Deferred Revenue | G110: 0 | H110: 0 | I110: 0 | J110: C26
A111: 2018 | B111: 41027 | C111: 410 | D111: C | E111: 27 | F111: Due to related parties | G111: 0 | H111: 0 | I111: 0 | J111: C27
A112: 2018 | B112: 41028 | C112: 410 | D112: C | E112: 28 | F112: Current Debt Payable | G112: 541424 | H112: 249097 | I112: 790521 | J112: C28
A113: 2018 | B113: 41029 | C113: 410 | D113: C | E113: 29 | F113: Current Lease Obligations Payable | G113: 0 | H113: 0 | I113: 0 | J113: C29
A114: 2018 | B114: 41030 | C114: 410 | D114: C | E114: 30 | F114: TOTAL CURRENT LIABILITIES | G114: 1956218 | H114: 748469 | I114: 2704687 | J114: C30
A115: 2018 | B115: 41031 | C115: 410 | D115: C | E115: 31 | F115: Noncurrent Lease Obligations | G115: 166974 | H115: 0 | I115: 166974 | J115: C31
A116: 2018 | B116: 41032 | C116: 410 | D116: C | E116: 32 | F116: Long-Term Debt | G116: 21120498 | H116: 12438605 | I116: 33559103 | J116: C32
A117: 2018 | B117: 41033 | C117: 410 | D117: C | E117: 33 | F117: Deferred Revenue | G117: 0 | H117: 320000 | I117: 320000 | J117: C33
A118: 2018 | B118: 41034 | C118: 410 | D118: C | E118: 34 | F118: TOTAL NONCURRENT LIABILITIES | G118: 21287472 | H118: 12758605 | I118: 34046077 | J118: C34
A119: 2018 | B119: 41035 | C119: 410 | D119: C | E119: 35 | F119: TOTAL LIABILITIES | G119: 23243690 | H119: 13507074 | I119: 36750764 | J119: C35
A120: 2018 | B120: 41036 | C120: 410 | D120: C | E120: 36 | F120: Investment in capital assets (net of related debt) | G120: -1173648 | H120: 6045292 | I120: 4871644 | J120: C36
A121: 2018 | B121: 41037 | C121: 410 | D121: C | E121: 37 | F121: Temporarily Restricted | G121: 12755 | H121: 874566 | I121: 887321 | J121: C37
A122: 2018 | B122: 41038 | C122: 410 | D122: C | E122: 38 | F122: Permanently Restricted | G122: 0 | H122: 0 | I122: 0 | J122: C38
A123: 2018 | B123: 41039 | C123: 410 | D123: C | E123: 39 | F123: Unrestricted (non-capital) | G123: 39693 | H123: 4310958 | I123: 4350651 | J123: C39
A124: 2018 | B124: 41040 | C124: 410 | D124: C | E124: 40 | F124: TOTAL NET ASSETS | G124: -1121200 | H124: 11230816 | I124: 10109616 | J124: C40
A125: 2018 | B125: 41041 | C125: 410 | D125: C | E125: 41 | F125: TOTAL LIABILITIES AND NET ASSETS | G125: 22122490 | H125: 24737890 | I125: 46860380 | J125: C41
A126: 2018 | B126: 41101 | C126: 411 | D126: HM | E126: 01 | F126: Cash and Cash Equivalents | G126: 203143 | H126: 56845 | I126: 259988 | J126: HM01
A127: 2018 | B127: 41102 | C127: 411 | D127: HM | E127: 02 | F127: Accounts Receivable net of doubtful accounts | G127: 0 | H127: 0 | I127: 0 | J127: HM02
A128: 2018 | B128: 41103 | C128: 411 | D128: HM | E128: 03 | F128: Grants Receivable - State | G128: 1799 | H128: 0 | I128: 1799 | J128: HM03
A129: 2018 | B129: 41104 | C129: 411 | D129: HM | E129: 04 | F129: Grants Receivable - Federal | G129: 176355.27 | H129: 0 | I129: 176355.27 | J129: HM04
A130: 2018 | B130: 41105 | C130: 411 | D130: HM | E130: 05 | F130: Grants Receivable - Private | G130: 0 | H130: 0 | I130: 0 | J130: HM05
A131: 2018 | B131: 41106 | C131: 411 | D131: =VLOOKUP(C131, TYPE, 3, FALSE) -> HM | E131: 06 | F131: Contributions Receivable | G131: 0 | H131: 0 | I131: 0 | J131: HM06
A132: 2018 | B132: =C132&E132 -> 41107 | C132: 411 | D132: HM | E132: 07 | F132: Due from related parties | G132: -210880 | H132: 210880 | I132: 0 | J132: =D132&E132 -> HM07
A133: 2018 | B133: 41108 | C133: 411 | D133: HM | E133: 08 | F133: Prepaid Expenses / Inventory | G133: 21544 | H133: 0 | I133: 21544 | J133: HM08
A134: 2018 | B134: 41109 | C134: 411 | D134: HM | E134: 09 | F134: Short-Term Investments | G134: 0 | H134: 0 | I134: 0 | J134: HM09
A135: 2018 | B135: 41110 | C135: 411 | D135: HM | E135: 10 | F135: Deposit (Security, Other) | G135: 0 | H135: 0 | I135: 0 | J135: HM10
A136: 2018 | B136: 41111 | C136: 411 | D136: HM | E136: 11 | F136: Restricted Current Assets | G136: 0 | H136: 0 | I136: 0 | J136: HM11
A137: 2018 | B137: 41112 | C137: 411 | D137: HM | E137: 12 | F137: TOTAL CURRENT ASSETS | G137: 191961.27 | H137: 267725 | I137: 459686.27 | J137: HM12
A138: 2018 | B138: 41113 | C138: 411 | D138: HM | E138: 13 | F138: - Land and Buildings | G138: 0 | H138: 0 | I138: 0 | J138: HM13
A139: 2018 | B139: 41114 | C139: 411 | D139: HM | E139: 14 | F139: - Building/Leasehold Improvement | G139: 0 | H139: 0 | I139: 0 | J139: HM14
A140: 2018 | B140: 41115 | C140: 411 | D140: HM | E140: 15 | F140: - Furniture and Equipment | G140: 120997 | H140: 0 | I140: 120997 | J140: HM15
A141: 2018 | B141: 41116 | C141: 411 | D141: HM | E141: 16 | F141: - Less Accumulated Depreciation | G141: -62700 | H141: 0 | I141: -62700 | J141: HM16
A142: 2018 | B142: 41117 | C142: 411 | D142: HM | E142: 17 | F142: Net Capital Assets | G142: 58297 | H142: 0 | I142: 58297 | J142: HM17
A143: 2018 | B143: 41118 | C143: 411 | D143: HM | E143: 18 | F143: Restricted Noncurrent Assets | G143: 0 | H143: 0 | I143: 0 | J143: HM18
A144: 2018 | B144: 41119 | C144: 411 | D144: HM | E144: 19 | F144: Long-Term Investments | G144: 0 | H144: 0 | I144: 0 | J144: HM19
A145: 2018 | B145: 41120 | C145: 411 | D145: HM | E145: 20 | F145: Building Acquisition / Financing Costs / Deferred Expenses | G145: 0 | H145: 0 | I145: 0 | J145: HM20
A146: 2018 | B146: 41121 | C146: 411 | D146: HM | E146: 21 | F146: Long-Term Grants / Contributions Receivable | G146: 0 | H146: 0 | I146: 0 | J146: HM21
A147: 2018 | B147: 41122 | C147: 411 | D147: HM | E147: 22 | F147: TOTAL NONCURRENT ASSETS | G147: 58297 | H147: 0 | I147: 58297 | J147: HM22
A148: 2018 | B148: 41123 | C148: 411 | D148: HM | E148: 23 | F148: TOTAL ASSETS | G148: 250258 | H148: 267725 | I148: 517983 | J148: HM23
A149: 2018 | B149: 41124 | C149: 411 | D149: HM | E149: 24 | F149: Accounts Payable | G149: 11880 | H149: 0 | I149: 11880 | J149: HM24
A150: 2018 | B150: 41125 | C150: 411 | D150: HM | E150: 25 | F150: Accrued Expenses / Accrued Payroll | G150: 0 | H150: 0 | I150: 0 | J150: HM25
A151: 2018 | B151: 41126 | C151: 411 | D151: HM | E151: 26 | F151: Deferred Revenue | G151: 0 | H151: 0 | I151: 0 | J151: HM26
A152: 2018 | B152: 41127 | C152: 411 | D152: HM | E152: 27 | F152: Due to related parties | G152: 0 | H152: 0 | I152: 0 | J152: HM27
A153: 2018 | B153: 41128 | C153: 411 | D153: HM | E153: 28 | F153: Current Debt Payable | G153: 0 | H153: 0 | I153: 0 | J153: HM28
A154: 2018 | B154: 41129 | C154: 411 | D154: HM | E154: 29 | F154: Current Lease Obligations Payable | G154: 0 | H154: 0 | I154: 0 | J154: HM29
A155: 2018 | B155: 41130 | C155: 411 | D155: HM | E155: 30 | F155: TOTAL CURRENT LIABILITIES | G155: 11880 | H155: 0 | I155: 11880 | J155: HM30
A156: 2018 | B156: 41131 | C156: 411 | D156: HM | E156: 31 | F156: Noncurrent Lease Obligations | G156: 0 | H156: 0 | I156: 0 | J156: HM31
A157: 2018 | B157: 41132 | C157: 411 | D157: HM | E157: 32 | F157: Long-Term Debt | G157: 0 | H157: 0 | I157: 0 | J157: HM32
A158: 2018 | B158: 41133 | C158: 411 | D158: HM | E158: 33 | F158: Deferred Revenue | G158: 0 | H158: 0 | I158: 0 | J158: HM33
A159: 2018 | B159: 41134 | C159: 411 | D159: HM | E159: 34 | F159: TOTAL NONCURRENT LIABILITIES | G159: 0 | H159: 0 | I159: 0 | J159: HM34
A160: 2018 | B160: 41135 | C160: 411 | D160: HM | E160: 35 | F160: TOTAL LIABILITIES | G160: 11880 | H160: 0 | I160: 11880 | J160: HM35
A161: 2018 | B161: 41136 | C161: 411 | D161: HM | E161: 36 | F161: Investment in capital assets (net of related debt) | G161: 58297 | H161: 0 | I161: 58297 | J161: HM36
A162: 2018 | B162: 41137 | C162: 411 | D162: HM | E162: 37 | F162: Temporarily Restricted | G162: 0 | H162: 22978 | I162: 22978 | J162: HM37
A163: 2018 | B163: 41138 | C163: 411 | D163: HM | E163: 38 | F163: Permanently Restricted | G163: 0 | H163: 0 | I163: 0 | J163: HM38
A164: 2018 | B164: 41139 | C164: 411 | D164: HM | E164: 39 | F164: Unrestricted (non-capital) | G164: 180081 | H164: 244747 | I164: 424828 | J164: HM39
A165: 2018 | B165: 41140 | C165: 411 | D165: HM | E165: 40 | F165: TOTAL NET ASSETS | G165: 238378 | H165: 267725 | I165: 506103 | J165: HM40
A166: 2018 | B166: 41141 | C166: 411 | D166: HM | E166: 41 | F166: TOTAL LIABILITIES AND NET ASSETS | G166: 250258 | H166: 267725 | I166: 517983 | J166: HM41
A167: 2018 | B167: 41201 | C167: 412 | D167: C | E167: 01 | F167: Cash and Cash Equivalents | G167: 3919974 | H167: 331410 | I167: 4251384 | J167: C01
A168: 2018 | B168: 41202 | C168: 412 | D168: C | E168: 02 | F168: Accounts Receivable net of doubtful accounts | G168: 0 | H168: 0 | I168: 0 | J168: C02
A169: 2018 | B169: 41203 | C169: 412 | D169: C | E169: 03 | F169: Grants Receivable - State | G169: 0 | H169: 0 | I169: 0 | J169: C03
A170: 2018 | B170: 41204 | C170: 412 | D170: C | E170: 04 | F170: Grants Receivable - Federal | G170: 92973 | H170: 0 | I170: 92973 | J170: C04
A171: 2018 | B171: 41205 | C171: 412 | D171: C | E171: 05 | F171: Grants Receivable - Private | G171: 0 | H171: 0 | I171: 0 | J171: C05
A172: 2018 | B172: 41206 | C172: 412 | D172: C | E172: 06 | F172: Contributions Receivable | G172: 0 | H172: 0 | I172: 0 | J172: C06
A173: 2018 | B173: 41207 | C173: 412 | D173: C | E173: 07 | F173: Due from related parties | G173: 167225 | H173: 0 | I173: 167225 | J173: C07
A174: 2018 | B174: 41208 | C174: 412 | D174: C | E174: 08 | F174: Prepaid Expenses / Inventory | G174: 20268 | H174: 0 | I174: 20268 | J174: C08
A175: 2018 | B175: 41209 | C175: 412 | D175: C | E175: 09 | F175: Short-Term Investments | G175: 0 | H175: 13831 | I175: 13831 | J175: C09
A176: 2018 | B176: 41210 | C176: 412 | D176: C | E176: 10 | F176: Deposit (Security, Other) | G176: 19040 | H176: 0 | I176: 19040 | J176: C10
A177: 2018 | B177: 41211 | C177: 412 | D177: C | E177: 11 | F177: Restricted Current Assets | G177: 0 | H177: 0 | I177: 0 | J177: C11
A178: 2018 | B178: 41212 | C178: 412 | D178: C | E178: 12 | F178: TOTAL CURRENT ASSETS | G178: 4219480 | H178: 345241 | I178: 4564721 | J178: C12
A179: 2018 | B179: 41213 | C179: 412 | D179: C | E179: 13 | F179: - Land and Buildings | G179: 5000000 | H179: 0 | I179: 5000000 | J179: C13
A180: 2018 | B180: 41214 | C180: 412 | D180: C | E180: 14 | F180: - Building/Leasehold Improvement | G180: 11923113 | H180: 0 | I180: 11923113 | J180: C14
A181: 2018 | B181: 41215 | C181: 412 | D181: C | E181: 15 | F181: - Furniture and Equipment | G181: 2149706 | H181: 0 | I181: 2149706 | J181: C15
A182: 2018 | B182: 41216 | C182: 412 | D182: C | E182: 16 | F182: - Less Accumulated Depreciation | G182: -7084030 | H182: 0 | I182: -7084030 | J182: C16
A183: 2018 | B183: 41217 | C183: 412 | D183: C | E183: 17 | F183: Net Capital Assets | G183: 11988789 | H183: 0 | I183: 11988789 | J183: C17
A184: 2018 | B184: 41218 | C184: 412 | D184: C | E184: 18 | F184: Restricted Noncurrent Assets | G184: 6223173 | H184: 0 | I184: 6223173 | J184: C18
A185: 2018 | B185: 41219 | C185: 412 | D185: C | E185: 19 | F185: Long-Term Investments | G185: 408418 | H185: 0 | I185: 408418 | J185: C19
A186: 2018 | B186: 41220 | C186: 412 | D186: C | E186: 20 | F186: Building Acquisition / Financing Costs / Deferred Expenses | G186: 0 | H186: 0 | I186: 0 | J186: C20
A187: 2018 | B187: 41221 | C187: 412 | D187: C | E187: 21 | F187: Long-Term Grants / Contributions Receivable | G187: 173804 | H187: 0 | I187: 173804 | J187: C21
A188: 2018 | B188: 41222 | C188: 412 | D188: C | E188: 22 | F188: TOTAL NONCURRENT ASSETS | G188: 18794184 | H188: 0 | I188: 18794184 | J188: C22
A189: 2018 | B189: 41223 | C189: 412 | D189: C | E189: 23 | F189: TOTAL ASSETS | G189: 23013664 | H189: 345241 | I189: 23358905 | J189: C23
A190: 2018 | B190: 41224 | C190: 412 | D190: C | E190: 24 | F190: Accounts Payable | G190: 186868 | H190: 0 | I190: 186868 | J190: C24
A191: 2018 | B191: 41225 | C191: 412 | D191: C | E191: 25 | F191: Accrued Expenses / Accrued Payroll | G191: 554764 | H191: 0 | I191: 554764 | J191: C25
A192: 2018 | B192: 41226 | C192: 412 | D192: C | E192: 26 | F192: Deferred Revenue | G192: 0 | H192: 0 | I192: 0 | J192: C26
A193: 2018 | B193: 41227 | C193: 412 | D193: C | E193: 27 | F193: Due to related parties | G193: 0 | H193: 167225 | I193: 167225 | J193: C27
A194: 2018 | B194: 41228 | C194: 412 | D194: C | E194: 28 | F194: Current Debt Payable | G194: 209958 | H194: 0 | I194: 209958 | J194: C28
A195: 2018 | B195: 41229 | C195: 412 | D195: =VLOOKUP(C195, TYPE, 3, FALSE) -> C | E195: 29 | F195: Current Lease Obligations Payable | G195: 0 | H195: 0 | I195: 0 | J195: C29
A196: 2018 | B196: =C196&E196 -> 41230 | C196: 412 | D196: C | E196: 30 | F196: TOTAL CURRENT LIABILITIES | G196: 951590 | H196: 167225 | I196: 1118815 | J196: =D196&E196 -> C30
A197: 2018 | B197: 41231 | C197: 412 | D197: C | E197: 31 | F197: Noncurrent Lease Obligations | G197: 0 | H197: 0 | I197: 0 | J197: C31
A198: 2018 | B198: 41232 | C198: 412 | D198: C | E198: 32 | F198: Long-Term Debt | G198: 14978334 | H198: 0 | I198: 14978334 | J198: C32
A199: 2018 | B199: 41233 | C199: 412 | D199: C | E199: 33 | F199: Deferred Revenue | G199: 0 | H199: 0 | I199: 0 | J199: C33
A200: 2018 | B200: 41234 | C200: 412 | D200: C | E200: 34 | F200: TOTAL NONCURRENT LIABILITIES | G200: 14978334 | H200: 0 | I200: 14978334 | J200: C34
... 3289 more rows

Sheet INC18 (hidden)
B1: 1 | C1: 2 | D1: 3 | E1: 4 | F1: 5 | G1: 6 | H1: 7 | I1: 8
A2: FY | B2: vlookup | C2: cha_code | D2: cha_type | E2: income_id | F2: Line_Desc | G2: income_sch | H2: income_found | I2: income_total
A3: 2018 | B3: =C3&E3 -> 40701 | C3: 407 | D3: =VLOOKUP(C3, TYPE, 3, FALSE) -> HM | E3: 01 | F3: Tuition | G3: 3783707.88 | H3: 0 | I3: 3783707.88 | J3: =D3&E3 -> HM01
A4: 2018 | B4: =C4&E4 -> 40702a | C4: 407 | D4: HM | E4: 02a | F4: Grants - State - passed through ESE | G4: 0 | H4: 0 | I4: 0 | J4: =D4&E4 -> HM02a
A5: 2018 | B5: 40702b | C5: 407 | D5: HM | E5: 02b | F5: Grants - State - other non-ESE pass-through | G5: 0 | H5: 0 | I5: 0 | J5: HM02b
A6: 2018 | B6: 40703 | C6: 407 | D6: HM | E6: 03 | F6: Grants - Federal - Passed through ESE | G6: 326803 | H6: 0 | I6: 326803 | J6: HM03
A7: 2018 | B7: 40704 | C7: 407 | D7: HM | E7: 04 | F7: Grants - Federal - Direct or other pass-through | G7: 0 | H7: 0 | I7: 0 | J7: HM04
A8: 2018 | B8: 40705a | C8: 407 | D8: HM | E8: 05a | F8: Grants - Private (restricted) | G8: 0 | H8: 0 | I8: 0 | J8: HM05a
A9: 2018 | B9: 40705b | C9: 407 | D9: HM | E9: 05b | F9: Grants - Private (unrestricted) | G9: 0 | H9: 0 | I9: 0 | J9: HM05b
A10: 2018 | B10: 40706 | C10: 407 | D10: HM | E10: 06 | F10: Nutrition Funding - State | G10: 0 | H10: 0 | I10: 0 | J10: HM06
A11: 2018 | B11: 40707 | C11: 407 | D11: HM | E11: 07 | F11: Nutrition Funding - Federal | G11: 0 | H11: 0 | I11: 0 | J11: HM07
A12: 2018 | B12: 40708 | C12: 407 | D12: HM | E12: 08 | F12: Nutrition Funding - Fees | G12: 0 | H12: 0 | I12: 0 | J12: HM08
A13: 2018 | B13: 40709 | C13: 407 | D13: HM | E13: 09 | F13: Other Program / Student Activity Fees | G13: 0 | H13: 0 | I13: 0 | J13: HM09
A14: 2018 | B14: 40710 | C14: 407 | D14: HM | E14: 10 | F14: Regional Transportation Aid | G14: 0 | H14: 0 | I14: 0 | J14: HM10
A15: 2018 | B15: 40711 | C15: 407 | D15: HM | E15: 11 | F15: Medicaid Reimbursements | G15: 0 | H15: 0 | I15: 0 | J15: HM11
A16: 2018 | B16: 40712 | C16: 407 | D16: HM | E16: 12 | F16: Circuit Breaker Reimbursements | G16: 0 | H16: 0 | I16: 0 | J16: HM12
A17: 2018 | B17: 40713a | C17: 407 | D17: HM | E17: 13a | F17: Contributions, in-kind, host district | G17: 0 | H17: 0 | I17: 0 | J17: HM13a
A18: 2018 | B18: 40713b | C18: 407 | D18: HM | E18: 13b | F18: Contributions, in-kind, other | G18: 1096252.28 | H18: 0 | I18: 1096252.28 | J18: HM13b
A19: 2018 | B19: 40713c | C19: 407 | D19: HM | E19: 13c | F19: Contributions, on-behalf, pension | G19: 0 | H19: 0 | I19: 0 | J19: HM13c
A20: 2018 | B20: 40714 | C20: 407 | D20: HM | E20: 14 | F20: Contributions, from Component Unit (restricted) | G20: 0 | H20: 0 | I20: 0 | J20: HM14
A21: 2018 | B21: 40714b | C21: 407 | D21: HM | E21: 14b | F21: Contributions, from Component Unit (unrestricted) | G21: 0 | H21: 0 | I21: 0 | J21: HM14b
A22: 2018 | B22: 40715 | C22: 407 | D22: HM | E22: 15 | F22: Contributions / Fundraising (restricted) | G22: 0 | H22: 0 | I22: 0 | J22: HM15
A23: 2018 | B23: 40715b | C23: 407 | D23: HM | E23: 15b | F23: Contributions / Fundraising (unrestricted) | G23: 0 | H23: 0 | I23: 0 | J23: HM15b
A24: 2018 | B24: 40716 | C24: 407 | D24: HM | E24: 16 | F24: Interest / Investment Income (restricted) | G24: 0 | H24: 0 | I24: 0 | J24: HM16
A25: 2018 | B25: 40716a | C25: 407 | D25: HM | E25: 16a | F25: Interest / Investment Income (unrestricted) | G25: 0 | H25: 0 | I25: 0 | J25: HM16a
A26: 2018 | B26: 40717 | C26: 407 | D26: HM | E26: 17 | F26: Rental Income | G26: 0 | H26: 0 | I26: 0 | J26: HM17
A27: 2018 | B27: 40718 | C27: 407 | D27: HM | E27: 18 | F27: Loan Forgiveness or Other Reimbursement | G27: 0 | H27: 0 | I27: 0 | J27: HM18
A28: 2018 | B28: 40719 | C28: 407 | D28: HM | E28: 19 | F28: Miscellaneous Income | G28: 3165.18 | H28: 0 | I28: 3165.18 | J28: HM19
A29: 2018 | B29: 40720 | C29: 407 | D29: HM | E29: 20 | F29: TOTAL REVENUES | G29: 5209928.34 | H29: 0 | I29: 5209928.34 | J29: HM20
A30: 2018 | B30: 40721 | C30: 407 | D30: HM | E30: 21 | F30: Administration | G30: 1155767.38 | H30: 0 | I30: 1155767.38 | J30: HM21
A31: 2018 | B31: 40722 | C31: 407 | D31: HM | E31: 22 | F31: Instructional Services | G31: 2500475.21 | H31: 0 | I31: 2500475.21 | J31: HM22
A32: 2018 | B32: 40723 | C32: 407 | D32: HM | E32: 23 | F32: Pupil Services | G32: 544247.84 | H32: 0 | I32: 544247.84 | J32: HM23
A33: 2018 | B33: 40724 | C33: 407 | D33: HM | E33: 24 | F33: Operation & Maintenance of Plant | G33: 170100.38 | H33: 0 | I33: 170100.38 | J33: HM24
A34: 2018 | B34: 40725 | C34: 407 | D34: HM | E34: 25 | F34: Benefits and Other Fixed Charges | G34: 878105.65 | H34: 0 | I34: 878105.65 | J34: HM25
A35: 2018 | B35: 40726 | C35: 407 | D35: HM | E35: 26 | F35: Community Services | G35: 0 | H35: 0 | I35: 0 | J35: HM26
A36: 2018 | B36: 40727 | C36: 407 | D36: HM | E36: 27 | F36: Non-Operating Financing Expenses | G36: 0 | H36: 0 | I36: 0 | J36: HM27
A37: 2018 | B37: 40728 | C37: 407 | D37: HM | E37: 28 | F37: Component Unit Expenses | G37: 0 | H37: 0 | I37: 0 | J37: HM28
A38: 2018 | B38: 40729 | C38: 407 | D38: HM | E38: 29 | F38: Contributions to School | G38: 0 | H38: 0 | I38: 0 | J38: HM29
A39: 2018 | B39: 40730 | C39: 407 | D39: HM | E39: 30 | F39: TOTAL EXPENSES | G39: 5248696.46 | H39: 0 | I39: 5248696.46 | J39: HM30
A40: 2018 | B40: 40731 | C40: 407 | D40: HM | E40: 31 | F40: TOTAL GAIN/(LOSS) | G40: -38768.12 | H40: 0 | I40: -38768.12 | J40: HM31
A41: 2018 | B41: 40732 | C41: 407 | D41: HM | E41: 32 | F41: Gain/Loss on Sale of Asset or Lease Transaction | G41: 0 | H41: 0 | I41: 0 | J41: HM32
A42: 2018 | B42: 40733 | C42: 407 | D42: HM | E42: 33 | F42: Other Gain/Loss | G42: 0 | H42: 0 | I42: 0 | J42: HM33
A43: 2018 | B43: 40734 | C43: 407 | D43: HM | E43: 34 | F43: TOTAL CHANGES IN NET ASSETS: | G43: -38768.12 | H43: 0 | I43: -38768.12 | J43: HM34
A44: 2018 | B44: 40735 | C44: 407 | D44: HM | E44: 35 | F44: NET ASSETS AT BEGINNING OF YEAR | G44: 199132.51 | H44: 0 | I44: 199132.51 | J44: HM35
A45: 2018 | B45: 40736 | C45: 407 | D45: HM | E45: 36 | F45: NET ASSETS AT END OF YEAR | G45: 160364 | H45: 0 | I45: 160364 | J45: HM36
A46: 2018 | B46: 40901 | C46: 409 | D46: C | E46: 01 | F46: Tuition | G46: 4977366 | H46: 0 | I46: 4977366 | J46: C01
A47: 2018 | B47: 40902a | C47: 409 | D47: C | E47: 02a | F47: Grants - State - passed through ESE | G47: 0 | H47: 0 | I47: 0 | J47: C02a
A48: 2018 | B48: 40902b | C48: 409 | D48: C | E48: 02b | F48: Grants - State - other non-ESE pass-through | G48: 200 | H48: 0 | I48: 200 | J48: C02b
A49: 2018 | B49: 40903 | C49: 409 | D49: C | E49: 03 | F49: Grants - Federal - Passed through ESE | G49: 335742 | H49: 0 | I49: 335742 | J49: C03
A50: 2018 | B50: 40904 | C50: 409 | D50: C | E50: 04 | F50: Grants - Federal - Direct or other pass-through | G50: 0 | H50: 0 | I50: 0 | J50: C04
A51: 2018 | B51: 40905a | C51: 409 | D51: C | E51: 05a | F51: Grants - Private (restricted) | G51: 86842 | H51: 53923 | I51: 140765 | J51: C05a
A52: 2018 | B52: 40905b | C52: 409 | D52: C | E52: 05b | F52: Grants - Private (unrestricted) | G52: 71.65 | H52: 46000 | I52: 46071.65 | J52: C05b
A53: 2018 | B53: 40906 | C53: 409 | D53: C | E53: 06 | F53: Nutrition Funding - State | G53: 3277 | H53: 0 | I53: 3277 | J53: C06
A54: 2018 | B54: 40907 | C54: 409 | D54: C | E54: 07 | F54: Nutrition Funding - Federal | G54: 231377 | H54: 0 | I54: 231377 | J54: C07
A55: 2018 | B55: 40908 | C55: 409 | D55: C | E55: 08 | F55: Nutrition Funding - Fees | G55: 0 | H55: 0 | I55: 0 | J55: C08
A56: 2018 | B56: 40909 | C56: 409 | D56: C | E56: 09 | F56: Other Program / Student Activity Fees | G56: 0 | H56: 0 | I56: 0 | J56: C09
A57: 2018 | B57: 40910 | C57: 409 | D57: C | E57: 10 | F57: Regional Transportation Aid | G57: 0 | H57: 0 | I57: 0 | J57: C10
A58: 2018 | B58: 40911 | C58: 409 | D58: C | E58: 11 | F58: Medicaid Reimbursements | G58: 23431 | H58: 0 | I58: 23431 | J58: C11
A59: 2018 | B59: 40912 | C59: 409 | D59: C | E59: 12 | F59: Circuit Breaker Reimbursements | G59: 0 | H59: 0 | I59: 0 | J59: C12
A60: 2018 | B60: 40913a | C60: 409 | D60: C | E60: 13a | F60: Contributions, in-kind, host district | G60: 745908 | H60: 0 | I60: 745908 | J60: C13a
A61: 2018 | B61: 40913b | C61: 409 | D61: C | E61: 13b | F61: Contributions, in-kind, other | G61: 0 | H61: 0 | I61: 0 | J61: C13b
A62: 2018 | B62: 40913c | C62: 409 | D62: C | E62: 13c | F62: Contributions, on-behalf, pension | G62: 592666 | H62: 0 | I62: 592666 | J62: C13c
A63: 2018 | B63: 40914 | C63: 409 | D63: C | E63: 14 | F63: Contributions, from Component Unit (restricted) | G63: 0 | H63: 0 | I63: 0 | J63: C14
A64: 2018 | B64: 40914b | C64: 409 | D64: C | E64: 14b | F64: Contributions, from Component Unit (unrestricted) | G64: 679430 | H64: 0 | I64: 679430 | J64: C14b
A65: 2018 | B65: 40915 | C65: 409 | D65: C | E65: 15 | F65: Contributions / Fundraising (restricted) | G65: 0 | H65: 87576 | I65: 87576 | J65: C15
A66: 2018 | B66: 40915b | C66: 409 | D66: C | E66: 15b | F66: Contributions / Fundraising (unrestricted) | G66: 0 | H66: 258473 | I66: 258473 | J66: C15b
A67: 2018 | B67: 40916 | C67: 409 | D67: =VLOOKUP(C67, TYPE, 3, FALSE) -> C | E67: 16 | F67: Interest / Investment Income (restricted) | G67: 0 | H67: 0 | I67: 0 | J67: C16
A68: 2018 | B68: =C68&E68 -> 40916a | C68: 409 | D68: C | E68: 16a | F68: Interest / Investment Income (unrestricted) | G68: 1261 | H68: 105570.9 | I68: 106831.9 | J68: =D68&E68 -> C16a
A69: 2018 | B69: 40917 | C69: 409 | D69: C | E69: 17 | F69: Rental Income | G69: 0 | H69: 658893 | I69: 658893 | J69: C17
A70: 2018 | B70: 40918 | C70: 409 | D70: C | E70: 18 | F70: Loan Forgiveness or Other Reimbursement | G70: 0 | H70: 0 | I70: 0 | J70: C18
A71: 2018 | B71: 40919 | C71: 409 | D71: C | E71: 19 | F71: Miscellaneous Income | G71: 1823 | H71: 492603 | I71: 494426 | J71: C19
A72: 2018 | B72: 40920 | C72: 409 | D72: C | E72: 20 | F72: TOTAL REVENUES | G72: 7679394.65 | H72: 1703038.9 | I72: 9382433.55 | J72: C20
A73: 2018 | B73: 40921 | C73: 409 | D73: C | E73: 21 | F73: Administration | G73: 626892 | H73: 0 | I73: 626892 | J73: C21
A74: 2018 | B74: 40922 | C74: 409 | D74: C | E74: 22 | F74: Instructional Services | G74: 3411471.5 | H74: 0 | I74: 3411471.5 | J74: C22
A75: 2018 | B75: 40923 | C75: 409 | D75: C | E75: 23 | F75: Pupil Services | G75: 1206884 | H75: 0 | I75: 1206884 | J75: C23
A76: 2018 | B76: 40924 | C76: 409 | D76: C | E76: 24 | F76: Operation & Maintenance of Plant | G76: 285307 | H76: 0 | I76: 285307 | J76: C24
A77: 2018 | B77: 40925 | C77: 409 | D77: C | E77: 25 | F77: Benefits and Other Fixed Charges | G77: 1065575 | H77: 0 | I77: 1065575 | J77: C25
A78: 2018 | B78: 40926 | C78: 409 | D78: C | E78: 26 | F78: Community Services | G78: 3148 | H78: 0 | I78: 3148 | J78: C26
A79: 2018 | B79: 40927 | C79: 409 | D79: C | E79: 27 | F79: Non-Operating Financing Expenses | G79: 1165746 | H79: 0 | I79: 1165746 | J79: C27
A80: 2018 | B80: 40928 | C80: 409 | D80: C | E80: 28 | F80: Component Unit Expenses | G80: 0 | H80: 1068430 | I80: 1068430 | J80: C28
A81: 2018 | B81: 40929 | C81: 409 | D81: C | E81: 29 | F81: Contributions to School | G81: 0 | H81: 766272 | I81: 766272 | J81: C29
A82: 2018 | B82: 40930 | C82: 409 | D82: C | E82: 30 | F82: TOTAL EXPENSES | G82: 7765023.5 | H82: 1834702 | I82: 9599725.5 | J82: C30
A83: 2018 | B83: 40931 | C83: 409 | D83: C | E83: 31 | F83: TOTAL GAIN/(LOSS) | G83: -85628.85 | H83: -131663.1 | I83: -217291.95 | J83: C31
A84: 2018 | B84: 40932 | C84: 409 | D84: C | E84: 32 | F84: Gain/Loss on Sale of Asset or Lease Transaction | G84: 0 | H84: 0 | I84: 0 | J84: C32
A85: 2018 | B85: 40933 | C85: 409 | D85: C | E85: 33 | F85: Other Gain/Loss | G85: 0 | H85: -10000 | I85: -10000 | J85: C33
A86: 2018 | B86: 40934 | C86: 409 | D86: C | E86: 34 | F86: TOTAL CHANGES IN NET ASSETS: | G86: -85628.85 | H86: -141663.1 | I86: -227291.95 | J86: C34
A87: 2018 | B87: 40935 | C87: 409 | D87: C | E87: 35 | F87: NET ASSETS AT BEGINNING OF YEAR | G87: 1173505 | H87: 2836611 | I87: 4010116 | J87: C35
A88: 2018 | B88: 40936 | C88: 409 | D88: C | E88: 36 | F88: NET ASSETS AT END OF YEAR | G88: 1087876 | H88: 2694948 | I88: 3782824 | J88: C36
A89: 2018 | B89: 41001 | C89: 410 | D89: C | E89: 01 | F89: Tuition | G89: 16675863 | H89: 0 | I89: 16675863 | J89: C01
A90: 2018 | B90: 41002a | C90: 410 | D90: C | E90: 02a | F90: Grants - State - passed through ESE | G90: 0 | H90: 0 | I90: 0 | J90: C02a
A91: 2018 | B91: 41002b | C91: 410 | D91: C | E91: 02b | F91: Grants - State - other non-ESE pass-through | G91: 0 | H91: 0 | I91: 0 | J91: C02b
A92: 2018 | B92: 41003 | C92: 410 | D92: C | E92: 03 | F92: Grants - Federal - Passed through ESE | G92: 1091492 | H92: 0 | I92: 1091492 | J92: C03
A93: 2018 | B93: 41004 | C93: 410 | D93: C | E93: 04 | F93: Grants - Federal - Direct or other pass-through | G93: 0 | H93: 0 | I93: 0 | J93: C04
A94: 2018 | B94: 41005a | C94: 410 | D94: C | E94: 05a | F94: Grants - Private (restricted) | G94: 217242 | H94: 0 | I94: 217242 | J94: C05a
A95: 2018 | B95: 41005b | C95: 410 | D95: C | E95: 05b | F95: Grants - Private (unrestricted) | G95: 0 | H95: 0 | I95: 0 | J95: C05b
A96: 2018 | B96: 41006 | C96: 410 | D96: C | E96: 06 | F96: Nutrition Funding - State | G96: 11903 | H96: 0 | I96: 11903 | J96: C06
A97: 2018 | B97: 41007 | C97: 410 | D97: C | E97: 07 | F97: Nutrition Funding - Federal | G97: 516488 | H97: 0 | I97: 516488 | J97: C07
A98: 2018 | B98: 41008 | C98: 410 | D98: C | E98: 08 | F98: Nutrition Funding - Fees | G98: 29939 | H98: 0 | I98: 29939 | J98: C08
A99: 2018 | B99: 41009 | C99: 410 | D99: C | E99: 09 | F99: Other Program / Student Activity Fees | G99: 66783 | H99: 0 | I99: 66783 | J99: C09
A100: 2018 | B100: 41010 | C100: 410 | D100: C | E100: 10 | F100: Regional Transportation Aid | G100: 183010.45 | H100: 0 | I100: 183010.45 | J100: C10
A101: 2018 | B101: 41011 | C101: 410 | D101: C | E101: 11 | F101: Medicaid Reimbursements | G101: 172170 | H101: 0 | I101: 172170 | J101: C11
A102: 2018 | B102: 41012 | C102: 410 | D102: C | E102: 12 | F102: Circuit Breaker Reimbursements | G102: 0 | H102: 0 | I102: 0 | J102: C12
A103: 2018 | B103: 41013a | C103: 410 | D103: C | E103: 13a | F103: Contributions, in-kind, host district | G103: 120732 | H103: 0 | I103: 120732 | J103: C13a
A104: 2018 | B104: 41013b | C104: 410 | D104: C | E104: 13b | F104: Contributions, in-kind, other | G104: 846 | H104: 0 | I104: 846 | J104: C13b
A105: 2018 | B105: 41013c | C105: 410 | D105: C | E105: 13c | F105: Contributions, on-behalf, pension | G105: 2800371 | H105: 0 | I105: 2800371 | J105: C13c
A106: 2018 | B106: 41014 | C106: 410 | D106: C | E106: 14 | F106: Contributions, from Component Unit (restricted) | G106: 12500 | H106: 0 | I106: 12500 | J106: C14
A107: 2018 | B107: 41014b | C107: 410 | D107: C | E107: 14b | F107: Contributions, from Component Unit (unrestricted) | G107: 675000 | H107: 0 | I107: 675000 | J107: C14b
A108: 2018 | B108: 41015 | C108: 410 | D108: C | E108: 15 | F108: Contributions / Fundraising (restricted) | G108: 0 | H108: 315168 | I108: 315168 | J108: C15
A109: 2018 | B109: 41015b | C109: 410 | D109: C | E109: 15b | F109: Contributions / Fundraising (unrestricted) | G109: 5500 | H109: 1353083 | I109: 1358583 | J109: C15b
A110: 2018 | B110: 41016 | C110: 410 | D110: C | E110: 16 | F110: Interest / Investment Income (restricted) | G110: 0 | H110: 0 | I110: 0 | J110: C16
A111: 2018 | B111: 41016a | C111: 410 | D111: C | E111: 16a | F111: Interest / Investment Income (unrestricted) | G111: 7131 | H111: 352547 | I111: 359678 | J111: C16a
A112: 2018 | B112: 41017 | C112: 410 | D112: C | E112: 17 | F112: Rental Income | G112: 795872 | H112: 1024210 | I112: 1820082 | J112: C17
A113: 2018 | B113: 41018 | C113: 410 | D113: C | E113: 18 | F113: Loan Forgiveness or Other Reimbursement | G113: 0 | H113: 0 | I113: 0 | J113: C18
A114: 2018 | B114: 41019 | C114: 410 | D114: C | E114: 19 | F114: Miscellaneous Income | G114: 334451.55 | H114: 0 | I114: 334451.55 | J114: C19
A115: 2018 | B115: 41020 | C115: 410 | D115: C | E115: 20 | F115: TOTAL REVENUES | G115: 23717294 | H115: 3045008 | I115: 26762302 | J115: C20
A116: 2018 | B116: 41021 | C116: 410 | D116: C | E116: 21 | F116: Administration | G116: 2273631.681 | H116: 0 | I116: 2273631.681 | J116: C21
A117: 2018 | B117: 41022 | C117: 410 | D117: C | E117: 22 | F117: Instructional Services | G117: 11492853.09 | H117: 0 | I117: 11492853.09 | J117: C22
A118: 2018 | B118: 41023 | C118: 410 | D118: C | E118: 23 | F118: Pupil Services | G118: 1699321.228 | H118: 0 | I118: 1699321.228 | J118: C23
A119: 2018 | B119: 41024 | C119: 410 | D119: C | E119: 24 | F119: Operation & Maintenance of Plant | G119: 987284 | H119: 0 | I119: 987284 | J119: C24
A120: 2018 | B120: 41025 | C120: 410 | D120: C | E120: 25 | F120: Benefits and Other Fixed Charges | G120: 4028717 | H120: 0 | I120: 4028717 | J120: C25
A121: 2018 | B121: 41026 | C121: 410 | D121: C | E121: 26 | F121: Community Services | G121: 0 | H121: 0 | I121: 0 | J121: C26
A122: 2018 | B122: 41027 | C122: 410 | D122: C | E122: 27 | F122: Non-Operating Financing Expenses | G122: 3200850 | H122: 0 | I122: 3200850 | J122: C27
A123: 2018 | B123: 41028 | C123: 410 | D123: C | E123: 28 | F123: Component Unit Expenses | G123: 0 | H123: 1614584 | I123: 1614584 | J123: C28
A124: 2018 | B124: 41029 | C124: 410 | D124: C | E124: 29 | F124: Contributions to School | G124: 0 | H124: 872379 | I124: 872379 | J124: C29
A125: 2018 | B125: 41030 | C125: 410 | D125: C | E125: 30 | F125: TOTAL EXPENSES | G125: 23682657 | H125: 2486963 | I125: 26169620 | J125: C30
A126: 2018 | B126: 41031 | C126: 410 | D126: C | E126: 31 | F126: TOTAL GAIN/(LOSS) | G126: 34637.00082 | H126: 558045 | I126: 592682.0008 | J126: C31
A127: 2018 | B127: 41032 | C127: 410 | D127: C | E127: 32 | F127: Gain/Loss on Sale of Asset or Lease Transaction | G127: 0 | H127: 0 | I127: 0 | J127: C32
A128: 2018 | B128: 41033 | C128: 410 | D128: C | E128: 33 | F128: Other Gain/Loss | G128: 0 | H128: 0 | I128: 0 | J128: C33
A129: 2018 | B129: 41034 | C129: 410 | D129: C | E129: 34 | F129: TOTAL CHANGES IN NET ASSETS: | G129: 34637.00082 | H129: 558045 | I129: 592682.0008 | J129: C34
A130: 2018 | B130: 41035 | C130: 410 | D130: C | E130: 35 | F130: NET ASSETS AT BEGINNING OF YEAR | G130: -1155837 | H130: 10672771 | I130: 9516934 | J130: C35
A131: 2018 | B131: 41036 | C131: 410 | D131: =VLOOKUP(C131, TYPE, 3, FALSE) -> C | E131: 36 | F131: NET ASSETS AT END OF YEAR | G131: -1121200 | H131: 11230816 | I131: 10109616 | J131: C36
A132: 2018 | B132: =C132&E132 -> 41101 | C132: 411 | D132: HM | E132: 01 | F132: Tuition | G132: 4953474 | H132: 0 | I132: 4953474 | J132: =D132&E132 -> HM01
A133: 2018 | B133: 41102a | C133: 411 | D133: HM | E133: 02a | F133: Grants - State - passed through ESE | G133: 0 | H133: 0 | I133: 0 | J133: HM02a
A134: 2018 | B134: 41102b | C134: 411 | D134: HM | E134: 02b | F134: Grants - State - other non-ESE pass-through | G134: 4575 | H134: 0 | I134: 4575 | J134: HM02b
A135: 2018 | B135: 41103 | C135: 411 | D135: HM | E135: 03 | F135: Grants - Federal - Passed through ESE | G135: 644987 | H135: 0 | I135: 644987 | J135: HM03
A136: 2018 | B136: 41104 | C136: 411 | D136: HM | E136: 04 | F136: Grants - Federal - Direct or other pass-through | G136: 0 | H136: 0 | I136: 0 | J136: HM04
A137: 2018 | B137: 41105a | C137: 411 | D137: HM | E137: 05a | F137: Grants - Private (restricted) | G137: 0 | H137: 0 | I137: 0 | J137: HM05a
A138: 2018 | B138: 41105b | C138: 411 | D138: HM | E138: 05b | F138: Grants - Private (unrestricted) | G138: 67530 | H138: 55000 | I138: 122530 | J138: HM05b
A139: 2018 | B139: 41106 | C139: 411 | D139: HM | E139: 06 | F139: Nutrition Funding - State | G139: 0 | H139: 0 | I139: 0 | J139: HM06
A140: 2018 | B140: 41107 | C140: 411 | D140: HM | E140: 07 | F140: Nutrition Funding - Federal | G140: 0 | H140: 0 | I140: 0 | J140: HM07
A141: 2018 | B141: 41108 | C141: 411 | D141: HM | E141: 08 | F141: Nutrition Funding - Fees | G141: 0 | H141: 0 | I141: 0 | J141: HM08
A142: 2018 | B142: 41109 | C142: 411 | D142: HM | E142: 09 | F142: Other Program / Student Activity Fees | G142: 0 | H142: 0 | I142: 0 | J142: HM09
A143: 2018 | B143: 41110 | C143: 411 | D143: HM | E143: 10 | F143: Regional Transportation Aid | G143: 0 | H143: 0 | I143: 0 | J143: HM10
A144: 2018 | B144: 41111 | C144: 411 | D144: HM | E144: 11 | F144: Medicaid Reimbursements | G144: 0 | H144: 0 | I144: 0 | J144: HM11
A145: 2018 | B145: 41112 | C145: 411 | D145: HM | E145: 12 | F145: Circuit Breaker Reimbursements | G145: 0 | H145: 0 | I145: 0 | J145: HM12
A146: 2018 | B146: 41113a | C146: 411 | D146: HM | E146: 13a | F146: Contributions, in-kind, host district | G146: 2029667 | H146: 0 | I146: 2029667 | J146: HM13a
A147: 2018 | B147: 41113b | C147: 411 | D147: HM | E147: 13b | F147: Contributions, in-kind, other | G147: 0 | H147: 0 | I147: 0 | J147: HM13b
A148: 2018 | B148: 41113c | C148: 411 | D148: HM | E148: 13c | F148: Contributions, on-behalf, pension | G148: 0 | H148: 0 | I148: 0 | J148: HM13c
A149: 2018 | B149: 41114 | C149: 411 | D149: HM | E149: 14 | F149: Contributions, from Component Unit (restricted) | G149: 0 | H149: 0 | I149: 0 | J149: HM14
A150: 2018 | B150: 41114b | C150: 411 | D150: HM | E150: 14b | F150: Contributions, from Component Unit (unrestricted) | G150: 0 | H150: 0 | I150: 0 | J150: HM14b
A151: 2018 | B151: 41115 | C151: 411 | D151: HM | E151: 15 | F151: Contributions / Fundraising (restricted) | G151: 13316 | H151: 0 | I151: 13316 | J151: HM15
A152: 2018 | B152: 41115b | C152: 411 | D152: HM | E152: 15b | F152: Contributions / Fundraising (unrestricted) | G152: 3972 | H152: 54583 | I152: 58555 | J152: HM15b
A153: 2018 | B153: 41116 | C153: 411 | D153: HM | E153: 16 | F153: Interest / Investment Income (restricted) | G153: 0 | H153: 0 | I153: 0 | J153: HM16
A154: 2018 | B154: 41116a | C154: 411 | D154: HM | E154: 16a | F154: Interest / Investment Income (unrestricted) | G154: 95 | H154: 869 | I154: 964 | J154: HM16a
A155: 2018 | B155: 41117 | C155: 411 | D155: HM | E155: 17 | F155: Rental Income | G155: 0 | H155: 0 | I155: 0 | J155: HM17
A156: 2018 | B156: 41118 | C156: 411 | D156: HM | E156: 18 | F156: Loan Forgiveness or Other Reimbursement | G156: 0 | H156: 0 | I156: 0 | J156: HM18
A157: 2018 | B157: 41119 | C157: 411 | D157: HM | E157: 19 | F157: Miscellaneous Income | G157: 0 | H157: 0 | I157: 0 | J157: HM19
A158: 2018 | B158: 41120 | C158: 411 | D158: HM | E158: 20 | F158: TOTAL REVENUES | G158: 7717616 | H158: 110452 | I158: 7828068 | J158: HM20
A159: 2018 | B159: 41121 | C159: 411 | D159: HM | E159: 21 | F159: Administration | G159: 552627.91 | H159: 0 | I159: 552627.91 | J159: HM21
A160: 2018 | B160: 41122 | C160: 411 | D160: HM | E160: 22 | F160: Instructional Services | G160: 5070165.39 | H160: 0 | I160: 5070165.39 | J160: HM22
A161: 2018 | B161: 41123 | C161: 411 | D161: HM | E161: 23 | F161: Pupil Services | G161: 437565.46 | H161: 0 | I161: 437565.46 | J161: HM23
A162: 2018 | B162: 41124 | C162: 411 | D162: HM | E162: 24 | F162: Operation & Maintenance of Plant | G162: 453828.82 | H162: 0 | I162: 453828.82 | J162: HM24
A163: 2018 | B163: 41125 | C163: 411 | D163: HM | E163: 25 | F163: Benefits and Other Fixed Charges | G163: 1198204.09 | H163: 0 | I163: 1198204.09 | J163: HM25
A164: 2018 | B164: 41126 | C164: 411 | D164: HM | E164: 26 | F164: Community Services | G164: 0 | H164: 0 | I164: 0 | J164: HM26
A165: 2018 | B165: 41127 | C165: 411 | D165: HM | E165: 27 | F165: Non-Operating Financing Expenses | G165: 0 | H165: 0 | I165: 0 | J165: HM27
A166: 2018 | B166: 41128 | C166: 411 | D166: HM | E166: 28 | F166: Component Unit Expenses | G166: 0 | H166: 65000 | I166: 65000 | J166: HM28
A167: 2018 | B167: 41129 | C167: 411 | D167: HM | E167: 29 | F167: Contributions to School | G167: 0 | H167: 0 | I167: 0 | J167: HM29
A168: 2018 | B168: 41130 | C168: 411 | D168: HM | E168: 30 | F168: TOTAL EXPENSES | G168: 7712391.67 | H168: 65000 | I168: 7777391.67 | J168: HM30
A169: 2018 | B169: 41131 | C169: 411 | D169: HM | E169: 31 | F169: TOTAL GAIN/(LOSS) | G169: 5224.33 | H169: 45452 | I169: 50676.33 | J169: HM31
A170: 2018 | B170: 41132 | C170: 411 | D170: HM | E170: 32 | F170: Gain/Loss on Sale of Asset or Lease Transaction | G170: 0 | H170: 0 | I170: 0 | J170: HM32
A171: 2018 | B171: 41133 | C171: 411 | D171: HM | E171: 33 | F171: Other Gain/Loss | G171: 0 | H171: 0 | I171: 0 | J171: HM33
A172: 2018 | B172: 41134 | C172: 411 | D172: HM | E172: 34 | F172: TOTAL CHANGES IN NET ASSETS: | G172: 5224.33 | H172: 45452 | I172: 50676.33 | J172: HM34
A173: 2018 | B173: 41135 | C173: 411 | D173: HM | E173: 35 | F173: NET ASSETS AT BEGINNING OF YEAR | G173: 233154 | H173: 222273 | I173: 455427 | J173: HM35
A174: 2018 | B174: 41136 | C174: 411 | D174: HM | E174: 36 | F174: NET ASSETS AT END OF YEAR | G174: 238378 | H174: 267725 | I174: 506103 | J174: HM36
A175: 2018 | B175: 41201 | C175: 412 | D175: C | E175: 01 | F175: Tuition | G175: 8589311 | H175: 0 | I175: 8589311 | J175: C01
A176: 2018 | B176: 41202a | C176: 412 | D176: C | E176: 02a | F176: Grants - State - passed through ESE | G176: 0 | H176: 0 | I176: 0 | J176: C02a
A177: 2018 | B177: 41202b | C177: 412 | D177: C | E177: 02b | F177: Grants - State - other non-ESE pass-through | G177: 0 | H177: 0 | I177: 0 | J177: C02b
A178: 2018 | B178: 41203 | C178: 412 | D178: C | E178: 03 | F178: Grants - Federal - Passed through ESE | G178: 397465 | H178: 0 | I178: 397465 | J178: C03
A179: 2018 | B179: 41204 | C179: 412 | D179: C | E179: 04 | F179: Grants - Federal - Direct or other pass-through | G179: 0 | H179: 0 | I179: 0 | J179: C04
A180: 2018 | B180: 41205a | C180: 412 | D180: C | E180: 05a | F180: Grants - Private (restricted) | G180: 0 | H180: 0 | I180: 0 | J180: C05a
A181: 2018 | B181: 41205b | C181: 412 | D181: C | E181: 05b | F181: Grants - Private (unrestricted) | G181: 2700 | H181: 112700 | I181: 115400 | J181: C05b
A182: 2018 | B182: 41206 | C182: 412 | D182: C | E182: 06 | F182: Nutrition Funding - State | G182: 2428 | H182: 0 | I182: 2428 | J182: C06
A183: 2018 | B183: 41207 | C183: 412 | D183: C | E183: 07 | F183: Nutrition Funding - Federal | G183: 192843 | H183: 0 | I183: 192843 | J183: C07
A184: 2018 | B184: 41208 | C184: 412 | D184: C | E184: 08 | F184: Nutrition Funding - Fees | G184: 0 | H184: 0 | I184: 0 | J184: C08
A185: 2018 | B185: 41209 | C185: 412 | D185: C | E185: 09 | F185: Other Program / Student Activity Fees | G185: 0 | H185: 0 | I185: 0 | J185: C09
A186: 2018 | B186: 41210 | C186: 412 | D186: C | E186: 10 | F186: Regional Transportation Aid | G186: 0 | H186: 0 | I186: 0 | J186: C10
A187: 2018 | B187: 41211 | C187: 412 | D187: C | E187: 11 | F187: Medicaid Reimbursements | G187: 17167 | H187: 0 | I187: 17167 | J187: C11
A188: 2018 | B188: 41212 | C188: 412 | D188: C | E188: 12 | F188: Circuit Breaker Reimbursements | G188: 0 | H188: 0 | I188: 0 | J188: C12
A189: 2018 | B189: 41213a | C189: 412 | D189: C | E189: 13a | F189: Contributions, in-kind, host district | G189: 592074 | H189: 0 | I189: 592074 | J189: C13a
A190: 2018 | B190: 41213b | C190: 412 | D190: C | E190: 13b | F190: Contributions, in-kind, other | G190: 0 | H190: 0 | I190: 0 | J190: C13b
A191: 2018 | B191: 41213c | C191: 412 | D191: C | E191: 13c | F191: Contributions, on-behalf, pension | G191: 1355702 | H191: 0 | I191: 1355702 | J191: C13c
A192: 2018 | B192: 41214 | C192: 412 | D192: C | E192: 14 | F192: Contributions, from Component Unit (restricted) | G192: 0 | H192: 0 | I192: 0 | J192: C14
A193: 2018 | B193: 41214b | C193: 412 | D193: C | E193: 14b | F193: Contributions, from Component Unit (unrestricted) | G193: 167225 | H193: 0 | I193: 167225 | J193: C14b
A194: 2018 | B194: 41215 | C194: 412 | D194: C | E194: 15 | F194: Contributions / Fundraising (restricted) | G194: 0 | H194: 0 | I194: 0 | J194: C15
A195: 2018 | B195: 41215b | C195: 412 | D195: =VLOOKUP(C195, TYPE, 3, FALSE) -> C | E195: 15b | F195: Contributions / Fundraising (unrestricted) | G195: 0 | H195: 39499 | I195: 39499 | J195: C15b
A196: 2018 | B196: =C196&E196 -> 41216 | C196: 412 | D196: C | E196: 16 | F196: Interest / Investment Income (restricted) | G196: 0 | H196: 0 | I196: 0 | J196: =D196&E196 -> C16
A197: 2018 | B197: 41216a | C197: 412 | D197: C | E197: 16a | F197: Interest / Investment Income (unrestricted) | G197: 77537 | H197: 190 | I197: 77727 | J197: C16a
A198: 2018 | B198: 41217 | C198: 412 | D198: C | E198: 17 | F198: Rental Income | G198: 0 | H198: 0 | I198: 0 | J198: C17
A199: 2018 | B199: 41218 | C199: 412 | D199: C | E199: 18 | F199: Loan Forgiveness or Other Reimbursement | G199: 0 | H199: 0 | I199: 0 | J199: C18
A200: 2018 | B200: 41219 | C200: 412 | D200: C | E200: 19 | F200: Miscellaneous Income | G200: 0 | H200: 0 | I200: 0 | J200: C19
... 3459 more rows

Sheet FE18 (hidden)
B1: 1 | C1: 2 | D1: 3 | E1: 4 | F1: 5 | G1: 6 | H1: 7 | I1: 8 | J1: 9 | K1: 10 | L1: 11 | M1: 12
A2: FY | B2: vlookup | C2: cha_code | D2: cha_type | E2: FuncExp_id | F2: Line_Desc | G2: general | H2: sped | I2: undist | J2: state | K2: federal | L2: private | M2: total
A3: 2018 | B3: =C3&E3 -> 407100 | C3: 407 | D3: =VLOOKUP(C3, TYPE, 3, FALSE) -> HM | E3: 100 | F3: Administration | G3: 0 | H3: 0 | I3: 1155767.38 | J3: 0 | K3: 0 | L3: 0 | M3: 1155767.38 | N3: =D3&E3 -> HM100
A4: 2018 | B4: =C4&E4 -> 407110 | C4: 407 | D4: HM | E4: 110 | F4: Subtotal - Board of Trustees | G4: 0 | H4: 0 | I4: 374.56 | J4: 0 | K4: 0 | L4: 0 | M4: 374.56 | N4: =D4&E4 -> HM110
A5: 2018 | B5: 407111 | C5: 407 | D5: HM | E5: 111 | F5: Contracted Services | G5: 0 | H5: 0 | I5: 0 | J5: 0 | K5: 0 | L5: 0 | M5: 0 | N5: HM111
A6: 2018 | B6: 407112 | C6: 407 | D6: HM | E6: 112 | F6: Travel and other expenses | G6: 0 | H6: 0 | I6: 374.56 | J6: 0 | K6: 0 | L6: 0 | M6: 374.56 | N6: HM112
A7: 2018 | B7: 407120 | C7: 407 | D7: HM | E7: 120 | F7: Subtotal - School Leaders | G7: 0 | H7: 0 | I7: 0 | J7: 0 | K7: 0 | L7: 0 | M7: 0 | N7: HM120
A8: 2018 | B8: 407121 | C8: 407 | D8: HM | E8: 121 | F8: Salaries - Professional | G8: 0 | H8: 0 | I8: 0 | J8: 0 | K8: 0 | L8: 0 | M8: 0 | N8: HM121
A9: 2018 | B9: 407122 | C9: 407 | D9: HM | E9: 122 | F9: Contracted Services | G9: 0 | H9: 0 | I9: 0 | J9: 0 | K9: 0 | L9: 0 | M9: 0 | N9: HM122
A10: 2018 | B10: 407130 | C10: 407 | D10: HM | E10: 130 | F10: Subtotal - Business and Finance | G10: 0 | H10: 0 | I10: 152121.43 | J10: 0 | K10: 0 | L10: 0 | M10: 152121.43 | N10: HM130
A11: 2018 | B11: 407131 | C11: 407 | D11: HM | E11: 131 | F11: Salaries - Professional | G11: 0 | H11: 0 | I11: 0 | J11: 0 | K11: 0 | L11: 0 | M11: 0 | N11: HM131
A12: 2018 | B12: 407132 | C12: 407 | D12: HM | E12: 132 | F12: Contracted Services | G12: 0 | H12: 0 | I12: 152121.43 | J12: 0 | K12: 0 | L12: 0 | M12: 152121.43 | N12: HM132
A13: 2018 | B13: 407140 | C13: 407 | D13: HM | E13: 140 | F13: Subtotal - Human Resources | G13: 0 | H13: 0 | I13: 3229.19 | J13: 0 | K13: 0 | L13: 0 | M13: 3229.19 | N13: HM140
A14: 2018 | B14: 407141 | C14: 407 | D14: HM | E14: 141 | F14: Salaries - Professional | G14: 0 | H14: 0 | I14: 3229.19 | J14: 0 | K14: 0 | L14: 0 | M14: 3229.19 | N14: HM141
A15: 2018 | B15: 407142 | C15: 407 | D15: HM | E15: 142 | F15: Contracted Services | G15: 0 | H15: 0 | I15: 0 | J15: 0 | K15: 0 | L15: 0 | M15: 0 | N15: HM142
A16: 2018 | B16: 407150 | C16: 407 | D16: HM | E16: 150 | F16: Subtotal - Legal Services | G16: 0 | H16: 0 | I16: 0 | J16: 0 | K16: 0 | L16: 0 | M16: 0 | N16: HM150
A17: 2018 | B17: 407151 | C17: 407 | D17: HM | E17: 151 | F17: Salaries - Professional | G17: 0 | H17: 0 | I17: 0 | J17: 0 | K17: 0 | L17: 0 | M17: 0 | N17: HM151
A18: 2018 | B18: 407152 | C18: 407 | D18: HM | E18: 152 | F18: Contracted Services | G18: 0 | H18: 0 | I18: 0 | J18: 0 | K18: 0 | L18: 0 | M18: 0 | N18: HM152
A19: 2018 | B19: 407160 | C19: 407 | D19: HM | E19: 160 | F19: Subtotal - Info. Management & Technology | G19: 0 | H19: 0 | I19: 10000 | J19: 0 | K19: 0 | L19: 0 | M19: 10000 | N19: HM160
A20: 2018 | B20: 407161 | C20: 407 | D20: HM | E20: 161 | F20: Salaries - Professional | G20: 0 | H20: 0 | I20: 0 | J20: 0 | K20: 0 | L20: 0 | M20: 0 | N20: HM161
A21: 2018 | B21: 407162 | C21: 407 | D21: HM | E21: 162 | F21: Contracted Services | G21: 0 | H21: 0 | I21: 10000 | J21: 0 | K21: 0 | L21: 0 | M21: 10000 | N21: HM162
A22: 2018 | B22: 407163 | C22: 407 | D22: HM | E22: 163 | F22: Supplies and Materials | G22: 0 | H22: 0 | I22: 0 | J22: 0 | K22: 0 | L22: 0 | M22: 0 | N22: HM163
A23: 2018 | B23: 407164 | C23: 407 | D23: HM | E23: 164 | F23: Depreciation for Information Technology | G23: 0 | H23: 0 | I23: 0 | J23: 0 | K23: 0 | L23: 0 | M23: 0 | N23: HM164
A24: 2018 | B24: 407170 | C24: 407 | D24: HM | E24: 170 | F24: Subtotal - Development (Private) | G24: 0 | H24: 0 | I24: 0 | J24: 0 | K24: 0 | L24: 0 | M24: 0 | N24: HM170
A25: 2018 | B25: 407170a | C25: 407 | D25: HM | E25: 170a | F25: Salaries - Professional - Private | G25: 0 | H25: 0 | I25: 0 | J25: 0 | K25: 0 | L25: 0 | M25: 0 | N25: HM170a
A26: 2018 | B26: 407170b | C26: 407 | D26: HM | E26: 170b | F26: Contracted Services - Private | G26: 0 | H26: 0 | I26: 0 | J26: 0 | K26: 0 | L26: 0 | M26: 0 | N26: HM170b
A27: 2018 | B27: 407170c | C27: 407 | D27: HM | E27: 170c | F27: Fundraising - Private | G27: 0 | H27: 0 | I27: 0 | J27: 0 | K27: 0 | L27: 0 | M27: 0 | N27: HM170c
A28: 2018 | B28: 407171 | C28: 407 | D28: HM | E28: 171 | F28: Subtotal - Development (Public) | G28: 0 | H28: 0 | I28: 0 | J28: 0 | K28: 0 | L28: 0 | M28: 0 | N28: HM171
A29: 2018 | B29: 407171a | C29: 407 | D29: HM | E29: 171a | F29: Salaries - Professional - Public | G29: 0 | H29: 0 | I29: 0 | J29: 0 | K29: 0 | L29: 0 | M29: 0 | N29: HM171a
A30: 2018 | B30: 407171b | C30: 407 | D30: HM | E30: 171b | F30: Contracted Services - Public | G30: 0 | H30: 0 | I30: 0 | J30: 0 | K30: 0 | L30: 0 | M30: 0 | N30: HM171b
A31: 2018 | B31: 407180 | C31: 407 | D31: HM | E31: 180 | F31: Subtotal - Other Administration | G31: 0 | H31: 0 | I31: 990042.2 | J31: 0 | K31: 0 | L31: 0 | M31: 990042.2 | N31: HM180
A32: 2018 | B32: 407181 | C32: 407 | D32: HM | E32: 181 | F32: Salaries | G32: 0 | H32: 0 | I32: 0 | J32: 0 | K32: 0 | L32: 0 | M32: 0 | N32: HM181
A33: 2018 | B33: 407182 | C33: 407 | D33: HM | E33: 182 | F33: Contracted Services | G33: 0 | H33: 0 | I33: 989328.83 | J33: 0 | K33: 0 | L33: 0 | M33: 989328.83 | N33: HM182
A34: 2018 | B34: 407183 | C34: 407 | D34: HM | E34: 183 | F34: Recruitment/Advertising | G34: 0 | H34: 0 | I34: 0 | J34: 0 | K34: 0 | L34: 0 | M34: 0 | N34: HM183
A35: 2018 | B35: 407184 | C35: 407 | D35: HM | E35: 184 | F35: Travel, Dues, and other expenses | G35: 0 | H35: 0 | I35: 0 | J35: 0 | K35: 0 | L35: 0 | M35: 0 | N35: HM184
A36: 2018 | B36: 407185 | C36: 407 | D36: HM | E36: 185 | F36: Supplies and Materials | G36: 0 | H36: 0 | I36: 713.37 | J36: 0 | K36: 0 | L36: 0 | M36: 713.37 | N36: HM185
A37: 2018 | B37: 407200 | C37: 407 | D37: HM | E37: 200 | F37: Instructional Services | G37: 1394934.44 | H37: 510218.38 | I37: 325723.08 | J37: 0 | K37: 269599.31 | L37: 0 | M37: 2500475.21 | N37: HM200
A38: 2018 | B38: 407210 | C38: 407 | D38: HM | E38: 210 | F38: Subtotal - Instructional Leadership | G38: 23010.43 | H38: 3769.32 | I38: 283206.42 | J38: 0 | K38: 0 | L38: 0 | M38: 309986.17 | N38: HM210
A39: 2018 | B39: 407211 | C39: 407 | D39: HM | E39: 211 | F39: Salaries - Professional | G39: 0 | H39: 0 | I39: 127500 | J39: 0 | K39: 0 | L39: 0 | M39: 127500 | N39: HM211
A40: 2018 | B40: 407212 | C40: 407 | D40: HM | E40: 212 | F40: Salaries - Clerical | G40: 0 | H40: 0 | I40: 152225.28 | J40: 0 | K40: 0 | L40: 0 | M40: 152225.28 | N40: HM212
A41: 2018 | B41: 407213 | C41: 407 | D41: HM | E41: 213 | F41: Contracted Services | G41: 0 | H41: 0 | I41: 0 | J41: 0 | K41: 0 | L41: 0 | M41: 0 | N41: HM213
A42: 2018 | B42: 407214 | C42: 407 | D42: HM | E42: 214 | F42: Supplies and Materials | G42: 1013.2 | H42: 164.93 | I42: 2179.77 | J42: 0 | K42: 0 | L42: 0 | M42: 3357.9 | N42: HM214
A43: 2018 | B43: 407215 | C43: 407 | D43: HM | E43: 215 | F43: Travel and other expenses | G43: 21997.23 | H43: 3604.39 | I43: 1301.37 | J43: 0 | K43: 0 | L43: 0 | M43: 26902.99 | N43: HM215
A44: 2018 | B44: 407220 | C44: 407 | D44: HM | E44: 220 | F44: Subtotal - Classroom and Specialist Teachers | G44: 1181933.41 | H44: 469926.75 | I44: 0 | J44: 0 | K44: 99411 | L44: 0 | M44: 1751271.16 | N44: HM220
A45: 2018 | B45: 407221 | C45: 407 | D45: HM | E45: 221 | F45: Salaries - Teachers, Classroom | G45: 942691.03 | H45: 429196.13 | I45: 0 | J45: 0 | K45: 88451 | L45: 0 | M45: 1460338.16 | N45: HM221
A46: 2018 | B46: 407222 | C46: 407 | D46: HM | E46: 222 | F46: Salaries - Teachers, Specialists | G46: 239242.38 | H46: 40730.62 | I46: 0 | J46: 0 | K46: 10960 | L46: 0 | M46: 290933 | N46: HM222
A47: 2018 | B47: 407230 | C47: 407 | D47: HM | E47: 230 | F47: Subtotal - Other Teaching Services | G47: 34363.62 | H47: 5455.38 | I47: 0 | J47: 0 | K47: 130193 | L47: 0 | M47: 170012 | N47: HM230
A48: 2018 | B48: 407231 | C48: 407 | D48: HM | E48: 231 | F48: Salaries - Professional | G48: 22324.74 | H48: 3634.26 | I48: 0 | J48: 0 | K48: 0 | L48: 0 | M48: 25959 | N48: HM231
A49: 2018 | B49: 407232 | C49: 407 | D49: HM | E49: 232 | F49: Salaries - Nonclerical Paraprofessionals | G49: 12038.88 | H49: 1821.12 | I49: 0 | J49: 0 | K49: 130193 | L49: 0 | M49: 144053 | N49: HM232
A50: 2018 | B50: 407233 | C50: 407 | D50: HM | E50: 233 | F50: Salaries - Clerical | G50: 0 | H50: 0 | I50: 0 | J50: 0 | K50: 0 | L50: 0 | M50: 0 | N50: HM233
A51: 2018 | B51: 407234 | C51: 407 | D51: HM | E51: 234 | F51: Contracted Services | G51: 0 | H51: 0 | I51: 0 | J51: 0 | K51: 0 | L51: 0 | M51: 0 | N51: HM234
A52: 2018 | B52: 407240 | C52: 407 | D52: HM | E52: 240 | F52: Subtotal - Professional Development | G52: 45369.3 | H52: 7385.7 | I52: 15745 | J52: 0 | K52: 1724 | L52: 0 | M52: 70224 | N52: HM240
A53: 2018 | B53: 407241 | C53: 407 | D53: HM | E53: 241 | F53: Salaries - Professional | G53: 45369.3 | H53: 7385.7 | I53: 0 | J53: 0 | K53: 0 | L53: 0 | M53: 52755 | N53: HM241
A54: 2018 | B54: 407242 | C54: 407 | D54: HM | E54: 242 | F54: Contracted Services | G54: 0 | H54: 0 | I54: 0 | J54: 0 | K54: 0 | L54: 0 | M54: 0 | N54: HM242
A55: 2018 | B55: 407243 | C55: 407 | D55: HM | E55: 243 | F55: Supplies and Materials | G55: 0 | H55: 0 | I55: 15745 | J55: 0 | K55: 1724 | L55: 0 | M55: 17469 | N55: HM243
A56: 2018 | B56: 407244 | C56: 407 | D56: HM | E56: 244 | F56: Travel and other expenses | G56: 0 | H56: 0 | I56: 0 | J56: 0 | K56: 0 | L56: 0 | M56: 0 | N56: HM244
A57: 2018 | B57: 407250 | C57: 407 | D57: HM | E57: 250 | F57: Subtotal - Guidance, Psychological & Testing | G57: 41039.01 | H57: 12839.68 | I57: 0 | J57: 0 | K57: 37833.31 | L57: 0 | M57: 91712 | N57: HM250
A58: 2018 | B58: 407251 | C58: 407 | D58: HM | E58: 251 | F58: Salaries - Professional | G58: 41039.01 | H58: 12839.68 | I58: 0 | J58: 0 | K58: 37833.31 | L58: 0 | M58: 91712 | N58: HM251
A59: 2018 | B59: 407252 | C59: 407 | D59: HM | E59: 252 | F59: Salaries - Clerical | G59: 0 | H59: 0 | I59: 0 | J59: 0 | K59: 0 | L59: 0 | M59: 0 | N59: HM252
A60: 2018 | B60: 407253 | C60: 407 | D60: HM | E60: 253 | F60: Contracted Services | G60: 0 | H60: 0 | I60: 0 | J60: 0 | K60: 0 | L60: 0 | M60: 0 | N60: HM253
A61: 2018 | B61: 407254 | C61: 407 | D61: HM | E61: 254 | F61: Supplies and Materials | G61: 0 | H61: 0 | I61: 0 | J61: 0 | K61: 0 | L61: 0 | M61: 0 | N61: HM254
A62: 2018 | B62: 407260 | C62: 407 | D62: HM | E62: 260 | F62: Subtotal - Materials, Equipment & Technology | G62: 69218.67 | H62: 10841.55 | I62: 26771.66 | J62: 0 | K62: 438 | L62: 0 | M62: 107269.88 | N62: HM260
A63: 2018 | B63: 407261 | C63: 407 | D63: HM | E63: 261 | F63: Textbooks & Related Media/Materials | G63: 33274.36 | H63: 5155.8 | I63: 0 | J63: 0 | K63: 438 | L63: 0 | M63: 38868.16 | N63: HM261
A64: 2018 | B64: 407262 | C64: 407 | D64: HM | E64: 262 | F64: Other Instructional Materials | G64: 0 | H64: 0 | I64: 0 | J64: 0 | K64: 0 | L64: 0 | M64: 0 | N64: HM262
A65: 2018 | B65: 407263 | C65: 407 | D65: HM | E65: 263 | F65: Instructional Equipment | G65: 1496.38 | H65: 394.69 | I65: 0 | J65: 0 | K65: 0 | L65: 0 | M65: 1891.07 | N65: HM263
A66: 2018 | B66: 407264 | C66: 407 | D66: HM | E66: 264 | F66: General Supplies | G66: 24621.09 | H66: 4003.4 | I66: 0 | J66: 0 | K66: 0 | L66: 0 | M66: 28624.49 | N66: HM264
A67: 2018 | B67: 407265 | C67: 407 | D67: =VLOOKUP(C67, TYPE, 3, FALSE) -> HM | E67: 265 | F67: Other Instructional Services | G67: 0 | H67: 0 | I67: 0 | J67: 0 | K67: 0 | L67: 0 | M67: 0 | N67: HM265
A68: 2018 | B68: =C68&E68 -> 407266 | C68: 407 | D68: HM | E68: 266 | F68: Classroom Instructional Technology | G68: 0 | H68: 0 | I68: 0 | J68: 0 | K68: 0 | L68: 0 | M68: 0 | N68: =D68&E68 -> HM266
A69: 2018 | B69: 407267 | C69: 407 | D69: HM | E69: 267 | F69: Other Instructional Hardware | G69: 0 | H69: 0 | I69: 26771.66 | J69: 0 | K69: 0 | L69: 0 | M69: 26771.66 | N69: HM267
A70: 2018 | B70: 407268 | C70: 407 | D70: HM | E70: 268 | F70: Instructional Software | G70: 9826.84 | H70: 1287.66 | I70: 0 | J70: 0 | K70: 0 | L70: 0 | M70: 11114.5 | N70: HM268
A71: 2018 | B71: 407269 | C71: 407 | D71: HM | E71: 269 | F71: Depreciation for Instructional Equipment | G71: 0 | H71: 0 | I71: 0 | J71: 0 | K71: 0 | L71: 0 | M71: 0 | N71: HM269
A72: 2018 | B72: 407300 | C72: 407 | D72: HM | E72: 300 | F72: Pupil Services | G72: 310518.86 | H72: 50549.62 | I72: 168939.36 | J72: 0 | K72: 14240 | L72: 0 | M72: 544247.84 | N72: HM300
A73: 2018 | B73: 407310 | C73: 407 | D73: HM | E73: 310 | F73: Health Services | G73: 0 | H73: 0 | I73: 39361 | J73: 0 | K73: 0 | L73: 0 | M73: 39361 | N73: HM310
A74: 2018 | B74: 407315 | C74: 407 | D74: HM | E74: 315 | F74: Health Services - Contracted | G74: 0 | H74: 0 | I74: 0 | J74: 0 | K74: 0 | L74: 0 | M74: 0 | N74: HM315
A75: 2018 | B75: 407320 | C75: 407 | D75: HM | E75: 320 | F75: Athletic Services | G75: 0 | H75: 0 | I75: 70502 | J75: 0 | K75: 0 | L75: 0 | M75: 70502 | N75: HM320
A76: 2018 | B76: 407325 | C76: 407 | D76: HM | E76: 325 | F76: Athletic Services - Contracted | G76: 0 | H76: 0 | I76: 0 | J76: 0 | K76: 0 | L76: 0 | M76: 0 | N76: HM325
A77: 2018 | B77: 407330 | C77: 407 | D77: HM | E77: 330 | F77: Food Services | G77: 0 | H77: 0 | I77: 59076.36 | J77: 0 | K77: 0 | L77: 0 | M77: 59076.36 | N77: HM330
A78: 2018 | B78: 407335 | C78: 407 | D78: HM | E78: 335 | F78: Food Services - Contracted | G78: 0 | H78: 0 | I78: 0 | J78: 0 | K78: 0 | L78: 0 | M78: 0 | N78: HM335
A79: 2018 | B79: 407340 | C79: 407 | D79: HM | E79: 340 | F79: Student Transportation (to and from school) | G79: 310518.86 | H79: 50549.62 | I79: 0 | J79: 0 | K79: 14240 | L79: 0 | M79: 375308.48 | N79: HM340
A80: 2018 | B80: 407345 | C80: 407 | D80: HM | E80: 345 | F80: Student Transportation (to and from school) | G80: 0 | H80: 0 | I80: 0 | J80: 0 | K80: 0 | L80: 0 | M80: 0 | N80: HM345
A81: 2018 | B81: 407350 | C81: 407 | D81: HM | E81: 350 | F81: Depreciation of Transportation Vehicles | G81: 0 | H81: 0 | I81: 0 | J81: 0 | K81: 0 | L81: 0 | M81: 0 | N81: HM350
A82: 2018 | B82: 407360 | C82: 407 | D82: HM | E82: 360 | F82: Other Student Activities | G82: 0 | H82: 0 | I82: 0 | J82: 0 | K82: 0 | L82: 0 | M82: 0 | N82: HM360
A83: 2018 | B83: 407400 | C83: 407 | D83: HM | E83: 400 | F83: Operation & Maintenance of Plant | G83: 0 | H83: 0 | I83: 170100.38 | J83: 0 | K83: 0 | L83: 0 | M83: 170100.38 | N83: HM400
A84: 2018 | B84: 407410 | C84: 407 | D84: HM | E84: 410 | F84: Operation & Maintenance of Buildings and Grounds | G84: 0 | H84: 0 | I84: 75031.38 | J84: 0 | K84: 0 | L84: 0 | M84: 75031.38 | N84: HM410
A85: 2018 | B85: 407420 | C85: 407 | D85: HM | E85: 420 | F85: Utilities | G85: 0 | H85: 0 | I85: 95069 | J85: 0 | K85: 0 | L85: 0 | M85: 95069 | N85: HM420
A86: 2018 | B86: 407430 | C86: 407 | D86: HM | E86: 430 | F86: Maintenance of Equipment | G86: 0 | H86: 0 | I86: 0 | J86: 0 | K86: 0 | L86: 0 | M86: 0 | N86: HM430
A87: 2018 | B87: 407440 | C87: 407 | D87: HM | E87: 440 | F87: Networking and Telecommunications | G87: 0 | H87: 0 | I87: 0 | J87: 0 | K87: 0 | L87: 0 | M87: 0 | N87: HM440
A88: 2018 | B88: 407500 | C88: 407 | D88: HM | E88: 500 | F88: Fixed Charges | G88: 0 | H88: 0 | I88: 835141.65 | J88: 0 | K88: 42964 | L88: 0 | M88: 878105.65 | N88: HM500
A89: 2018 | B89: 407510 | C89: 407 | D89: HM | E89: 510 | F89: Employee Retirement | G89: 0 | H89: 0 | I89: 0 | J89: 0 | K89: 0 | L89: 0 | M89: 0 | N89: HM510
A90: 2018 | B90: 407520 | C90: 407 | D90: HM | E90: 520 | F90: Fringe Benefits | G90: 0 | H90: 0 | I90: 828036.35 | J90: 0 | K90: 42964 | L90: 0 | M90: 871000.35 | N90: HM520
A91: 2018 | B91: 407530 | C91: 407 | D91: HM | E91: 530 | F91: Insurance (non-employee) | G91: 0 | H91: 0 | I91: 7105.3 | J91: 0 | K91: 0 | L91: 0 | M91: 7105.3 | N91: HM530
A92: 2018 | B92: 407550 | C92: 407 | D92: HM | E92: 550 | F92: Rental/Lease of Equipment | G92: 0 | H92: 0 | I92: 0 | J92: 0 | K92: 0 | L92: 0 | M92: 0 | N92: HM550
A93: 2018 | B93: 407560 | C93: 407 | D93: HM | E93: 560 | F93: Short-Term Interest | G93: 0 | H93: 0 | I93: 0 | J93: 0 | K93: 0 | L93: 0 | M93: 0 | N93: HM560
A94: 2018 | B94: 407600 | C94: 407 | D94: HM | E94: 600 | F94: Community Services | G94: 0 | H94: 0 | I94: 0 | J94: 0 | K94: 0 | L94: 0 | M94: 0 | N94: HM600
A95: 2018 | B95: 407610 | C95: 407 | D95: HM | E95: 610 | F95: Dissemination Activities | G95: 0 | H95: 0 | I95: 0 | J95: 0 | K95: 0 | L95: 0 | M95: 0 | N95: HM610
A96: 2018 | B96: 407620 | C96: 407 | D96: HM | E96: 620 | F96: Civic Activities | G96: 0 | H96: 0 | I96: 0 | J96: 0 | K96: 0 | L96: 0 | M96: 0 | N96: HM620
A97: 2018 | B97: 407700 | C97: 407 | D97: HM | E97: 700 | F97: Non-Operating / Capital Facilities Costs | G97: 0 | H97: 0 | I97: 0 | J97: 0 | K97: 0 | L97: 0 | M97: 0 | N97: HM700
A98: 2018 | B98: 407720 | C98: 407 | D98: HM | E98: 720 | F98: Long-Term Interest, facilities related | G98: 0 | H98: 0 | I98: 0 | J98: 0 | K98: 0 | L98: 0 | M98: 0 | N98: HM720
A99: 2018 | B99: 407725 | C99: 407 | D99: HM | E99: 725 | F99: Long-Term Interest, non-facilities related | G99: 0 | H99: 0 | I99: 0 | J99: 0 | K99: 0 | L99: 0 | M99: 0 | N99: HM725
A100: 2018 | B100: 407730 | C100: 407 | D100: HM | E100: 730 | F100: Other costs related to capital facilities acquisition | G100: 0 | H100: 0 | I100: 0 | J100: 0 | K100: 0 | L100: 0 | M100: 0 | N100: HM730
A101: 2018 | B101: 407740 | C101: 407 | D101: HM | E101: 740 | F101: Rental/Lease of Buildings & Grounds | G101: 0 | H101: 0 | I101: 0 | J101: 0 | K101: 0 | L101: 0 | M101: 0 | N101: HM740
A102: 2018 | B102: 407750 | C102: 407 | D102: HM | E102: 750 | F102: Depreciation of Equipment, Building, & Grounds | G102: 0 | H102: 0 | I102: 0 | J102: 0 | K102: 0 | L102: 0 | M102: 0 | N102: HM750
A103: 2018 | B103: 407760 | C103: 407 | D103: HM | E103: 760 | F103: Bad debt / loss on disposal of assets | G103: 0 | H103: 0 | I103: 0 | J103: 0 | K103: 0 | L103: 0 | M103: 0 | N103: HM760
A104: 2018 | B104: 407800 | C104: 407 | D104: HM | E104: 800 | F104: TOTALS | G104: 1705453.3 | H104: 560768 | I104: 2655671.85 | J104: 0 | K104: 326803.31 | L104: 0 | M104: 5248696.46 | N104: HM800
A105: 2018 | B105: 407910 | C105: 407 | D105: HM | E105: 910 | F105: Reference: Capitalized Expenditures | G105: 0 | H105: 0 | I105: 0 | J105: 0 | K105: 0 | L105: 0 | M105: 0 | N105: HM910
A106: 2018 | B106: 407920 | C106: 407 | D106: HM | E106: 920 | F106: Reference: Deferrals/Carryovers | G106: 0 | H106: 0 | I106: 0 | J106: 0 | K106: 0 | L106: 0 | M106: 0 | N106: HM920
A107: 2018 | B107: 407900 | C107: 407 | D107: HM | E107: 900 | F107: Reference: Totals | G107: 0 | H107: 0 | I107: 2655671.85 | J107: 0 | K107: 326803.31 | L107: 0 | M107: 5248696.46 | N107: HM900
A108: 2018 | B108: 409100 | C108: 409 | D108: C | E108: 100 | F108: Administration | G108: 0 | H108: 0 | I108: 614623 | J108: 0 | K108: 12269 | L108: 0 | M108: 626892 | N108: C100
A109: 2018 | B109: 409110 | C109: 409 | D109: C | E109: 110 | F109: Subtotal - Board of Trustees | G109: 0 | H109: 0 | I109: 9995 | J109: 0 | K109: 0 | L109: 0 | M109: 9995 | N109: C110
A110: 2018 | B110: 409111 | C110: 409 | D110: C | E110: 111 | F110: Contracted Services | G110: 0 | H110: 0 | I110: 9995 | J110: 0 | K110: 0 | L110: 0 | M110: 9995 | N110: C111
A111: 2018 | B111: 409112 | C111: 409 | D111: C | E111: 112 | F111: Travel and other expenses | G111: 0 | H111: 0 | I111: 0 | J111: 0 | K111: 0 | L111: 0 | M111: 0 | N111: C112
A112: 2018 | B112: 409120 | C112: 409 | D112: C | E112: 120 | F112: Subtotal - School Leaders | G112: 0 | H112: 0 | I112: 122142 | J112: 0 | K112: 0 | L112: 0 | M112: 122142 | N112: C120
A113: 2018 | B113: 409121 | C113: 409 | D113: C | E113: 121 | F113: Salaries - Professional | G113: 0 | H113: 0 | I113: 109642 | J113: 0 | K113: 0 | L113: 0 | M113: 109642 | N113: C121
A114: 2018 | B114: 409122 | C114: 409 | D114: C | E114: 122 | F114: Contracted Services | G114: 0 | H114: 0 | I114: 12500 | J114: 0 | K114: 0 | L114: 0 | M114: 12500 | N114: C122
A115: 2018 | B115: 409130 | C115: 409 | D115: C | E115: 130 | F115: Subtotal - Business and Finance | G115: 0 | H115: 0 | I115: 185832 | J115: 0 | K115: 0 | L115: 0 | M115: 185832 | N115: C130
A116: 2018 | B116: 409131 | C116: 409 | D116: C | E116: 131 | F116: Salaries - Professional | G116: 0 | H116: 0 | I116: 123036 | J116: 0 | K116: 0 | L116: 0 | M116: 123036 | N116: C131
A117: 2018 | B117: 409132 | C117: 409 | D117: C | E117: 132 | F117: Contracted Services | G117: 0 | H117: 0 | I117: 62796 | J117: 0 | K117: 0 | L117: 0 | M117: 62796 | N117: C132
A118: 2018 | B118: 409140 | C118: 409 | D118: C | E118: 140 | F118: Subtotal - Human Resources | G118: 0 | H118: 0 | I118: 32483 | J118: 0 | K118: 0 | L118: 0 | M118: 32483 | N118: C140
A119: 2018 | B119: 409141 | C119: 409 | D119: C | E119: 141 | F119: Salaries - Professional | G119: 0 | H119: 0 | I119: 0 | J119: 0 | K119: 0 | L119: 0 | M119: 0 | N119: C141
A120: 2018 | B120: 409142 | C120: 409 | D120: C | E120: 142 | F120: Contracted Services | G120: 0 | H120: 0 | I120: 32483 | J120: 0 | K120: 0 | L120: 0 | M120: 32483 | N120: C142
A121: 2018 | B121: 409150 | C121: 409 | D121: C | E121: 150 | F121: Subtotal - Legal Services | G121: 0 | H121: 0 | I121: 15146 | J121: 0 | K121: 0 | L121: 0 | M121: 15146 | N121: C150
A122: 2018 | B122: 409151 | C122: 409 | D122: C | E122: 151 | F122: Salaries - Professional | G122: 0 | H122: 0 | I122: 0 | J122: 0 | K122: 0 | L122: 0 | M122: 0 | N122: C151
A123: 2018 | B123: 409152 | C123: 409 | D123: C | E123: 152 | F123: Contracted Services | G123: 0 | H123: 0 | I123: 15146 | J123: 0 | K123: 0 | L123: 0 | M123: 15146 | N123: C152
A124: 2018 | B124: 409160 | C124: 409 | D124: C | E124: 160 | F124: Subtotal - Info. Management & Technology | G124: 0 | H124: 0 | I124: 20331 | J124: 0 | K124: 0 | L124: 0 | M124: 20331 | N124: C160
A125: 2018 | B125: 409161 | C125: 409 | D125: C | E125: 161 | F125: Salaries - Professional | G125: 0 | H125: 0 | I125: 0 | J125: 0 | K125: 0 | L125: 0 | M125: 0 | N125: C161
A126: 2018 | B126: 409162 | C126: 409 | D126: C | E126: 162 | F126: Contracted Services | G126: 0 | H126: 0 | I126: 18060 | J126: 0 | K126: 0 | L126: 0 | M126: 18060 | N126: C162
A127: 2018 | B127: 409163 | C127: 409 | D127: C | E127: 163 | F127: Supplies and Materials | G127: 0 | H127: 0 | I127: 2271 | J127: 0 | K127: 0 | L127: 0 | M127: 2271 | N127: C163
A128: 2018 | B128: 409164 | C128: 409 | D128: C | E128: 164 | F128: Depreciation for Information Technology | G128: 0 | H128: 0 | I128: 0 | J128: 0 | K128: 0 | L128: 0 | M128: 0 | N128: C164
A129: 2018 | B129: 409170 | C129: 409 | D129: C | E129: 170 | F129: Subtotal - Development (Private) | G129: 0 | H129: 0 | I129: 71379 | J129: 0 | K129: 0 | L129: 0 | M129: 71379 | N129: C170
A130: 2018 | B130: 409170a | C130: 409 | D130: C | E130: 170a | F130: Salaries - Professional - Private | G130: 0 | H130: 0 | I130: 54444 | J130: 0 | K130: 0 | L130: 0 | M130: 54444 | N130: C170a
A131: 2018 | B131: 409170b | C131: 409 | D131: =VLOOKUP(C131, TYPE, 3, FALSE) -> C | E131: 170b | F131: Contracted Services - Private | G131: 0 | H131: 0 | I131: 2366 | J131: 0 | K131: 0 | L131: 0 | M131: 2366 | N131: C170b
A132: 2018 | B132: =C132&E132 -> 409170c | C132: 409 | D132: C | E132: 170c | F132: Fundraising - Private | G132: 0 | H132: 0 | I132: 14569 | J132: 0 | K132: 0 | L132: 0 | M132: 14569 | N132: =D132&E132 -> C170c
A133: 2018 | B133: 409171 | C133: 409 | D133: C | E133: 171 | F133: Subtotal - Development (Public) | G133: 0 | H133: 0 | I133: 0 | J133: 0 | K133: 0 | L133: 0 | M133: 0 | N133: C171
A134: 2018 | B134: 409171a | C134: 409 | D134: C | E134: 171a | F134: Salaries - Professional - Public | G134: 0 | H134: 0 | I134: 0 | J134: 0 | K134: 0 | L134: 0 | M134: 0 | N134: C171a
A135: 2018 | B135: 409171b | C135: 409 | D135: C | E135: 171b | F135: Contracted Services - Public | G135: 0 | H135: 0 | I135: 0 | J135: 0 | K135: 0 | L135: 0 | M135: 0 | N135: C171b
A136: 2018 | B136: 409180 | C136: 409 | D136: C | E136: 180 | F136: Subtotal - Other Administration | G136: 0 | H136: 0 | I136: 157315 | J136: 0 | K136: 12269 | L136: 0 | M136: 169584 | N136: C180
A137: 2018 | B137: 409181 | C137: 409 | D137: C | E137: 181 | F137: Salaries | G137: 0 | H137: 0 | I137: 111274 | J137: 0 | K137: 0 | L137: 0 | M137: 111274 | N137: C181
A138: 2018 | B138: 409182 | C138: 409 | D138: C | E138: 182 | F138: Contracted Services | G138: 0 | H138: 0 | I138: 27239 | J138: 0 | K138: 6114 | L138: 0 | M138: 33353 | N138: C182
A139: 2018 | B139: 409183 | C139: 409 | D139: C | E139: 183 | F139: Recruitment/Advertising | G139: 0 | H139: 0 | I139: 3537 | J139: 0 | K139: 6155 | L139: 0 | M139: 9692 | N139: C183
A140: 2018 | B140: 409184 | C140: 409 | D140: C | E140: 184 | F140: Travel, Dues, and other expenses | G140: 0 | H140: 0 | I140: 10485 | J140: 0 | K140: 0 | L140: 0 | M140: 10485 | N140: C184
A141: 2018 | B141: 409185 | C141: 409 | D141: C | E141: 185 | F141: Supplies and Materials | G141: 0 | H141: 0 | I141: 4780 | J141: 0 | K141: 0 | L141: 0 | M141: 4780 | N141: C185
A142: 2018 | B142: 409200 | C142: 409 | D142: C | E142: 200 | F142: Instructional Services | G142: 2613982.5 | H142: 445701.5 | I142: 8114.5 | J142: 0 | K142: 279649 | L142: 64024 | M142: 3411471.5 | N142: C200
A143: 2018 | B143: 409210 | C143: 409 | D143: C | E143: 210 | F143: Subtotal - Instructional Leadership | G143: 56912 | H143: 80026 | I143: 0 | J143: 0 | K143: 0 | L143: 0 | M143: 136938 | N143: C210
A144: 2018 | B144: 409211 | C144: 409 | D144: C | E144: 211 | F144: Salaries - Professional | G144: 56912 | H144: 80026 | I144: 0 | J144: 0 | K144: 0 | L144: 0 | M144: 136938 | N144: C211
A145: 2018 | B145: 409212 | C145: 409 | D145: C | E145: 212 | F145: Salaries - Clerical | G145: 0 | H145: 0 | I145: 0 | J145: 0 | K145: 0 | L145: 0 | M145: 0 | N145: C212
A146: 2018 | B146: 409213 | C146: 409 | D146: C | E146: 213 | F146: Contracted Services | G146: 0 | H146: 0 | I146: 0 | J146: 0 | K146: 0 | L146: 0 | M146: 0 | N146: C213
A147: 2018 | B147: 409214 | C147: 409 | D147: C | E147: 214 | F147: Supplies and Materials | G147: 0 | H147: 0 | I147: 0 | J147: 0 | K147: 0 | L147: 0 | M147: 0 | N147: C214
A148: 2018 | B148: 409215 | C148: 409 | D148: C | E148: 215 | F148: Travel and other expenses | G148: 0 | H148: 0 | I148: 0 | J148: 0 | K148: 0 | L148: 0 | M148: 0 | N148: C215
A149: 2018 | B149: 409220 | C149: 409 | D149: C | E149: 220 | F149: Subtotal - Classroom and Specialist Teachers | G149: 1856505 | H149: 191600 | I149: 0 | J149: 0 | K149: 45695 | L149: 19000 | M149: 2112800 | N149: C220
A150: 2018 | B150: 409221 | C150: 409 | D150: C | E150: 221 | F150: Salaries - Teachers, Classroom | G150: 1856505 | H150: 0 | I150: 0 | J150: 0 | K150: 19813 | L150: 19000 | M150: 1895318 | N150: C221
A151: 2018 | B151: 409222 | C151: 409 | D151: C | E151: 222 | F151: Salaries - Teachers, Specialists | G151: 0 | H151: 191600 | I151: 0 | J151: 0 | K151: 25882 | L151: 0 | M151: 217482 | N151: C222
A152: 2018 | B152: 409230 | C152: 409 | D152: C | E152: 230 | F152: Subtotal - Other Teaching Services | G152: 379584 | H152: 67108 | I152: 0 | J152: 0 | K152: 126953 | L152: 0 | M152: 573645 | N152: C230
A153: 2018 | B153: 409231 | C153: 409 | D153: C | E153: 231 | F153: Salaries - Professional | G153: 159808 | H153: 0 | I153: 0 | J153: 0 | K153: 30461 | L153: 0 | M153: 190269 | N153: C231
A154: 2018 | B154: 409232 | C154: 409 | D154: C | E154: 232 | F154: Salaries - Nonclerical Paraprofessionals | G154: 219776 | H154: 0 | I154: 0 | J154: 0 | K154: 2626 | L154: 0 | M154: 222402 | N154: C232
A155: 2018 | B155: 409233 | C155: 409 | D155: C | E155: 233 | F155: Salaries - Clerical | G155: 0 | H155: 0 | I155: 0 | J155: 0 | K155: 0 | L155: 0 | M155: 0 | N155: C233
A156: 2018 | B156: 409234 | C156: 409 | D156: C | E156: 234 | F156: Contracted Services | G156: 0 | H156: 67108 | I156: 0 | J156: 0 | K156: 93866 | L156: 0 | M156: 160974 | N156: C234
A157: 2018 | B157: 409240 | C157: 409 | D157: C | E157: 240 | F157: Subtotal - Professional Development | G157: 106591 | H157: 0 | I157: 0 | J157: 0 | K157: 72080 | L157: 36024 | M157: 214695 | N157: C240
A158: 2018 | B158: 409241 | C158: 409 | D158: C | E158: 241 | F158: Salaries - Professional | G158: 0 | H158: 0 | I158: 0 | J158: 0 | K158: 0 | L158: 0 | M158: 0 | N158: C241
A159: 2018 | B159: 409242 | C159: 409 | D159: C | E159: 242 | F159: Contracted Services | G159: 44290 | H159: 0 | I159: 0 | J159: 0 | K159: 68230 | L159: 20500 | M159: 133020 | N159: C242
A160: 2018 | B160: 409243 | C160: 409 | D160: C | E160: 243 | F160: Supplies and Materials | G160: 5487 | H160: 0 | I160: 0 | J160: 0 | K160: 0 | L160: 0 | M160: 5487 | N160: C243
A161: 2018 | B161: 409244 | C161: 409 | D161: C | E161: 244 | F161: Travel and other expenses | G161: 56814 | H161: 0 | I161: 0 | J161: 0 | K161: 3850 | L161: 15524 | M161: 76188 | N161: C244
A162: 2018 | B162: 409250 | C162: 409 | D162: C | E162: 250 | F162: Subtotal - Guidance, Psychological & Testing | G162: 0 | H162: 106967.5 | I162: 0 | J162: 0 | K162: 23418 | L162: 0 | M162: 130385.5 | N162: C250
A163: 2018 | B163: 409251 | C163: 409 | D163: C | E163: 251 | F163: Salaries - Professional | G163: 0 | H163: 14962.5 | I163: 0 | J163: 0 | K163: 0 | L163: 0 | M163: 14962.5 | N163: C251
A164: 2018 | B164: 409252 | C164: 409 | D164: C | E164: 252 | F164: Salaries - Clerical | G164: 0 | H164: 0 | I164: 0 | J164: 0 | K164: 0 | L164: 0 | M164: 0 | N164: C252
A165: 2018 | B165: 409253 | C165: 409 | D165: C | E165: 253 | F165: Contracted Services | G165: 0 | H165: 88726 | I165: 0 | J165: 0 | K165: 23418 | L165: 0 | M165: 112144 | N165: C253
A166: 2018 | B166: 409254 | C166: 409 | D166: C | E166: 254 | F166: Supplies and Materials | G166: 0 | H166: 3279 | I166: 0 | J166: 0 | K166: 0 | L166: 0 | M166: 3279 | N166: C254
A167: 2018 | B167: 409260 | C167: 409 | D167: C | E167: 260 | F167: Subtotal - Materials, Equipment & Technology | G167: 214390.5 | H167: 0 | I167: 8114.5 | J167: 0 | K167: 11503 | L167: 9000 | M167: 243008 | N167: C260
A168: 2018 | B168: 409261 | C168: 409 | D168: C | E168: 261 | F168: Textbooks & Related Media/Materials | G168: 30829 | H168: 0 | I168: 0 | J168: 0 | K168: 0 | L168: 0 | M168: 30829 | N168: C261
A169: 2018 | B169: 409262 | C169: 409 | D169: C | E169: 262 | F169: Other Instructional Materials | G169: 26933 | H169: 0 | I169: 0 | J169: 0 | K169: 0 | L169: 4205 | M169: 31138 | N169: C262
A170: 2018 | B170: 409263 | C170: 409 | D170: C | E170: 263 | F170: Instructional Equipment | G170: 11429 | H170: 0 | I170: 0 | J170: 0 | K170: 0 | L170: 0 | M170: 11429 | N170: C263
A171: 2018 | B171: 409264 | C171: 409 | D171: C | E171: 264 | F171: General Supplies | G171: 76034.5 | H171: 0 | I171: 0 | J171: 0 | K171: 10000 | L171: 299.5 | M171: 86334 | N171: C264
A172: 2018 | B172: 409265 | C172: 409 | D172: C | E172: 265 | F172: Other Instructional Services | G172: 53001 | H172: 0 | I172: 0 | J172: 0 | K172: 0 | L172: 0 | M172: 53001 | N172: C265
A173: 2018 | B173: 409266 | C173: 409 | D173: C | E173: 266 | F173: Classroom Instructional Technology | G173: 0 | H173: 0 | I173: 8114.5 | J173: 0 | K173: 0 | L173: 4495.5 | M173: 12610 | N173: C266
A174: 2018 | B174: 409267 | C174: 409 | D174: C | E174: 267 | F174: Other Instructional Hardware | G174: 0 | H174: 0 | I174: 0 | J174: 0 | K174: 0 | L174: 0 | M174: 0 | N174: C267
A175: 2018 | B175: 409268 | C175: 409 | D175: C | E175: 268 | F175: Instructional Software | G175: 16164 | H175: 0 | I175: 0 | J175: 0 | K175: 1503 | L175: 0 | M175: 17667 | N175: C268
A176: 2018 | B176: 409269 | C176: 409 | D176: C | E176: 269 | F176: Depreciation for Instructional Equipment | G176: 0 | H176: 0 | I176: 0 | J176: 0 | K176: 0 | L176: 0 | M176: 0 | N176: C269
A177: 2018 | B177: 409300 | C177: 409 | D177: C | E177: 300 | F177: Pupil Services | G177: 745908 | H177: 0 | I177: 223500.74 | J177: 3477.26 | K177: 231377 | L177: 2621 | M177: 1206884 | N177: C300
A178: 2018 | B178: 409310 | C178: 409 | D178: C | E178: 310 | F178: Health Services | G178: 0 | H178: 0 | I178: 4201 | J178: 0 | K178: 0 | L178: 0 | M178: 4201 | N178: C310
A179: 2018 | B179: 409315 | C179: 409 | D179: C | E179: 315 | F179: Health Services - Contracted | G179: 0 | H179: 0 | I179: 13188 | J179: 0 | K179: 0 | L179: 0 | M179: 13188 | N179: C315
A180: 2018 | B180: 409320 | C180: 409 | D180: C | E180: 320 | F180: Athletic Services | G180: 0 | H180: 0 | I180: 0 | J180: 0 | K180: 0 | L180: 0 | M180: 0 | N180: C320
A181: 2018 | B181: 409325 | C181: 409 | D181: C | E181: 325 | F181: Athletic Services - Contracted | G181: 0 | H181: 0 | I181: 0 | J181: 0 | K181: 0 | L181: 0 | M181: 0 | N181: C325
A182: 2018 | B182: 409330 | C182: 409 | D182: C | E182: 330 | F182: Food Services | G182: 0 | H182: 0 | I182: 140690.74 | J182: 3277.26 | K182: 231377 | L182: 0 | M182: 375345 | N182: C330
A183: 2018 | B183: 409335 | C183: 409 | D183: C | E183: 335 | F183: Food Services - Contracted | G183: 0 | H183: 0 | I183: 0 | J183: 0 | K183: 0 | L183: 0 | M183: 0 | N183: C335
A184: 2018 | B184: 409340 | C184: 409 | D184: C | E184: 340 | F184: Student Transportation (to and from school) | G184: 745908 | H184: 0 | I184: 0 | J184: 0 | K184: 0 | L184: 0 | M184: 745908 | N184: C340
A185: 2018 | B185: 409345 | C185: 409 | D185: C | E185: 345 | F185: Student Transportation (to and from school) | G185: 0 | H185: 0 | I185: 0 | J185: 0 | K185: 0 | L185: 0 | M185: 0 | N185: C345
A186: 2018 | B186: 409350 | C186: 409 | D186: C | E186: 350 | F186: Depreciation of Transportation Vehicles | G186: 0 | H186: 0 | I186: 0 | J186: 0 | K186: 0 | L186: 0 | M186: 0 | N186: C350
A187: 2018 | B187: 409360 | C187: 409 | D187: C | E187: 360 | F187: Other Student Activities | G187: 0 | H187: 0 | I187: 65421 | J187: 200 | K187: 0 | L187: 2621 | M187: 68242 | N187: C360
A188: 2018 | B188: 409400 | C188: 409 | D188: C | E188: 400 | F188: Operation & Maintenance of Plant | G188: 0 | H188: 0 | I188: 277644 | J188: 0 | K188: 7663 | L188: 0 | M188: 285307 | N188: C400
A189: 2018 | B189: 409410 | C189: 409 | D189: C | E189: 410 | F189: Operation & Maintenance of Buildings and Grounds | G189: 0 | H189: 0 | I189: 148533 | J189: 0 | K189: 0 | L189: 0 | M189: 148533 | N189: C410
A190: 2018 | B190: 409420 | C190: 409 | D190: C | E190: 420 | F190: Utilities | G190: 0 | H190: 0 | I190: 79234 | J190: 0 | K190: 0 | L190: 0 | M190: 79234 | N190: C420
A191: 2018 | B191: 409430 | C191: 409 | D191: C | E191: 430 | F191: Maintenance of Equipment | G191: 0 | H191: 0 | I191: 8760 | J191: 0 | K191: 7663 | L191: 0 | M191: 16423 | N191: C430
A192: 2018 | B192: 409440 | C192: 409 | D192: C | E192: 440 | F192: Networking and Telecommunications | G192: 0 | H192: 0 | I192: 41117 | J192: 0 | K192: 0 | L192: 0 | M192: 41117 | N192: C440
A193: 2018 | B193: 409500 | C193: 409 | D193: C | E193: 500 | F193: Fixed Charges | G193: 0 | H193: 0 | I193: 1029414 | J193: 0 | K193: 36161 | L193: 0 | M193: 1065575 | N193: C500
A194: 2018 | B194: 409510 | C194: 409 | D194: C | E194: 510 | F194: Employee Retirement | G194: 0 | H194: 0 | I194: 649675 | J194: 0 | K194: 1783 | L194: 0 | M194: 651458 | N194: C510
A195: 2018 | B195: 409520 | C195: 409 | D195: =VLOOKUP(C195, TYPE, 3, FALSE) -> C | E195: 520 | F195: Fringe Benefits | G195: 0 | H195: 0 | I195: 329676 | J195: 0 | K195: 0 | L195: 0 | M195: 329676 | N195: C520
A196: 2018 | B196: =C196&E196 -> 409530 | C196: 409 | D196: C | E196: 530 | F196: Insurance (non-employee) | G196: 0 | H196: 0 | I196: 35183 | J196: 0 | K196: 0 | L196: 0 | M196: 35183 | N196: =D196&E196 -> C530
A197: 2018 | B197: 409550 | C197: 409 | D197: C | E197: 550 | F197: Rental/Lease of Equipment | G197: 0 | H197: 0 | I197: 14880 | J197: 0 | K197: 34378 | L197: 0 | M197: 49258 | N197: C550
A198: 2018 | B198: 409560 | C198: 409 | D198: C | E198: 560 | F198: Short-Term Interest | G198: 0 | H198: 0 | I198: 0 | J198: 0 | K198: 0 | L198: 0 | M198: 0 | N198: C560
A199: 2018 | B199: 409600 | C199: 409 | D199: C | E199: 600 | F199: Community Services | G199: 0 | H199: 0 | I199: 3148 | J199: 0 | K199: 0 | L199: 0 | M199: 3148 | N199: C600
A200: 2018 | B200: 409610 | C200: 409 | D200: C | E200: 610 | F200: Dissemination Activities | G200: 0 | H200: 0 | I200: 0 | J200: 0 | K200: 0 | L200: 0 | M200: 0 | N200: C610
... 4299 more rows

Sheet CSLIST (hidden)
B1: Select a Charter School | C1: LEA
A2: 2 | B2: Abby Kelley Foster Charter Public School | C2: 445
A3: 3 | B3: Academy of the Pacific Rim Charter Public School | C3: 412
A4: 4 | B4: Advanced Math and Science Academy Charter School | C4: 430
A5: 5 | B5: Alma del Mar Charter School | C5: 409
A6: 6 | B6: Argosy Collegiate Charter School | C6: 3509
A7: 7 | B7: Atlantis Charter School | C7: 491
A8: 8 | B8: Barnstable Community Horace Mann Charter Public School | C8: 427
A9: 9 | B9: Baystate Academy Charter Public School | C9: 3502
A10: 10 | B10: Benjamin Banneker Charter Public School | C10: 420
A11: 11 | B11: Benjamin Franklin Classical Charter Public School | C11: 447
A12: 12 | B12: Bentley Academy Charter School | C12: 3511
A13: 13 | B13: Berkshire Arts and Technology Charter Public School | C13: 414
A14: 14 | B14: Boston Collegiate Charter School | C14: 449
A15: 15 | B15: Boston Day and Evening Academy Charter School | C15: 424
A16: 16 | B16: Boston Green Academy Horace Mann Charter School | C16: 411
A17: 17 | B17: Boston Preparatory Charter Public School | C17: 416
A18: 18 | B18: Boston Renaissance Charter Public School | C18: 481
A19: 19 | B19: Bridge Boston Charter School | C19: 417
A20: 20 | B20: Brooke Charter School | C20: 428
A21: 21 | B21: Cape Cod Lighthouse Charter School | C21: 432
A22: 22 | B22: Christa McAuliffe Charter School | C22: 418
A23: 23 | B23: City on a Hill Charter Public School Circuit Street | C23: 437
A24: 24 | B24: City on a Hill Charter Public School Dudley Square | C24: 3504
A25: 25 | B25: City On A Hill Charter Public School New Bedford | C25: 3507
A26: 26 | B26: Codman Academy Charter Public School | C26: 438
A27: 27 | B27: Collegiate Charter School of Lowell | C27: 3503
A28: 28 | B28: Community Charter School of Cambridge | C28: 436
A29: 29 | B29: Community Day Charter Public School - Gateway | C29: 426
A30: 30 | B30: Community Day Charter Public School - Prospect | C30: 440
A31: 31 | B31: Community Day Charter Public School - R. Kingman Webster | C31: 431
A32: 32 | B32: Conservatory Lab Charter School | C32: 439
A33: 33 | B33: Dudley Street Neighborhood Charter School | C33: 407
A34: 34 | B34: Edward M. Kennedy Academy for Health Careers: A Horace Mann Charter Public School | C34: 452
A35: 35 | B35: Excel Academy Charter School | C35: 410
A36: 36 | B36: Four Rivers Charter Public School | C36: 413
A37: 37 | B37: Foxborough Regional Charter School | C37: 446
A38: 38 | B38: Francis W. Parker Charter Essential School | C38: 478
A39: 39 | B39: Global Learning Charter Public School | C39: 496
A40: 40 | B40: Hampden Charter School of Science | C40: 499
A41: 41 | B41: Helen Y Davis Leadership Academy Charter Public School | C41: 419
A42: 42 | B42: Hill View Montessori Charter Public School | C42: 455
A43: 43 | B43: Hilltown Cooperative Charter Public School | C43: 450
A44: 44 | B44: Holyoke Community Charter School | C44: 453
A45: 45 | B45: Innovation Academy Charter School | C45: 435
A46: 46 | B46: KIPP Academy Boston Charter School | C46: 463
A47: 47 | B47: KIPP Academy Lynn Charter School | C47: 429
A48: 48 | B48: Lawrence Family Development Charter School | C48: 454
A49: 49 | B49: Libertas Academy Charter School (New school opening FY18) | C49: 3514
A50: 50 | B50: Lowell Community Charter Public School | C50: 456
A51: 51 | B51: Lowell Middlesex Academy Charter School | C51: 458
A52: 52 | B52: Marblehead Community Charter Public School | C52: 464
A53: 53 | B53: Martha's Vineyard Public Charter School | C53: 466
A54: 54 | B54: Martin Luther King, Jr. Charter School of Excellence | C54: 492
A55: 55 | B55: Match Charter Public School | C55: 469
A56: 56 | B56: Mystic Valley Regional Charter School | C56: 470
A57: 57 | B57: Neighborhood House Charter School | C57: 444
A58: 58 | B58: New Heights Charter School of Brockton | C58: 3513
A59: 59 | B59: Old Sturbridge Academy Charter Public School | C59: 3515
A60: 60 | B60: Paulo Freire Social Justice Charter School | C60: 3501
A61: 61 | B61: Phoenix Academy Charter Public High School, Chelsea | C61: 493
A62: 62 | B62: Phoenix Academy Public Charter High School, Springfield | C62: 3508
A63: 63 | B63: Pioneer Charter School of Science | C63: 494
A64: 64 | B64: Pioneer Charter School of Science II | C64: 3506
A65: 65 | B65: Pioneer Valley Chinese Immersion Charter School | C65: 497
A66: 66 | B66: Pioneer Valley Performing Arts Charter Public School | C66: 479
A67: 67 | B67: Prospect Hill Academy Charter School | C67: 487
A68: 68 | B68: Rising Tide Charter Public School | C68: 483
A69: 69 | B69: River Valley Charter School | C69: 482
A70: 70 | B70: Roxbury Preparatory Charter School | C70: 484
A71: 71 | B71: Sabis International Charter School | C71: 441
A72: 72 | B72: Salem Academy Charter School | C72: 485
A73: 73 | B73: Seven Hills Charter Public School | C73: 486
A74: 74 | B74: Silver Hill Horace Mann Charter School | C74: 477
A75: 75 | B75: Sizer School, A North Central Charter Essential School | C75: 474
A76: 76 | B76: South Shore Charter Public School | C76: 488
A77: 77 | B77: Springfield Preparatory Charter School | C77: 3510
A78: 78 | B78: Sturgis Charter Public School | C78: 489
A79: 79 | B79: UP Academy Charter School of Boston | C79: 480
A80: 80 | B80: UP Academy Charter School of Dorchester | C80: 3505
A81: 81 | B81: Veritas Preparatory Charter School | C81: 498
A82: 82 | B82: Greenfield Commonwealth Virtual School | C82: 3901
A83: 83 | B83: TEC Connections Academy Commonwealth Virtual School | C83: 3902
A84: 84 | B84: Commonwealth Charter Statewide Totals | C84: C
A85: 85 | B85: Horace Mann Charter Statewide Totals | C85: HM
A86: 86 | B86: All Charter Schools Statewide Totals | C86: ALL

Sheet FACTS (hidden)
A1: LEA | B1: Charter School | C1: Type | D1: Acct. Cohort | E1: Acct. Liaison | F1: Location | G1: Charter Status 7/1/2018 | H1: Charter Granted | I1: Counts Toward Numeric Cap | J1: Year Opened (Fall) | K1: FY19 Years of Operation | L1: 1st Charter Renewal | M1: 2nd Charter Renewal | N1: 3rd Charter Renewal | O1: 4th Charter Renewal Year | P1: 1st Charter Renewal | Q1: 2nd Charter Renewal | R1: 3rd Charter Renewal | S1: 4th Charter Renewal | T1: Last Charter Renewal | U1: Charter Expires | V1: Charter Expires | W1: Regional | X1: EMO | Y1: Max Grade Span | Z1: Max. Enroll # | AA1: Location Type | AB1: School Type | AC1: If Closed: School Year of Closure | AD1: Closure type
A2: 445 | B2: Abby Kelley Foster Charter Public School | C2: C | D2: 2 | F2: Worcester | G2: No Status | H2: 1998 | I2: Yes | J2: 1998 | K2: 21 | L2: 2003 | M2: 2008 | N2: 2013 | O2: 2018 | P2: 2003 | Q2: 2008 | R2: 2013 | S2: 2018 | T2: 2018 | U2: 2023 | V2: 2023 | W2: Yes | X2: Former | Y2: K-12 | Z2: 1426 | AA2: Urban | AB2: K12 | AC2: NA
A3: 412 | B3: Academy of the Pacific Rim Charter Public School | C3: C | D3: 1 | F3: Boston | G3: No Status | H3: 1995 | I3: Yes | J3: 1997 | K3: 22 | L3: 2002 | M3: 2007 | N3: 2012 | O3: 2017 | P3: 2002 | Q3: 2007 | R3: 2012 | S3: 2017 | T3: 2017 | U3: 2022 | V3: 2022 | W3: No | X3: No | Y3: 05-12 | Z3: 545 | AA3: Boston | AB3: MSHS | AC3: NA
A4: 430 | B4: Advanced Math and Science Academy Charter School | C4: C | D4: 4 | F4: Marlborough | G4: No Status | H4: 2004 | I4: Yes | J4: 2005 | K4: 14 | L4: 2010 | M4: 2015 | N4: 2020 | O4: 2025 | P4: 2010 | Q4: 2015 | R4: NA | S4: NA | T4: 2015 | U4: 2020 | V4: 2020 | W4: Yes | X4: No | Y4: 06-12 | Z4: 966 | AA4: Suburb | AB4: MSHS | AC4: NA
A5: 409 | B5: Alma del Mar Charter School | C5: C | D5: 5 | F5: New Bedford | G5: No Status | H5: 2011 | I5: Yes | J5: 2011 | K5: 8 | L5: 2016 | M5: 2021 | N5: 2026 | O5: 2031 | P5: 2016 | Q5: NA | R5: NA | S5: NA | T5: 2016 | U5: 2021 | V5: 2021 | W5: No | X5: No | Y5: K-08 | Z5: 450 | AA5: Urban | AB5: ESMS | AC5: NA
A6: 3509 | B6: Argosy Collegiate Charter School | C6: C | D6: 3 | F6: Fall River | G6: No Status | H6: 2014 | I6: No | J6: 2014 | K6: 5 | L6: 2019 | M6: 2024 | N6: 2029 | O6: 2034 | P6: NA | Q6: NA | R6: NA | S6: NA | T6: 0 | U6: 2019 | V6: 2019 | W6: No | X6: No | Y6: 06-12 | Z6: 644 | AA6: Urban | AB6: MSHS | AC6: NA
A7: 491 | B7: Atlantis Charter School | C7: C | D7: 4 | F7: Fall River | G7: No Status | H7: 1994 | I7: Yes | J7: 1995 | K7: 24 | L7: 2000 | M7: 2005 | N7: 2010 | O7: 2015 | P7: 2000 | Q7: 2005 | R7: 2010 | S7: 2015 | T7: 2015 | U7: 2020 | V7: 2020 | W7: No | X7: No | Y7: K-12 | Z7: 1378 | AA7: Urban | AB7: K12 | AC7: NA
A8: 427 | B8: Barnstable Community Horace Mann Charter Public School | C8: HM | D8: 3 | F8: Barnstable | G8: No Status | H8: 2004 | I8: Yes | J8: 2004 | K8: 15 | L8: 2009 | M8: 2014 | N8: 2019 | O8: 2024 | P8: 2009 | Q8: 2014 | R8: NA | S8: NA | T8: 2014 | U8: 2019 | V8: 2019 | W8: NA | X8: No | Y8: K-03 | Z8: 475 | AA8: Suburb | AB8: ES | AC8: NA
A9: 3502 | B9: Baystate Academy Charter Public School | C9: C | D9: 2 | F9: Springfield | G9: Conditions | H9: 2012 | I9: No | J9: 2013 | K9: 6 | L9: 2018 | M9: 2023 | N9: 2028 | O9: 2033 | P9: 2018 | Q9: NA | R9: NA | S9: NA | T9: 2018 | U9: 2023 | V9: 2023 | W9: No | X9: No | Y9: 06-12 | Z9: 560 | AA9: Urban | AB9: MSHS | AC9: NA
A10: 420 | B10: Benjamin Banneker Charter Public School | C10: C | D10: 5 | F10: Cambridge | G10: No Status | H10: 1995 | I10: Yes | J10: 1996 | K10: 23 | L10: 2001 | M10: 2006 | N10: 2011 | O10: 2016 | P10: 2001 | Q10: 2006 | R10: 2011 | S10: 2016 | T10: 2016 | U10: 2021 | V10: 2021 | W10: No | X10: No | Y10: PK-06 | Z10: 350 | AA10: Urban | AB10: ESMS | AC10: NA
A11: 447 | B11: Benjamin Franklin Classical Charter Public School | C11: C | D11: 4 | F11: Franklin | G11: No Status | H11: 1994 | I11: Yes | J11: 1995 | K11: 24 | L11: 2000 | M11: 2005 | N11: 2010 | O11: 2015 | P11: 2000 | Q11: 2005 | R11: 2010 | S11: 2015 | T11: 2015 | U11: 2020 | V11: 2020 | W11: Yes | X11: No | Y11: K-08 | Z11: 900 | AA11: Suburb | AB11: ESMS | AC11: NA
A12: 3511 | B12: Bentley Academy Charter School | C12: HM | D12: 4 | F12: Salem | G12: No Status | H12: 2015 | I12: Yes | J12: 2015 | K12: 4 | L12: 2020 | M12: 2025 | N12: 2030 | O12: 2035 | P12: NA | Q12: NA | R12: NA | S12: NA | T12: 0 | U12: 2020 | V12: 2020 | W12: No | X12: No | Y12: K-05 | Z12: 350 | AA12: Urban | AB12: ES | AC12: NA
A13: 414 | B13: Berkshire Arts and Technology Charter Public School | C13: C | D13: 3 | F13: Adams | G13: No Status | H13: 2003 | I13: Yes | J13: 2004 | K13: 15 | L13: 2009 | M13: 2014 | N13: 2019 | O13: 2024 | P13: 2009 | Q13: 2014 | R13: NA | S13: NA | T13: 2014 | U13: 2019 | V13: 2019 | W13: Yes | X13: No | Y13: 06-12 | Z13: 363 | AA13: Rural | AB13: MSHS | AC13: NA
A14: 449 | B14: Boston Collegiate Charter School | C14: C | D14: 2 | F14: Boston | G14: No Status | H14: 1998 | I14: Yes | J14: 1998 | K14: 21 | L14: 2003 | M14: 2008 | N14: 2013 | O14: 2018 | P14: 2003 | Q14: 2008 | R14: 2013 | S14: 2018 | T14: 2018 | U14: 2023 | V14: 2023 | W14: No | X14: No | Y14: 05-12 | Z14: 700 | AA14: Boston | AB14: MSHS | AC14: NA
A15: 424 | B15: Boston Day and Evening Academy Charter School | C15: HM | D15: 2 | F15: Boston | G15: No Status | H15: 1998 | I15: Yes | J15: 1998 | K15: 21 | L15: 2003 | M15: 2008 | N15: 2013 | O15: 2018 | P15: 2003 | Q15: 2008 | R15: 2013 | S15: 2018 | T15: 2018 | U15: 2023 | V15: 2023 | W15: NA | X15: No | Y15: 09-12 | Z15: 405 | AA15: Boston | AB15: HS | AC15: NA
A16: 411 | B16: Boston Green Academy Horace Mann Charter School | C16: HM | D16: 5 | F16: Boston | G16: Probation | H16: 2011 | I16: Yes | J16: 2011 | K16: 8 | L16: 2016 | M16: 2021 | N16: 2026 | O16: 2031 | P16: 2016 | Q16: NA | R16: NA | S16: NA | T16: 2016 | U16: 2021 | V16: 2021 | W16: NA | X16: No | Y16: 06-12 | Z16: 595 | AA16: Boston | AB16: MSHS | AC16: NA
A17: 416 | B17: Boston Preparatory Charter Public School | C17: C | D17: 3 | F17: Boston | G17: No Status | H17: 2003 | I17: Yes | J17: 2004 | K17: 15 | L17: 2009 | M17: 2014 | N17: 2019 | O17: 2024 | P17: 2009 | Q17: 2014 | R17: NA | S17: NA | T17: 2014 | U17: 2019 | V17: 2019 | W17: No | X17: No | Y17: 06-12 | Z17: 700 | AA17: Boston | AB17: MSHS | AC17: NA
A18: 481 | B18: Boston Renaissance Charter Public School | C18: C | D18: 4 | F18: Boston | G18: Conditions | H18: 1994 | I18: Yes | J18: 1995 | K18: 24 | L18: 2000 | M18: 2005 | N18: 2010 | O18: 2015 | P18: 2000 | Q18: 2005 | R18: 2010 | S18: 2015 | T18: 2015 | U18: 2020 | V18: 2020 | W18: No | X18: Former | Y18: PK-06 | Z18: 944 | AA18: Boston | AB18: ESMS | AC18: NA
A19: 417 | B19: Bridge Boston Charter School | C19: C | D19: 5 | F19: Boston | G19: No Status | H19: 2011 | I19: No | J19: 2011 | K19: 8 | L19: 2016 | M19: 2021 | N19: 2026 | O19: 2031 | P19: 2016 | Q19: NA | R19: NA | S19: NA | T19: 2016 | U19: 2021 | V19: 2021 | W19: No | X19: No | Y19: PK-8 | Z19: 335 | AA19: Boston | AB19: ESMS | AC19: NA
A20: 428 | B20: Brooke Charter School | C20: C | D20: 1 | F20: Boston | G20: No Status | H20: 2001 | I20: Yes | J20: 2002 | K20: 17 | L20: 2007 | M20: 2012 | N20: 2017 | O20: 2022 | P20: 2007 | Q20: 2012 | R20: 2017 | S20: NA | T20: 2017 | U20: 2022 | V20: 2022 | W20: Yes | X20: No | Y20: K-12 | Z20: 2221 | AA20: Boston | AB20: K12 | AC20: NA
A21: 432 | B21: Cape Cod Lighthouse Charter School | C21: C | D21: 4 | F21: Harwich | G21: No Status | H21: 1994 | I21: Yes | J21: 1995 | K21: 24 | L21: 2000 | M21: 2005 | N21: 2010 | O21: 2015 | P21: 2000 | Q21: 2005 | R21: 2010 | S21: 2015 | T21: 2015 | U21: 2020 | V21: 2020 | W21: Yes | X21: No | Y21: 06-08 | Z21: 260 | AA21: Suburb | AB21: MS | AC21: NA
A22: 418 | B22: Christa McAuliffe Charter School | C22: C | D22: 1 | F22: Framingham | G22: No Status | H22: 2001 | I22: Yes | J22: 2002 | K22: 17 | L22: 2007 | M22: 2012 | N22: 2017 | O22: 2022 | P22: 2007 | Q22: 2012 | R22: 2017 | S22: NA | T22: 2017 | U22: 2022 | V22: 2022 | W22: Yes | X22: Former | Y22: 06-08 | Z22: 396 | AA22: Suburb | AB22: MS | AC22: NA
A23: 437 | B23: City on a Hill Charter Public School Circuit Street | C23: C | D23: 4 | F23: Boston | G23: No Status | H23: 1994 | I23: Yes | J23: 1995 | K23: 24 | L23: 2000 | M23: 2005 | N23: 2010 | O23: 2015 | P23: 2000 | Q23: 2005 | R23: 2010 | S23: 2015 | T23: 2015 | U23: 2020 | V23: 2020 | W23: No | X23: No | Y23: 09-12 | Z23: 280 | AA23: Boston | AB23: HS | AC23: NA
A24: 3504 | B24: City on a Hill Charter Public School Dudley Square | C24: C | D24: 2 | F24: Boston | G24: No Status | H24: 2013 | I24: No | J24: 2013 | K24: 6 | L24: 2018 | M24: 2023 | N24: 2028 | O24: 2033 | P24: 2018 | Q24: NA | R24: NA | S24: NA | T24: 2018 | U24: 2023 | V24: 2023 | W24: No | X24: No | Y24: 09-12 | Z24: 280 | AA24: Boston | AB24: HS | AC24: NA
A25: 3507 | B25: City On A Hill Charter Public School New Bedford | C25: C | D25: 3 | F25: New Bedford | G25: No Status | H25: 2013 | I25: Yes | J25: 2014 | K25: 5 | L25: 2019 | M25: 2024 | N25: 2029 | O25: 2034 | P25: NA | Q25: NA | R25: NA | S25: NA | T25: 0 | U25: 2019 | V25: 2019 | W25: No | X25: No | Y25: 09-12 | Z25: 280 | AA25: Urban | AB25: HS | AC25: NA
A26: 438 | B26: Codman Academy Charter Public School | C26: C | D26: 5 | F26: Boston | G26: Conditions | H26: 2001 | I26: Yes | J26: 2001 | K26: 18 | L26: 2006 | M26: 2011 | N26: 2016 | O26: 2021 | P26: 2006 | Q26: 2011 | R26: 2016 | S26: NA | T26: 2016 | U26: 2021 | V26: 2021 | W26: No | X26: No | Y26: PK-12 | Z26: 345 | AA26: Boston | AB26: K12 | AC26: NA
A27: 3503 | B27: Collegiate Charter School of Lowell | C27: C | D27: 2 | F27: Lowell | G27: No Status | H27: 2012 | I27: No | J27: 2013 | K27: 6 | L27: 2018 | M27: 2023 | N27: 2028 | O27: 2033 | P27: 2018 | Q27: NA | R27: NA | S27: NA | T27: 2018 | U27: 2023 | V27: 2023 | W27: No | X27: Yes | Y27: K-12 | Z27: 1200 | AA27: Urban | AB27: K12 | AC27: NA
A28: 436 | B28: Community Charter School of Cambridge | C28: C | D28: 4 | F28: Cambridge | G28: No Status | H28: 2004 | I28: Yes | J28: 2005 | K28: 14 | L28: 2010 | M28: 2015 | N28: 2020 | O28: 2025 | P28: 2010 | Q28: 2015 | R28: NA | S28: NA | T28: 2015 | U28: 2020 | V28: 2020 | W28: No | X28: No | Y28: 06-12 | Z28: 420 | AA28: Urban | AB28: MSHS | AC28: NA
A29: 426 | B29: Community Day Charter Public School - Gateway | C29: C | D29: 1 | F29: Lawrence | G29: No Status | H29: 2011 | I29: No | J29: 2012 | K29: 7 | L29: 2017 | M29: 2022 | N29: 2027 | O29: 2032 | P29: 2017 | Q29: NA | R29: NA | S29: NA | T29: 2017 | U29: 2022 | V29: 2022 | W29: No | X29: Yes | Y29: PK-08 | Z29: 400 | AA29: Urban | AB29: ESMS | AC29: NA
A30: 440 | B30: Community Day Charter Public School - Prospect | C30: C | D30: 4 | F30: Lawrence | G30: No Status | H30: 1994 | I30: Yes | J30: 1995 | K30: 24 | L30: 2000 | M30: 2005 | N30: 2010 | O30: 2015 | P30: 2000 | Q30: 2005 | R30: 2010 | S30: 2015 | T30: 2015 | U30: 2020 | V30: 2020 | W30: No | X30: Yes | Y30: PK-08 | Z30: 400 | AA30: Urban | AB30: ESMS | AC30: NA
A31: 431 | B31: Community Day Charter Public School - R. Kingman Webster | C31: C | D31: 1 | F31: Lawrence | G31: No Status | H31: 2011 | I31: No | J31: 2012 | K31: 7 | L31: 2017 | M31: 2022 | N31: 2027 | O31: 2032 | P31: 2017 | Q31: NA | R31: NA | S31: NA | T31: 2017 | U31: 2022 | V31: 2022 | W31: No | X31: Yes | Y31: PK-08 | Z31: 400 | AA31: Urban | AB31: ESMS | AC31: NA
A32: 439 | B32: Conservatory Lab Charter School | C32: C | D32: 3 | F32: Boston | G32: No Status | H32: 1998 | I32: Yes | J32: 1999 | K32: 20 | L32: 2004 | M32: 2009 | N32: 2014 | O32: 2019 | P32: 2004 | Q32: 2009 | R32: 2014 | S32: NA | T32: 2014 | U32: 2019 | V32: 2019 | W32: No | X32: No | Y32: PK-08 | Z32: 444 | AA32: Boston | AB32: ESMS | AC32: NA
A33: 407 | B33: Dudley Street Neighborhood Charter School | C33: HM | D33: 1 | F33: Boston | G33: No Status | H33: 2012 | I33: Yes | J33: 2012 | K33: 7 | L33: 2017 | M33: 2022 | N33: 2027 | O33: 2032 | P33: 2017 | Q33: NA | R33: NA | S33: NA | T33: 2017 | U33: 2022 | V33: 2022 | W33: NA | X33: No | Y33: PK-5 | Z33: 325 | AA33: Boston | AB33: ES | AC33: NA
A34: 452 | B34: Edward M. Kennedy Academy for Health Careers: A Horace Mann Charter Public School | C34: HM | D34: 2 | F34: Boston | G34: No Status | H34: 1998 | I34: Yes | J34: 1998 | K34: 21 | L34: 2003 | M34: 2008 | N34: 2013 | O34: 2018 | P34: 2003 | Q34: 2008 | R34: 2013 | S34: 2018 | T34: 2018 | U34: 2023 | V34: 2023 | W34: NA | X34: No | Y34: 09-12 | Z34: 448 | AA34: Boston | AB34: HS | AC34: NA
A35: 410 | B35: Excel Academy Charter School | C35: C | D35: 2 | F35: Boston/Chelsea | G35: No Status | H35: 2003 | I35: Yes | J35: 2003 | K35: 16 | L35: 2008 | M35: 2013 | N35: 2018 | O35: 2023 | P35: 2008 | Q35: 2013 | R35: 2018 | S35: NA | T35: 2018 | U35: 2023 | V35: 2023 | W35: Yes | X35: No | Y35: 05-12 | Z35: 1344 | AA35: Boston | AB35: MSHS | AC35: NA
A36: 413 | B36: Four Rivers Charter Public School | C36: C | D36: 2 | F36: Greenfield | G36: No Status | H36: 2002 | I36: Yes | J36: 2003 | K36: 16 | L36: 2008 | M36: 2013 | N36: 2018 | O36: 2023 | P36: 2008 | Q36: 2013 | R36: 2018 | S36: NA | T36: 2018 | U36: 2023 | V36: 2023 | W36: Yes | X36: No | Y36: 07-12 | Z36: 220 | AA36: Urban | AB36: MSHS | AC36: NA
A37: 446 | B37: Foxborough Regional Charter School | C37: C | D37: 2 | F37: Foxborough | G37: No Status | H37: 1998 | I37: Yes | J37: 1998 | K37: 21 | L37: 2003 | M37: 2008 | N37: 2013 | O37: 2018 | P37: 2003 | Q37: 2008 | R37: 2013 | S37: 2018 | T37: 2018 | U37: 2023 | V37: 2023 | W37: Yes | X37: Former | Y37: K-12 | Z37: 1700 | AA37: Suburb | AB37: K12 | AC37: NA
A38: 478 | B38: Francis W. Parker Charter Essential School | C38: C | D38: 4 | F38: Devens | G38: No Status | H38: 1994 | I38: Yes | J38: 1995 | K38: 24 | L38: 2000 | M38: 2005 | N38: 2010 | O38: 2015 | P38: 2000 | Q38: 2005 | R38: 2010 | S38: 2015 | T38: 2015 | U38: 2020 | V38: 2020 | W38: Yes | X38: No | Y38: 07-12 | Z38: 400 | AA38: Suburb | AB38: MSHS | AC38: NA
A39: 496 | B39: Global Learning Charter Public School | C39: C | D39: 1 | F39: New Bedford | G39: No Status | H39: 2006 | I39: Yes | J39: 2007 | K39: 12 | L39: 2012 | M39: 2017 | N39: 2022 | O39: 2027 | P39: 2012 | Q39: 2017 | R39: NA | S39: NA | T39: 2017 | U39: 2022 | V39: 2022 | W39: No | X39: No | Y39: 05-12 | Z39: 500 | AA39: Urban | AB39: MSHS | AC39: NA
A40: 499 | B40: Hampden Charter School of Science | C40: C | D40: 3 | F40: Chicopee | G40: No Status | H40: 2008 | I40: Yes | J40: 2009 | K40: 10 | L40: 2014 | M40: 2019 | N40: 2024 | O40: 2029 | P40: 2014 | Q40: NA | R40: NA | S40: NA | T40: 2014 | U40: 2019 | V40: 2019 | W40: Yes | X40: No | Y40: 06-12 | Z40: 560 | AA40: Urban | AB40: MSHS | AC40: NA
A41: 3516 | B41: Hampden Charter School of Science West | C41: C | F41: Westfield | G41: No Status | H41: 2017 | I41: No | J41: 2018 | K41: 1 | L41: 2023 | M41: 2028 | N41: 2033 | O41: 2038 | P41: NA | Q41: NA | R41: NA | S41: NA | T41: 0 | U41: 2023 | V41: 2023 | W41: Yes | X41: No | Y41: 06-12 | Z41: 588 | AA41: Rural | AB41: MSHS | AC41: NA
A42: 419 | B42: Helen Y Davis Leadership Academy Charter Public School | C42: C | D42: 2 | F42: Boston | G42: Probation | H42: 2002 | I42: Yes | J42: 2003 | K42: 16 | L42: 2008 | M42: 2013 | N42: 2018 | O42: 2023 | P42: 2008 | Q42: 2013 | R42: 2018 | S42: NA | T42: 2018 | U42: 2023 | V42: 2023 | W42: No | X42: No | Y42: 06-08 | Z42: 216 | AA42: Boston | AB42: MS | AC42: NA
A43: 455 | B43: Hill View Montessori Charter Public School | C43: C | D43: 3 | F43: Haverhill | G43: No Status | H43: 2003 | I43: Yes | J43: 2004 | K43: 15 | L43: 2009 | M43: 2014 | N43: 2019 | O43: 2024 | P43: 2009 | Q43: 2014 | R43: NA | S43: NA | T43: 2014 | U43: 2019 | V43: 2019 | W43: No | X43: No | Y43: K-08 | Z43: 306 | AA43: Urban | AB43: ESMS | AC43: NA
A44: 450 | B44: Hilltown Cooperative Charter Public School | C44: C | D44: 4 | F44: East Hampton | G44: No Status | H44: 1994 | I44: Yes | J44: 1995 | K44: 24 | L44: 2000 | M44: 2005 | N44: 2010 | O44: 2015 | P44: 2000 | Q44: 2005 | R44: 2010 | S44: 2015 | T44: 2015 | U44: 2020 | V44: 2020 | W44: Yes | X44: No | Y44: K-08 | Z44: 218 | AA44: Rural | AB44: ESMS | AC44: NA
A45: 453 | B45: Holyoke Community Charter School | C45: C | D45: 4 | F45: Holyoke | G45: No Status | H45: 2001 | I45: Yes | J45: 2005 | K45: 14 | L45: 2010 | M45: 2015 | N45: 2020 | O45: 2025 | P45: 2010 | Q45: 2015 | R45: NA | S45: NA | T45: 2015 | U45: 2020 | V45: 2020 | W45: No | X45: Yes | Y45: K-08 | Z45: 702 | AA45: Urban | AB45: ESMS | AC45: NA
A46: 435 | B46: Innovation Academy Charter School | C46: C | D46: 5 | F46: Tyngsborough | G46: No Status | H46: 1995 | I46: Yes | J46: 1996 | K46: 23 | L46: 2001 | M46: 2006 | N46: 2011 | O46: 2016 | P46: 2001 | Q46: 2006 | R46: 2011 | S46: 2016 | T46: 2016 | U46: 2021 | V46: 2021 | W46: Yes | X46: Former | Y46: 05-12 | Z46: 800 | AA46: Suburb | AB46: MSHS | AC46: NA
A47: 463 | B47: KIPP Academy Boston Charter School | C47: C | D47: 1 | F47: Boston | G47: No Status | H47: 2011 | I47: No | J47: 2012 | K47: 7 | L47: 2017 | M47: 2022 | N47: 2027 | O47: 2032 | P47: 2017 | Q47: NA | R47: NA | S47: NA | T47: 2017 | U47: 2022 | V47: 2022 | W47: No | X47: No | Y47: K-08 | Z47: 588 | AA47: Boston | AB47: ESMS | AC47: NA
A48: 429 | B48: KIPP Academy Lynn Charter School | C48: C | D48: 3 | F48: Lynn | G48: No Status | H48: 2004 | I48: Yes | J48: 2004 | K48: 15 | L48: 2009 | M48: 2014 | N48: 2019 | O48: 2024 | P48: 2009 | Q48: 2014 | R48: NA | S48: NA | T48: 2014 | U48: 2019 | V48: 2019 | W48: No | X48: No | Y48: K-12 | Z48: 1586 | AA48: Urban | AB48: MSHS | AC48: NA
A49: 454 | B49: Lawrence Family Development Charter School | C49: C | D49: 4 | F49: Lawrence | G49: No Status | H49: 1995 | I49: Yes | J49: 1995 | K49: 24 | L49: 2000 | M49: 2005 | N49: 2010 | O49: 2015 | P49: 2000 | Q49: 2005 | R49: 2010 | S49: 2015 | T49: 2015 | U49: 2020 | V49: 2020 | W49: No | X49: No | Y49: PK-08 | Z49: 800 | AA49: Urban | AB49: ESMS | AC49: NA
A50: 3514 | B50: Libertas Academy Charter School (New school opening FY18) | C50: C | D50: Springfield | E50: No | F50: Springfield | G50: No Status | H50: 2016 | I50: No | J50: 2017 | K50: 2 | L50: 2022 | M50: 2027 | N50: 2032 | O50: 2037 | P50: NA | Q50: NA | R50: NA | S50: NA | T50: 0 | U50: 2022 | V50: 2022 | W50: No | X50: No | Y50: 06-12 | Z50: 630 | AA50: Urban | AB50: ESMS | AC50: NA
A51: 456 | B51: Lowell Community Charter Public School | C51: C | D51: 4 | F51: Lowell | G51: No Status | H51: 1999 | I51: Yes | J51: 2000 | K51: 19 | L51: 2005 | M51: 2010 | N51: 2015 | O51: 2020 | P51: 2005 | Q51: 2010 | R51: 2015 | S51: NA | T51: 2015 | U51: 2020 | V51: 2020 | W51: No | X51: Former | Y51: PK-08 | Z51: 800 | AA51: Urban | AB51: ESMS | AC51: NA
A52: 458 | B52: Lowell Middlesex Academy Charter School | C52: C | D52: 4 | F52: Lowell | G52: No Status | H52: 1994 | I52: Yes | J52: 1995 | K52: 24 | L52: 2000 | M52: 2005 | N52: 2010 | O52: 2015 | P52: 2000 | Q52: 2005 | R52: 2010 | S52: 2015 | T52: 2015 | U52: 2020 | V52: 2020 | W52: No | X52: No | Y52: 09-12 | Z52: 150 | AA52: Urban | AB52: HS | AC52: NA
A53: 3517 | B53: Map Academy Charter School | C53: C | F53: Plymouth | G53: No Status | H53: 2017 | I53: Yes | J53: 2018 | K53: 1 | L53: 2023 | M53: 2028 | N53: 2033 | O53: 2038 | P53: NA | Q53: NA | R53: NA | S53: NA | T53: 0 | U53: 2023 | V53: 2023 | W53: Yes | X53: No | Y53: 09-12 | Z53: 300 | AA53: Suburb | AB53: HS | AC53: NA
A54: 464 | B54: Marblehead Community Charter Public School | C54: C | D54: 4 | F54: Marblehead | G54: No Status | H54: 1994 | I54: Yes | J54: 1995 | K54: 24 | L54: 2000 | M54: 2005 | N54: 2010 | O54: 2015 | P54: 2000 | Q54: 2005 | R54: 2010 | S54: 2015 | T54: 2015 | U54: 2020 | V54: 2020 | W54: No | X54: No | Y54: 04-08 | Z54: 230 | AA54: Suburb | AB54: ESMS | AC54: NA
A55: 466 | B55: Martha's Vineyard Public Charter School | C55: C | D55: 5 | F55: West Tisbury | G55: No Status | H55: 1995 | I55: Yes | J55: 1996 | K55: 23 | L55: 2001 | M55: 2006 | N55: 2011 | O55: 2016 | P55: 2001 | Q55: 2006 | R55: 2011 | S55: 2016 | T55: 2016 | U55: 2021 | V55: 2021 | W55: Yes | X55: No | Y55: K-12 | Z55: 180 | AA55: Suburb | AB55: K12 | AC55: NA
A56: 492 | B56: Martin Luther King, Jr. Charter School of Excellence | C56: C | D56: 5 | F56: Springfield | G56: Conditions | H56: 2005 | I56: Yes | J56: 2006 | K56: 13 | L56: 2011 | M56: 2016 | N56: 2021 | O56: 2026 | P56: 2011 | Q56: 2016 | R56: NA | S56: NA | T56: 2016 | U56: 2021 | V56: 2021 | W56: No | X56: No | Y56: K-05 | Z56: 360 | AA56: Urban | AB56: ES | AC56: NA
A57: 469 | B57: Match Charter Public School | C57: C | D57: 4 | F57: Boston | G57: No Status | H57: 1999 | I57: Yes | J57: 2000 | K57: 19 | L57: 2005 | M57: 2010 | N57: 2015 | O57: 2020 | P57: 2005 | Q57: 2010 | R57: 2015 | S57: NA | T57: 2015 | U57: 2020 | V57: 2020 | W57: No | X57: No | Y57: PK-12 | Z57: 1250 | AA57: Boston | AB57: K12 | AC57: NA
A58: 470 | B58: Mystic Valley Regional Charter School | C58: C | D58: 2 | F58: Malden | G58: No Status | H58: 1998 | I58: Yes | J58: 1998 | K58: 21 | L58: 2003 | M58: 2008 | N58: 2013 | O58: 2018 | P58: 2003 | Q58: 2008 | R58: 2013 | S58: 2018 | T58: 2018 | U58: 2023 | V58: 2023 | W58: Yes | X58: Former | Y58: K-12 | Z58: 1900 | AA58: Urban | AB58: K12 | AC58: NA
A59: 444 | B59: Neighborhood House Charter School | C59: C | D59: 4 | F59: Boston | G59: No Status | H59: 1994 | I59: Yes | J59: 1995 | K59: 24 | L59: 2000 | M59: 2005 | N59: 2010 | O59: 2015 | P59: 2000 | Q59: 2005 | R59: 2010 | S59: 2015 | T59: 2015 | U59: 2020 | V59: 2020 | W59: No | X59: No | Y59: PK-12 | Z59: 828 | AA59: Boston | AB59: K12 | AC59: NA
A60: 3513 | B60: New Heights Charter School of Brockton | C60: C | D60: 315 | E60: 315 | F60: Brockton | G60: No Status | H60: 2016 | I60: No | J60: 2016 | K60: 3 | L60: 2021 | M60: 2026 | N60: 2031 | O60: 2036 | P60: NA | Q60: NA | R60: NA | S60: NA | T60: 0 | U60: 2021 | V60: 2021 | W60: Yes | X60: No | Y60: 06-12 | Z60: 735 | AA60: Urban | AB60: ESMS | AC60: NA
A61: 3515 | B61: Old Sturbridge Academy Charter Public School | C61: C | F61: Sturbridge | G61: No Status | H61: 2017 | I61: Yes | J61: 2017 | K61: 2 | L61: 2022 | M61: 2027 | N61: 2032 | O61: 2037 | P61: NA | Q61: NA | R61: NA | S61: NA | T61: 0 | U61: 2022 | V61: 2022 | W61: Yes | X61: Yes | Y61: K-08 | Z61: 360 | AA61: Rural | AB61: ESMS | AC61: NA
A62: 3501 | B62: Paulo Freire Social Justice Charter School | C62: C | D62: 2 | F62: Holyoke | G62: Probation | H62: 2012 | I62: No | J62: 2013 | K62: 6 | L62: 2018 | M62: 2023 | N62: 2028 | O62: 2033 | P62: 2018 | Q62: NA | R62: NA | S62: NA | T62: 2018 | U62: 2023 | V62: 2023 | W62: Yes | X62: No | Y62: 09-12 | Z62: 500 | AA62: Urban | AB62: HS | AC62: NA
A63: 493 | B63: Phoenix Academy Charter Public High School, Chelsea | C63: C | D63: 5 | F63: Chelsea | G63: No Status | H63: 2005 | I63: Yes | J63: 2006 | K63: 13 | L63: 2011 | M63: 2016 | N63: 2021 | O63: 2026 | P63: 2011 | Q63: 2016 | R63: NA | S63: NA | T63: 2016 | U63: 2021 | V63: 2021 | W63: Yes | X63: No | Y63: 09-12 | Z63: 225 | AA63: Urban | AB63: HS | AC63: NA
A64: 3518 | B64: Phoenix Academy Public Charter High School, Lawrence | C64: C | F64: Lawrence | G64: No Status | H64: 2018 | I64: No | J64: 2018 | K64: 1 | L64: 2023 | M64: 2028 | N64: 2033 | O64: 2038 | P64: NA | Q64: NA | R64: NA | S64: NA | T64: 0 | U64: 2023 | V64: 2023 | W64: Yes | X64: No | Y64: 09-12 | Z64: 250 | AA64: Urban | AB64: HS | AC64: NA
A65: 3508 | B65: Phoenix Academy Public Charter High School, Springfield | C65: C | D65: 3 | F65: Springfield | G65: No Status | H65: 2013 | I65: No | J65: 2014 | K65: 5 | L65: 2019 | M65: 2024 | N65: 2029 | O65: 2034 | P65: NA | Q65: NA | R65: NA | S65: NA | T65: 0 | U65: 2019 | V65: 2019 | W65: Yes | X65: No | Y65: 09-12 | Z65: 250 | AA65: Urban | AB65: HS | AC65: NA
A66: 494 | B66: Pioneer Charter School of Science | C66: C | D66: 1 | F66: Everett | G66: No Status | H66: 2006 | I66: Yes | J66: 2007 | K66: 12 | L66: 2012 | M66: 2017 | N66: 2022 | O66: 2027 | P66: 2012 | Q66: 2017 | R66: NA | S66: NA | T66: 2017 | U66: 2022 | V66: 2022 | W66: Yes | X66: No | Y66: K-12 | Z66: 780 | AA66: Urban | AB66: K12 | AC66: NA
A67: 3506 | B67: Pioneer Charter School of Science II | C67: C | D67: 3 | F67: Saugus | G67: No Status | H67: 2013 | I67: No | J67: 2013 | K67: 6 | L67: 2018 | M67: 2023 | N67: 2028 | O67: 2033 | P67: 2018 | Q67: NA | R67: NA | S67: NA | T67: 2018 | U67: 2023 | V67: 2023 | W67: Yes | X67: No | Y67: 07-12 | Z67: 360 | AA67: Urban | AB67: MSHS | AC67: NA
A68: 497 | B68: Pioneer Valley Chinese Immersion Charter School | C68: C | D68: 1 | F68: Hadley | G68: No Status | H68: 2007 | I68: Yes | J68: 2007 | K68: 12 | L68: 2012 | M68: 2017 | N68: 2022 | O68: 2027 | P68: 2012 | Q68: 2017 | R68: NA | S68: NA | T68: 2017 | U68: 2022 | V68: 2022 | W68: Yes | X68: No | Y68: K-12 | Z68: 584 | AA68: Suburb | AB68: K12 | AC68: NA
A69: 479 | B69: Pioneer Valley Performing Arts Charter Public School | C69: C | D69: 5 | F69: South Hadley | G69: No Status | H69: 1996 | I69: Yes | J69: 1996 | K69: 23 | L69: 2001 | M69: 2006 | N69: 2011 | O69: 2016 | P69: 2001 | Q69: 2006 | R69: 2011 | S69: 2016 | T69: 2016 | U69: 2021 | V69: 2021 | W69: Yes | X69: No | Y69: 07-12 | Z69: 400 | AA69: Suburb | AB69: MSHS | AC69: NA
A70: 487 | B70: Prospect Hill Academy Charter School | C70: C | D70: 5 | F70: Somerville (K-6); Cambridge (7-12) | G70: No Status | H70: 1996 | I70: Yes | J70: 1996 | K70: 23 | L70: 2001 | M70: 2006 | N70: 2011 | O70: 2016 | P70: 2001 | Q70: 2006 | R70: 2011 | S70: 2016 | T70: 2016 | U70: 2021 | V70: 2021 | W70: Yes | X70: Former | Y70: PK-12 | Z70: 1200 | AA70: Urban | AB70: K12 | AC70: NA
A71: 483 | B71: Rising Tide Charter Public School | C71: C | D71: 2 | F71: Plymouth | G71: No Status | H71: 1998 | I71: Yes | J71: 1998 | K71: 21 | L71: 2003 | M71: 2008 | N71: 2013 | O71: 2018 | P71: 2003 | Q71: 2008 | R71: 2013 | S71: 2018 | T71: 2018 | U71: 2023 | V71: 2023 | W71: Yes | X71: Former | Y71: 05-12 | Z71: 700 | AA71: Suburb | AB71: MSHS | AC71: NA
A72: 482 | B72: River Valley Charter School | C72: C | D72: 3 | F72: Newburyport | G72: No Status | H72: 1999 | I72: Yes | J72: 1999 | K72: 20 | L72: 2004 | M72: 2009 | N72: 2014 | O72: 2019 | P72: 2004 | Q72: 2009 | R72: 2014 | S72: NA | T72: 2014 | U72: 2019 | V72: 2019 | W72: Yes | X72: No | Y72: K-08 | Z72: 288 | AA72: Rural | AB72: ESMS | AC72: NA
A73: 484 | B73: Roxbury Preparatory Charter School | C73: C | D73: 3 | F73: Boston | G73: No Status | H73: 1998 | I73: Yes | J73: 1999 | K73: 20 | L73: 2004 | M73: 2009 | N73: 2014 | O73: 2019 | P73: 2004 | Q73: 2009 | R73: 2014 | S73: NA | T73: 2014 | U73: 2019 | V73: 2019 | W73: No | X73: Yes | Y73: 05-12 | Z73: 1800 | AA73: Boston | AB73: MSHS | AC73: NA
A74: 441 | B74: Sabis International Charter School | C74: C | D74: 4 | F74: Springfield | G74: Conditions | H74: 1995 | I74: Yes | J74: 1995 | K74: 24 | L74: 2000 | M74: 2005 | N74: 2010 | O74: 2015 | P74: 2000 | Q74: 2005 | R74: 2010 | S74: 2015 | T74: 2015 | U74: 2020 | V74: 2020 | W74: No | X74: Yes | Y74: K-12 | Z74: 1574 | AA74: Urban | AB74: K12 | AC74: NA
A75: 485 | B75: Salem Academy Charter School | C75: C | D75: 3 | F75: Salem | G75: No Status | H75: 2003 | I75: Yes | J75: 2004 | K75: 15 | L75: 2009 | M75: 2014 | N75: 2019 | O75: 2024 | P75: 2009 | Q75: 2014 | R75: NA | S75: NA | T75: 2014 | U75: 2019 | V75: 2019 | W75: No | X75: No | Y75: 06-12 | Z75: 480 | AA75: Urban | AB75: MSHS | AC75: NA
A76: 486 | B76: Seven Hills Charter Public School | C76: C | D76: 5 | F76: Worcester | G76: No Status | H76: 1994 | I76: Yes | J76: 1996 | K76: 23 | L76: 2001 | M76: 2006 | N76: 2011 | O76: 2016 | P76: 2001 | Q76: 2006 | R76: 2011 | S76: 2016 | T76: 2016 | U76: 2021 | V76: 2021 | W76: No | X76: Former | Y76: K-08 | Z76: 666 | AA76: Urban | AB76: ESMS | AC76: NA
A77: 474 | B77: Sizer School, A North Central Charter Essential School | C77: C | D77: 1 | F77: Fitchburg | G77: Conditions | H77: 2001 | I77: Yes | J77: 2002 | K77: 17 | L77: 2007 | M77: 2012 | N77: 2017 | O77: 2022 | P77: 2007 | Q77: 2012 | R77: 2017 | S77: NA | T77: 2017 | U77: 2022 | V77: 2022 | W77: Yes | X77: No | Y77: 07-12 | Z77: 400 | AA77: Urban | AB77: MSHS | AC77: NA
A78: 488 | B78: South Shore Charter Public School | C78: C | D78: 4 | F78: Norwell | G78: No Status | H78: 1994 | I78: Yes | J78: 1995 | K78: 24 | L78: 2000 | M78: 2005 | N78: 2010 | O78: 2015 | P78: 2000 | Q78: 2005 | R78: 2010 | S78: 2015 | T78: 2015 | U78: 2020 | V78: 2020 | W78: Yes | X78: No | Y78: K-12 | Z78: 1075 | AA78: Rural | AB78: K12 | AC78: NA
A79: 3510 | B79: Springfield Preparatory Charter School | C79: C | D79: 4 | F79: Springfield | G79: No Status | H79: 2014 | I79: No | J79: 2015 | K79: 4 | L79: 2020 | M79: 2025 | N79: 2030 | O79: 2035 | P79: NA | Q79: NA | R79: NA | S79: NA | T79: 0 | U79: 2020 | V79: 2020 | W79: No | X79: No | Y79: K-08 | Z79: 486 | AA79: Urban | AB79: ESMS | AC79: NA
A80: 489 | B80: Sturgis Charter Public School | C80: C | D80: 2 | F80: Hyannis | G80: No Status | H80: 1998 | I80: Yes | J80: 1998 | K80: 21 | L80: 2003 | M80: 2008 | N80: 2013 | O80: 2018 | P80: 2003 | Q80: 2008 | R80: 2013 | S80: 2018 | T80: 2018 | U80: 2023 | V80: 2023 | W80: Yes | X80: No | Y80: 09-12 | Z80: 850 | AA80: Suburb | AB80: HS | AC80: NA
A81: 480 | B81: UP Academy Charter School of Boston | C81: HM | D81: 5 | F81: Boston | G81: No Status | H81: 2011 | I81: Yes | J81: 2011 | K81: 8 | L81: 2016 | M81: 2021 | N81: 2026 | O81: 2031 | P81: 2016 | Q81: NA | R81: NA | S81: NA | T81: 2016 | U81: 2021 | V81: 2021 | W81: NA | X81: Yes | Y81: 06-08 | Z81: 540 | AA81: Boston | AB81: MS | AC81: NA
A82: 3505 | B82: UP Academy Charter School of Dorchester | C82: HM | D82: 2 | F82: Boston | G82: Conditions | H82: 2013 | I82: Yes | J82: 2013 | K82: 6 | L82: 2018 | M82: 2023 | N82: 2028 | O82: 2033 | P82: 2018 | Q82: NA | R82: NA | S82: NA | T82: 2018 | U82: 2023 | V82: 2023 | W82: NA | X82: Yes | Y82: PK-08 | Z82: 820 | AA82: Boston | AB82: ESMS | AC82: NA
A83: 498 | B83: Veritas Preparatory Charter School | C83: C | D83: 1 | F83: Springfield | G83: No Status | H83: 2011 | I83: Yes | J83: 2012 | K83: 7 | L83: 2017 | M83: 2022 | N83: 2027 | O83: 2032 | P83: 2017 | Q83: NA | R83: NA | S83: NA | T83: 2017 | U83: 2022 | V83: 2022 | W83: No | X83: No | Y83: 05-08 | Z83: 432 | AA83: Urban | AB83: MS | AC83: NA
A84: Closed Schools | O84: NA
A85: 415 | B85: Amesbury Academy Charter Public School | C85: HM | D85: 5 | F85: Amesbury | G85: NA | H85: 2001 | I85: NA | J85: 2001 | K85: NA | L85: 2006 | M85: 2011 | N85: Post-Opening Surrender | O85: NA | U85: NA | V85: NA | W85: No | X85: No | Y85: 9-12 | Z85: 50 | AA85: Rural | AB85: HS | AC85: 2015 | AD85: surrender
A86: 423 | B86: Barnstable Horace Mann Charter School | C86: HM | D86: NA | E86: NA | F86: Barnstable | G86: NA | H86: 1998 | I86: NA | J86: 1999 | K86: NA | L86: 2004 | M86: 2009 | N86: Post-Opening Surrender | O86: NA | U86: NA | V86: NA | W86: No | X86: No | Y86: 04-05 | Z86: 1000 | AA86: Suburb | AB86: MS | AC86: 2012 | AD86: surrender
A87: 425 | B87: Boston University Residential Charter School | C87: C | D87: NA | E87: NA | F87: Granby | G87: NA | H87: 1994 | I87: NA | J87: 1997 | K87: NA | L87: Post-Opening Surrender | M87: NA | N87: NA | O87: NA | U87: NA | V87: NA | W87: No | X87: No | Y87: 42594 | Z87: NA | AA87: Rural | AB87: MSHS | AC87: 2000 | AD87: surrender
A88: 457 | B88: Brooke Charter School East Boston (FY17-will merge with 0428 and 0457 as Brooke Charter School LEA, 428 K-12) | C88: C | D88: 1 | E88: VLOOKUP(A22, LIAISONS, 3, FALSE) | F88: Boston | G88: NA | H88: 2011 | I88: No | J88: 2012 | K88: NA | L88: Returned due to merger | M88: NA | N88: NA | O88: NA | U88: NA | V88: NA | W88: Yes | X88: No | Y88: K-08 | Z88: 510 | AA88: Boston | AB88: ESMS | AC88: 2016 | AD88: consolidation
A89: 443 | B89: Brooke Charter School Mattapan (FY17-will merge with 0428 and 0457 as Brooke Charter School LEA 428, K-12) | C89: C | D89: 5 | F89: Boston | G89: NA | H89: 2011 | I89: No | J89: 2011 | K89: NA | L89: Returned due to merger | M89: NA | N89: NA | O89: NA | U89: NA | V89: NA | W89: No | X89: No | Y89: K-08 | Z89: 510 | AA89: Boston | AB89: ESMS | AC89: 2016 | AD89: consolidation
A90: 434 | B90: Champion Charter Public School | C90: HM | D90: NA | E90: NA | F90: Brockton | G90: NA | H90: 1998 | I90: NA | J90: 1998 | K90: NA | L90: Post-Opening Surrender | M90: NA | N90: NA | O90: NA | U90: NA | V90: NA | W90: No | X90: No | Y90: 09-12 | Z90: 125 | AA90: Urban | AB90: HS | AC90: 2008 | AD90: surrender
A91: 433 | B91: Dorchester Prep | C91: C | D91: NA | E91: NA | F91: Boston | G91: NA | H91: 2011 | I91: NA | J91: NA | K91: NA | L91: Returned due to merger | M91: NA | N91: NA | O91: NA | U91: NA | V91: NA | W91: No | X91: Former | Y91: 05-12 | Z91: 600 | AA91: Urban | AB91: MSHS | AC91: NA | AD91: consolidation
A92: 475 | B92: Dorchester Collegiate Academy Charter School | C92: C | D92: 3 | F92: Boston | G92: NA | H92: 2008 | I92: NA | J92: 2009 | K92: NA | L92: 2014 | M92: Revocation | N92: NA | O92: NA | U92: NA | V92: NA | W92: No | X92: No | Y92: 04-08 | Z92: 238 | AA92: Boston | AB92: ESMS | AC92: 2016 | AD92: revocation
A93: 459 | B93: Excel Academy Charter School - Boston II | C93: C | D93: NA | E93: NA | F93: Boston | G93: NA | H93: 2011 | I93: NA | J93: 2012 | K93: NA | L93: Returned due to merger | M93: NA | N93: NA | O93: NA | U93: NA | V93: NA | W93: No | X93: No | Y93: 05-12 | Z93: 448 | AA93: Boston | AB93: MSHS | AC93: 2014 | AD93: consolidation
A94: 461 | B94: Excel Academy Charter School - Chelsea | C94: C | D94: NA | E94: NA | F94: Chelsea | G94: NA | H94: 2011 | I94: NA | J94: 2011 | K94: NA | L94: Returned due to merger | M94: NA | N94: NA | O94: NA | U94: NA | V94: NA | W94: No | X94: No | Y94: 05-12 | Z94: 448 | AA94: Urban | AB94: MSHS | AC94: 2014 | AD94: consolidation
A95: 495 | B95: Fall River Maritime Charter Public School | C95: C | D95: NA | E95: NA | F95: Fall River | G95: NA | H95: 2006 | I95: NA | J95: NA | K95: NA | L95: Pre-Opening Surrender | M95: NA | N95: NA | O95: NA | U95: NA | V95: NA | W95: No | X95: Former | Y95: 05-08 | Z95: 80 | AA95: Urban | AB95: MS | AC95: NA | AD95: surrender
A96: 442 | B96: Frederick Douglass Charter School | C96: C | D96: NA | E96: NA | F96: Boston | G96: NA | H96: 1999 | I96: NA | J96: 2000 | K96: NA | L96: Non-Renewal | M96: NA | N96: NA | O96: NA | U96: NA | V96: NA | W96: No | X96: No | Y96: 06-12 | Z96: 408 | AA96: Boston | AB96: MSHS | AC96: 2005 | AD96: revocation
A97: 448 | B97: Gloucester Community Arts Charter School | C97: C | D97: NA | E97: NA | F97: Gloucester | G97: NA | H97: 2009 | I97: NA | J97: 2010 | K97: NA | L97: Post-Opening Surrender | M97: NA | N97: NA | O97: NA | U97: NA | V97: NA | W97: No | X97: No | Y97: K-08 | Z97: 240 | AA97: Urban | AB97: ESMS | AC97: 2013 | AD97: surrender
A98: 462 | B98: Grove Hall Prep | C98: C | D98: NA | E98: NA | F98: Boston | G98: NA | H98: 2011 | I98: NA | J98: 2011 | K98: NA | L98: Returned due to merger | M98: NA | N98: NA | O98: NA | U98: NA | V98: NA | W98: No | X98: Former | Y98: 05-12 | Z98: 600 | AA98: Urban | AB98: MS | AC98: 2012 | AD98: consolidation
A99: 448 | B99: Horace Mann Charter School of Essential Studies | C99: HM | D99: NA | E99: NA | F99: Springfield | G99: NA | H99: 1999 | I99: NA | J99: NA | K99: NA | L99: Pre-Opening Surrender | M99: NA | N99: NA | O99: NA | U99: NA | V99: NA | W99: No | X99: No | Y99: 09-12 | Z99: 600 | AA99: Urban | AB99: ESMS | AC99: NA | AD99: surrender
A100: 460 | B100: Lynn Community Charter School | C100: C | D100: NA | E100: NA | F100: Lynn | G100: NA | H100: 1996 | I100: NA | J100: 1997 | K100: NA | L100: Non-Renewal | M100: NA | N100: NA | O100: NA | U100: NA | V100: NA | W100: No | X100: No | Y100: K-08 | Z100: 270 | AA100: Urban | AB100: ESMS | AC100: 2002 | AD100: non-renewal
A101: 465 | B101: MATCH Community Day Charter Public School | C101: C | D101: NA | E101: NA | F101: Boston | G101: NA | H101: 2011 | I101: NA | J101: 2011 | K101: NA | L101: Returned due to merger | M101: NA | N101: NA | O101: NA | U101: NA | V101: NA | W101: No | X101: No | Y101: PK-12 | Z101: 700 | AA101: Boston | AB101: K12 | AC101: 2014 | AD101: consolidation
A102: 472 | B102: New Bedford Global Learning Charter School | C102: HM | D102: NA | E102: NA | F102: New Bedford | G102: NA | H102: 2000 | I102: NA | J102: 2002 | K102: NA | L102: Post-Opening Surrender | M102: NA | N102: NA | O102: NA | U102: NA | V102: NA | W102: No | X102: No | Y102: 05-12 | Z102: 400 | AA102: Urban | AB102: MSHS | AC102: 2007 | AD102: expired
A103: 471 | B103: New Leadership Charter School | C103: HM | D103: NA | E103: NA | F103: Springfield | G103: NA | H103: 1998 | I103: NA | J103: 1998 | K103: NA | L103: 2003 | M103: 2008 | N103: Post-Opening Surrender | O103: NA | U103: NA | V103: NA | W103: No | X103: No | Y103: 06-12 | Z103: 500 | AA103: Urban | AB103: MSHS | AC103: 2013 | AD103: expired
A104: 467 | B104: New Liberty Charter School of Salem | C104: HM | D104: NA | E104: NA | F104: Salem | G104: NA | H104: 2011 | I104: NA | J104: 2011 | K104: NA | L104: Post-Opening Surrender | M104: NA | N104: NA | O104: NA | U104: NA | V104: NA | W104: NA | X104: No | Y104: 09-12 | Z104: 125 | AA104: Urban | AB104: HS | AC104: 2016 | AD104: expired
A105: 473 | B105: North Star Academy Charter School | C105: C | D105: NA | E105: NA | F105: Springfield | G105: NA | H105: 1995 | I105: NA | J105: 1996 | K105: NA | L105: Post-Opening Surrender | M105: NA | N105: NA | O105: NA | U105: NA | V105: NA | W105: No | X105: No | Y105: 09-12 | Z105: 250 | AA105: Urban | AB105: HS | AC105: 2001 | AD105: surrender
A106: 476 | B106: Northern Bristol County Charter School | C106: C | D106: NA | E106: NA | F106: Bristol County | G106: NA | H106: 2001 | I106: NA | J106: NA | K106: NA | L106: Pre-Opening Surrender | M106: NA | N106: NA | O106: NA | U106: NA | V106: NA | W106: Yes | X106: No | Y106: K-08 | Z106: 500 | AA106: Urban | AB106: ESMS | AC106: NA | AD106: surrender
A107: 451 | B107: Robert M. Hughes Academy Charter Public School | C107: C | D107: NA | E107: NA | F107: Springfield | G107: NA | H107: 1999 | I107: NA | J107: 1999 | K107: NA | L107: 2004 | M107: 2009 | N107: Revocation | O107: NA | U107: NA | V107: NA | W107: No | X107: No | Y107: K-08 | Z107: 180 | AA107: Urban | AB107: ESMS | AC107: 2010 | AD107: revocation
A108: 422 | B108: Roxbury Charter High Public School | C108: C | D108: NA | E108: NA | F108: Boston | G108: NA | H108: 2002 | I108: NA | J108: 2003 | K108: NA | L108: Revocation | M108: NA | N108: NA | O108: NA | U108: NA | V108: NA | W108: No | X108: No | Y108: 09-12 | Z108: 400 | AA108: Boston | AB108: HS | AC108: 2005 | AD108: revocation
A109: 477 | B109: Silver Hill Horace Mann Charter School | C109: HM | D109: NA | E109: NA | F109: Haverhill | G109: NA | H109: 2008 | I109: NA | J109: 2008 | K109: NA | L109: 2013 | M109: Post-Opening Surrender | V109: NA | W109: NA | X109: No | Y109: K-05 | Z109: 580 | AA109: Urban | AB109: ES | AC109: 2018 | AD109: surrender
A110: 421 | B110: South End College Preparatory Charter School | C110: C | D110: NA | E110: NA | F110: Boston | G110: NA | H110: 2002 | I110: NA | J110: NA | K110: NA | L110: Pre-Opening Surrender | M110: NA | N110: NA | O110: NA | U110: NA | V110: NA | W110: No | X110: No | Y110: K-08 | Z110: 500 | AA110: Boston | AB110: ESMS | AC110: 2003 | AD110: surrender
A111: 476 | B111: Spirit of Knowledge Charter School | C111: C | D111: NA | E111: NA | F111: Worcester | G111: NA | H111: 2010 | I111: NA | J111: 2010 | K111: NA | L111: Post-Opening Surrender | M111: NA | N111: NA | O111: NA | U111: NA | V111: NA | W111: No | X111: No | Y111: 07-12 | Z111: 275 | AA111: Urban | AB111: MSHS | AC111: 2014 | AD111: surrender
A112: 3512 | B112: UP Academy Charter School of Springfield | C112: HM | D112: NA | E112: NA | F112: Springfield | G112: NA | H112: NA | I112: NA | J112: NA | K112: NA | L112: Pre-Opening Surrender | U112: 5 | V112: NA | W112: NA | X112: Yes | Y112: 06-08 | Z112: 800 | AA112: Urban | AB112: MS | AC112: NA | AD112: surrender
A113: 490 | B113: Uphams Corner Charter School | C113: C | D113: NA | E113: NA | F113: Boston | G113: NA | H113: 2002 | I113: NA | J113: 2002 | K113: NA | L113: 2007 | M113: Revocation | N113: NA | O113: NA | U113: NA | V113: NA | W113: No | X113: No | Y113: 05-08 | Z113: 200 | AA113: Boston | AB113: MS | AC113: 2009 | AD113: revocation
A114: 498 | B114: Youth Build Boston Charter School | C114: C | D114: NA | E114: NA | F114: Boston | G114: NA | H114: 1994 | I114: NA | J114: 1995 | K114: NA | L114: Revocation | M114: NA | N114: NA | O114: NA | U114: NA | V114: NA | W114: No | X114: No | Y114: 09-12 | Z114: 300 | AA114: Boston | AB114: HS | AC114: 1997 | AD114: surrender
B115: Total Currently Operating Commonwealths: | C115: 74
B116: Total Currently Operating Horace Manns (I): | C116: 3
B117: Total Currently Operating Horace Manns (II): | C117: 0
B118: Total Currently Operating Horace Manns (III): | C118: 5
B119: Total Charters Approved but not yet open: | C119: 0
B120: Total Charters Closed or Never Opened Since 1994: | C120: 30
B121: Total Charters Granted by BOE Since 1994: | C121: 112
A122: Updated Augst 2018

Sheet TEACHEREPIMS (hidden)
A1: Teachers only
A2: NE = Not Existing
A3: Closed = Closed District
A5: ORG_CODE | B5: ORG_NAME | C5: LEA | D5: FTE_18d | E5: HC_18d | F5: FTE_17d | G5: HC_17d | H5: FTE_17a | I5: HC_17a | J5: FTE_16d | K5: HC_16d | L5: FTE_16a | M5: HC_16a | N5: FTE_15d | O5: HC_15d | P5: FTE_15a | Q5: HC_15a | R5: FTE_14d | S5: HC_14d | T5: FTE_14a | U5: HC_14a | V5: FTE_13d | W5: HC_13d | X5: FTE_13a | Y5: HC_13a | Z5: FTE_12d | AA5: HC_12d | AB5: FTE_12a | AC5: HC_12a | AD5: FTE_11d | AE5: HC_11d | AF5: FTE_11a | AG5: HC_11a | AH5: FTE_10a | AI5: HC_10a
A6: 04070000 | B6: Dudley Street Neighborhood Charter School (District) | C6: 407 | D6: 19.5 | E6: 20 | F6: 20.98 | G6: 21 | H6: 20.98 | I6: 21 | J6: 18.21 | K6: 19 | L6: 18.25 | M6: 19 | N6: 15.94 | O6: 16 | P6: 14.98 | Q6: 15 | R6: 9.999 | S6: 10 | T6: 12.998 | U6: 13 | V6: 7.994 | W6: 8 | X6: 7.994 | Y6: 8 | Z6: NE | AA6: NE | AB6: NE | AC6: NE | AD6: NE | AE6: NE | AF6: NE | AG6: NE | AH6: NE | AI6: NE
A7: 04090000 | B7: Alma del Mar Charter School (District) | C7: 409 | D7: 36.006 | E7: 36 | F7: 32.15 | G7: 32 | H7: 33.15 | I7: 33 | J7: 23.92 | K7: 24 | L7: 28.92 | M7: 29 | N7: 17.03 | O7: 17 | P7: 22.38 | Q7: 23 | R7: 18.99 | S7: 19 | T7: 18.99 | U7: 19 | V7: 15.24 | W7: 15 | X7: 16.28 | Y7: 16 | Z7: 13.88 | AA7: 14 | AB7: 13.88 | AC7: 14 | AD7: NE | AE7: NE | AF7: NE | AG7: NE | AH7: NE | AI7: NE
A8: 04100000 | B8: Excel Academy Charter (District) | C8: 410 | D8: 88.989 | E8: 108 | F8: 78.09 | G8: 88 | H8: 85.98 | I8: 92 | J8: 70.74 | K8: 85 | L8: 53.24 | M8: 89 | N8: 51.625 | O8: 65 | P8: 56.596 | Q8: 68 | R8: 19.297 | S8: 26 | T8: 22.369 | U8: 26 | V8: 19.602 | W8: 24 | X8: 18.97 | Y8: 22 | Z8: 18.887 | AA8: 22 | AB8: 18.97 | AC8: 22 | AD8: 16 | AE8: 19 | AF8: 16 | AG8: 19 | AH8: 17.8 | AI8: 18
A9: 04110000 | B9: Boston Green Academy Horace Mann Charter School (District) | C9: 411 | D9: 44.42 | E9: 47 | F9: 49.43 | G9: 51 | H9: 51.57 | I9: 53 | J9: 40.59 | K9: 43 | L9: 41.02 | M9: 43 | N9: 37 | O9: 39 | P9: 35.01 | Q9: 38 | R9: 27.334 | S9: 39 | T9: 33.084 | U9: 44 | V9: 27.659 | W9: 42 | X9: 30.85 | Y9: 40 | Z9: 25.36 | AA9: 32 | AB9: 25.3 | AC9: 32 | AD9: NE | AE9: NE | AF9: NE | AG9: NE | AH9: NE | AI9: NE
A10: 04120000 | B10: Academy Of the Pacific Rim Charter Public (District) | C10: 412 | D10: 43.874 | E10: 53 | F10: 44.216 | G10: 48 | H10: 44.33 | I10: 48 | J10: 40.58 | K10: 44 | L10: 42.2 | M10: 46 | N10: 42.334 | O10: 45 | P10: 42.5 | Q10: 45 | R10: 36.65 | S10: 39 | T10: 38.65 | U10: 41 | V10: 36.1 | W10: 38 | X10: 35.917 | Y10: 38 | Z10: 36.8 | AA10: 38 | AB10: 36.8 | AC10: 38 | AD10: 33.997 | AE10: 36 | AF10: 34.8 | AG10: 37 | AH10: 35.05 | AI10: 36
A11: 04130000 | B11: Four Rivers Charter Public (District) | C11: 413 | D11: 21.127 | E11: 31 | F11: 22.066 | G11: 31 | H11: 22 | I11: 31 | J11: 21.75 | K11: 30 | L11: 22.82 | M11: 30 | N11: 21.955 | O11: 30 | P11: 21.11 | Q11: 29 | R11: 21.81 | S11: 28 | T11: 22.36 | U11: 30 | V11: 21.855 | W11: 28 | X11: 21.268 | Y11: 28 | Z11: 21.86 | AA11: 29 | AB11: 21.66 | AC11: 30 | AD11: 20.214 | AE11: 28 | AF11: 21.227 | AG11: 30 | AH11: 19.064 | AI11: 23
A12: 04140000 | B12: Berkshire Arts and Technology Charter Public (District) | C12: 414 | D12: 31.771 | E12: 38 | F12: 33.097 | G12: 40 | H12: 32.9 | I12: 40 | J12: 31.51 | K12: 37 | L12: 31.299 | M12: 37 | N12: 28.99 | O12: 37 | P12: 29.59 | Q12: 34 | R12: 30.11 | S12: 37 | T12: 30.34 | U12: 37 | V12: 27.88 | W12: 34 | X12: 27.55 | Y12: 33 | Z12: 24.057 | AA12: 28 | AB12: 24.866 | AC12: 29 | AD12: 23.2 | AE12: 26 | AF12: 23.416 | AG12: 26 | AH12: 22.2 | AI12: 23
A13: 04150000 | B13: Amesbury Academy Charter Public (District) | C13: 415 | D13: Closed | E13: Closed | F13: Closed | G13: Closed | H13: Closed | I13: Closed | J13: Closed | K13: Closed | L13: Closed | M13: Closed | N13: 4.37 | O13: 6 | P13: 5.3 | Q13: 7 | R13: 4.777 | S13: 8 | T13: 6.071 | U13: 8 | V13: 5.658 | W13: 7 | X13: 7.203 | Y13: 9 | Z13: 4.772 | AA13: 9 | AB13: 5.473 | AC13: 9 | AD13: 5.235 | AE13: 8 | AF13: 5.9 | AG13: 8 | AH13: 5.36 | AI13: 7
A14: 04160000 | B14: Boston Preparatory Charter Public (District) | C14: 416 | D14: 44.304 | E14: 51 | F14: 35.46 | G14: 41 | H14: 37.2 | I14: 39 | J14: 32.32 | K14: 37 | L14: 34.55 | M14: 38 | N14: 30.433 | O14: 33 | P14: 33.05 | Q14: 37 | R14: 34 | S14: 35 | T14: 34.5 | U14: 36 | V14: 32.895 | W14: 34 | X14: 32.895 | Y14: 34 | Z14: 35 | AA14: 35 | AB14: 35 | AC14: 35 | AD14: 33.7 | AE14: 34 | AF14: 33.7 | AG14: 34 | AH14: 31.2 | AI14: 32
A15: 04170000 | B15: Bridge Boston Charter School (District) | C15: 417 | D15: 27.84 | E15: 30 | F15: 27.47 | G15: 30 | H15: 26.1 | I15: 29 | J15: 16.15 | K15: 17 | L15: 19.4 | M15: 21 | N15: 14 | O15: 14 | P15: 14 | Q15: 14 | R15: 11.625 | S15: 12 | T15: 11.625 | U15: 12 | V15: 6.488 | W15: 7 | X15: 7.488 | Y15: 8 | Z15: 4.87 | AA15: 6 | AB15: 5.15 | AC15: 6 | AD15: NE | AE15: NE | AF15: NE | AG15: NE | AH15: NE | AI15: NE
A16: 04180000 | B16: Christa McAuliffe Charter Public (District) | C16: 418 | D16: 39.5 | E16: 41 | F16: 34.549 | G16: 39 | H16: 35.05 | I16: 40 | J16: 38.75 | K16: 41 | L16: 38.5 | M16: 41 | N16: 37.014 | O16: 40 | P16: 38.1 | Q16: 39 | R16: 32.888 | S16: 34 | T16: 30.3 | U16: 32 | V16: 30.726 | W16: 34 | X16: 27.224 | Y16: 36 | Z16: 26.293 | AA16: 32 | AB16: 26.45 | AC16: 31 | AD16: 23.444 | AE16: 25 | AF16: 23 | AG16: 24 | AH16: 22.4 | AI16: 24
A17: 04190000 | B17: Helen Y. Davis Leadership Academy Charter Public (District) | C17: 419 | D17: 11.852 | E17: 12 | F17: 15.835 | G17: 16 | H17: 17 | I17: 17 | J17: 16 | K17: 16 | L17: 16 | M17: 16 | N17: 15 | O17: 15 | P17: 18 | Q17: 18 | R17: 17 | S17: 17 | T17: 19 | U17: 19 | V17: 19.72 | W17: 20 | X17: 20.22 | Y17: 20 | Z17: 15.098 | AA17: 16 | AB17: 18.093 | AC17: 19 | AD17: 27.253 | AE17: 29 | AF17: 17.892 | AG17: 19 | AH17: 15.273 | AI17: 17
A18: 04200000 | B18: Benjamin Banneker Charter Public (District) | C18: 420 | D18: 17.8 | E18: 18 | F18: 21.024 | G18: 21 | H18: 20.02 | I18: 20 | J18: 20.02 | K18: 20 | L18: 21.024 | M18: 21 | N18: 19.97 | O18: 20 | P18: 19.97 | Q18: 20 | R18: 20 | S18: 20 | T18: 20 | U18: 20 | V18: 21.973 | W18: 22 | X18: 22.473 | Y18: 23 | Z18: 23.473 | AA18: 24 | AB18: 23.473 | AC18: 24 | AD18: 23.06 | AE18: 23 | AF18: 23 | AG18: 23 | AH18: 22 | AI18: 22
A19: 04230000 | B19: Barnstable Horace Mann Charter (District) | C19: 423 | D19: Closed | E19: Closed | F19: Closed | G19: Closed | H19: Closed | I19: Closed | J19: Closed | K19: Closed | L19: Closed | M19: Closed | N19: Closed | O19: Closed | P19: Closed | Q19: Closed | R19: Closed | S19: Closed | T19: Closed | U19: Closed | V19: Closed | W19: Closed | X19: Closed | Y19: Closed | Z19: 57.239 | AA19: 60 | AB19: 57.239 | AC19: 60 | AD19: 49.305 | AE19: 60 | AF19: 48.012 | AG19: 59 | AH19: 57.067 | AI19: 62
A20: 04240000 | B20: Boston Day and Evening Academy Charter (District) | C20: 424 | D20: 20.5 | E20: 21 | F20: 20.55 | G20: 21 | H20: 23 | I20: 24 | J20: 20.75 | K20: 21 | L20: 21.6 | M20: 22 | N20: 20.6 | O20: 21 | P20: 22.6 | Q20: 23 | R20: 24.65 | S20: 27 | T20: 26.4 | U20: 28 | V20: 26.55 | W20: 27 | X20: 27.5 | Y20: 28 | Z20: 23.3 | AA20: 23 | AB20: 25.55 | AC20: 27 | AD20: 20.7 | AE20: 21 | AF20: 24.6 | AG20: 25 | AH20: 21.8 | AI20: 22
A21: 04260000 | B21: Community Day Charter Public School - Gateway (District) | C21: 426 | D21: 32.5 | E21: 34 | F21: 28.75 | G21: 32 | H21: 27.5 | I21: 31 | J21: 23.5 | K21: 26 | L21: 24 | M21: 27 | N21: 21.6 | O21: 26 | P21: 22.6 | Q21: 27 | R21: 18.09 | S21: 20 | T21: 18.09 | U21: 20 | V21: 12.836 | W21: 14 | X21: 12.836 | Y21: 14 | Z21: NE | AA21: NE | AB21: NE | AC21: NE | AD21: NE | AE21: NE | AF21: NE | AG21: NE | AH21: NE | AI21: NE
A22: 04270000 | B22: Barnstable Community Horace Mann Charter Public (District) | C22: 427 | D22: 23 | E22: 25 | F22: 24.8 | G22: 26 | H22: 21.99 | I22: 24 | J22: 25.61 | K22: 26 | L22: 26.008 | M22: 26 | N22: 24.392 | O22: 26 | P22: 23.608 | Q22: 24 | R22: 23.608 | S22: 24 | T22: 23.741 | U22: 24 | V22: 23.608 | W22: 24 | X22: 23.608 | Y22: 24 | Z22: 22.992 | AA22: 23 | AB22: 22.992 | AC22: 23 | AD22: 22.3 | AE22: 23 | AF22: 22.3 | AG22: 23 | AH22: 25.4 | AI22: 26
A23: 04280000 | B23: Brooke Charter School (District) | C23: 428 | D23: 140.41 | E23: 142 | F23: 109.457 | G23: 123 | H23: 110.29 | I23: 124 | J23: 39 | K23: 39 | L23: 39 | M23: 39 | N23: 42 | O23: 42 | P23: 41 | Q23: 41 | R23: 40 | S23: 41 | T23: 41 | U23: 42 | V23: 38 | W23: 38 | X23: 38 | Y23: 38 | Z23: 36 | AA23: 36 | AB23: 36 | AC23: 36 | AD23: 33.373 | AE23: 33 | AF23: 34.995 | AG23: 35 | AH23: 36 | AI23: 36
A24: 04290000 | B24: KIPP Academy Lynn Charter (District) | C24: 429 | D24: 100.503 | E24: 105 | F24: 95.666 | G24: 100 | H24: 99.74 | I24: 106 | J24: 88.33 | K24: 93 | L24: 87.574 | M24: 94 | N24: 76.927 | O24: 80 | P24: 76.72 | Q24: 80 | R24: 49.04 | S24: 54 | T24: 65.63 | U24: 69 | V24: 48.69 | W24: 52 | X24: 49.24 | Y24: 53 | Z24: 31.945 | AA24: 34 | AB24: 32.945 | AC24: 35 | AD24: 25.86 | AE24: 26 | AF24: 25.86 | AG24: 26 | AH24: 26 | AI24: 28
A25: 04300000 | B25: Advanced Math and Science Academy Charter (District) | C25: 430 | D25: 78.48 | E25: 83 | F25: 74.054 | G25: 81 | H25: 78.36 | I25: 81 | J25: 75.71 | K25: 84 | L25: 76.361 | M25: 82 | N25: 80.781 | O25: 85 | P25: 81.392 | Q25: 86 | R25: 86.35 | S25: 89 | T25: 86.96 | U25: 90 | V25: 81.544 | W25: 86 | X25: 80.463 | Y25: 87 | Z25: 80.509 | AA25: 83 | AB25: 80.358 | AC25: 83 | AD25: 72.392 | AE25: 74 | AF25: 70.433 | AG25: 72 | AH25: 61.17 | AI25: 62
A26: 04310000 | B26: Community Day Charter Public School - R. Kingman Webster (District) | C26: 431 | D26: 32.5 | E26: 34 | F26: 30.5 | G26: 33 | H26: 30.5 | I26: 33 | J26: 24.52 | K26: 27 | L26: 25.02 | M26: 28 | N26: 23.6 | O26: 28 | P26: 22.6 | Q26: 27 | R26: 18.08 | S26: 20 | T26: 18.08 | U26: 20 | V26: 13.83 | W26: 15 | X26: 13.83 | Y26: 15 | Z26: NE | AA26: NE | AB26: NE | AC26: NE | AD26: NE | AE26: NE | AF26: NE | AG26: NE | AH26: NE | AI26: NE
A27: 04320000 | B27: Cape Cod Lighthouse Charter (District) | C27: 432 | D27: 21.685 | E27: 32 | F27: 22.5 | G27: 33 | H27: 21.49 | I27: 28 | J27: 20.43 | K27: 31 | L27: 21.5 | M27: 28 | N27: 21.96 | O27: 29 | P27: 21.78 | Q27: 27 | R27: 18.54 | S27: 27 | T27: 17.99 | U27: 24 | V27: 18.41 | W27: 29 | X27: 18.12 | Y27: 26 | Z27: 18.18 | AA27: 28 | AB27: 18.14 | AC27: 26 | AD27: 17.86 | AE27: 26 | AF27: 18.99 | AG27: 26 | AH27: 19.45 | AI27: 26
A28: 04350000 | B28: Innovation Academy Charter (District) | C28: 435 | D28: 74.263 | E28: 82 | F28: 74.969 | G28: 85 | H28: 73.28 | I28: 79 | J28: 78.15 | K28: 87 | L28: 72.555 | M28: 80 | N28: 70.253 | O28: 79 | P28: 67.131 | Q28: 73 | R28: 58.822 | S28: 66 | T28: 62.313 | U28: 67 | V28: 58.345 | W28: 65 | X28: 59.636 | Y28: 65 | Z28: 56.005 | AA28: 63 | AB28: 56.945 | AC28: 61 | AD28: 55.085 | AE28: 64 | AF28: 56.181 | AG28: 62 | AH28: 42.58 | AI28: 45
A29: 04360000 | B29: Community Charter School of Cambridge (District) | C29: 436 | D29: 39.189 | E29: 46 | F29: 32.228 | G29: 54 | H29: 32.37 | I29: 55 | J29: 30.51 | K29: 48 | L29: 33.46 | M29: 50 | N29: 32.18 | O29: 41 | P29: 30.939 | Q29: 39 | R29: 34.386 | S29: 42 | T29: 38.17 | U29: 42 | V29: 35.39 | W29: 38 | X29: 34.41 | Y29: 37 | Z29: 30.96 | AA29: 34 | AB29: 31.185 | AC29: 33 | AD29: 30.385 | AE29: 37 | AF29: 28.137 | AG29: 37 | AH29: 24.63 | AI29: 28
A30: 04370000 | B30: City on a Hill Charter Public School Circuit Street (District) | C30: 437 | D30: 26.7 | E30: 33 | F30: 25.1 | G30: 31 | H30: 25.1 | I30: 31 | J30: 24.52 | K30: 33 | L30: 25.4 | M30: 34 | N30: 22.447 | O30: 29 | P30: 26.004 | Q30: 33 | R30: 23.8 | S30: 31 | T30: 23.8 | U30: 32 | V30: 24.77 | W30: 32 | X30: 24.9 | Y30: 32 | Z30: 22 | AA30: 30 | AB30: 21.9 | AC30: 30 | AD30: 16.4 | AE30: 25 | AF30: 19 | AG30: 27 | AH30: 20.2 | AI30: 27
A31: 04380000 | B31: Codman Academy Charter Public (District) | C31: 438 | D31: 35.393 | E31: 37 | F31: 36.05 | G31: 37 | H31: 35.94 | I31: 36 | J31: 29.42 | K31: 33 | L31: 30.35 | M31: 33 | N31: 20.75 | O31: 23 | P31: 25.903 | Q31: 28 | R31: 17.41 | S31: 19 | T31: 18.71 | U31: 20 | V31: 14.05 | W31: 19 | X31: 14.98 | Y31: 18 | Z31: 14.61 | AA31: 16 | AB31: 15.26 | AC31: 16 | AD31: 14.07 | AE31: 17 | AF31: 14.2 | AG31: 18 | AH31: 15.1 | AI31: 18
A32: 04390000 | B32: Conservatory Lab Charter (District) | C32: 439 | D32: 24.25 | E32: 26 | F32: 20.98 | G32: 21 | H32: 21.97 | I32: 22 | J32: 13.99 | K32: 14 | L32: 26.505 | M32: 27 | N32: 18 | O32: 18 | P32: 18 | Q32: 18 | R32: 14.25 | S32: 15 | T32: 14 | U32: 14 | V32: 8 | W32: 8 | X32: 8 | Y32: 8 | Z32: 9 | AA32: 9 | AB32: 9 | AC32: 9 | AD32: 10 | AE32: 10 | AF32: 10 | AG32: 10 | AH32: 14.4 | AI32: 16
A33: 04400000 | B33: Community Day Charter Public School - Prospect (District) | C33: 440 | D33: 45.3 | E33: 46 | F33: 44 | G33: 44 | H33: 45 | I33: 45 | J33: 42 | K33: 42 | L33: 42 | M33: 42 | N33: 43.3 | O33: 48 | P33: 43.8 | Q33: 49 | R33: 33.83 | S33: 36 | T33: 33.83 | U33: 36 | V33: 35.75 | W33: 37 | X33: 35.75 | Y33: 37 | Z33: 38.125 | AA33: 39 | AB33: 38.125 | AC33: 39 | AD33: 34.462 | AE33: 37 | AF33: 34.462 | AG33: 37 | AH33: 34.617 | AI33: 37
A34: 04410000 | B34: Sabis International Charter (District) | C34: 441 | D34: 65.4 | E34: 94 | F34: 67.81 | G34: 96 | H34: 65.78 | I34: 94 | J34: 65.98 | K34: 96 | L34: 64.16 | M34: 94 | N34: 65.45 | O34: 96 | P34: 64.59 | Q34: 95 | R34: 65.45 | S34: 96 | T34: 63.23 | U34: 94 | V34: 65.79 | W34: 96 | X34: 64.54 | Y34: 94 | Z34: 66.32 | AA34: 97 | AB34: 65.3 | AC34: 96 | AD34: 63.23 | AE34: 95 | AF34: 63.93 | AG34: 97 | AH34: 70.1 | AI34: 93
A35: 04430000 | B35: Brooke Charter School Mattapan (District) | C35: 443 | D35: Closed | E35: Closed | F35: Closed | G35: Closed | H35: Closed | I35: Closed | J35: 41 | K35: 41 | L35: 41 | M35: 41 | N35: 42.963 | O35: 43 | P35: 41.883 | Q35: 42 | R35: 26 | S35: 26 | T35: 33 | U35: 33 | V35: 24.25 | W35: 26 | X35: 24.25 | Y35: 26 | Z35: 16 | AA35: 16 | AB35: 16 | AC35: 16 | AD35: NE | AE35: NE | AF35: NE | AG35: NE | AH35: NE | AI35: NE
A36: 04440000 | B36: Neighborhood House Charter (District) | C36: 444 | D36: 57.85 | E36: 60 | F36: 47.91 | G36: 50 | H36: 49.11 | I36: 52 | J36: 36.5 | K36: 38 | L36: 37.504 | M36: 39 | N36: 34.334 | O36: 36 | P36: 34.334 | Q36: 36 | R36: 34.64 | S36: 35 | T36: 32.35 | U36: 33 | V36: 34.979 | W36: 35 | X36: 34.979 | Y36: 35 | Z36: 38.554 | AA36: 39 | AB36: 36.69 | AC36: 37 | AD36: 42 | AE36: 42 | AF36: 41.8 | AG36: 42 | AH36: 40.8 | AI36: 41
A37: 04450000 | B37: Abby Kelley Foster Charter Public (District) | C37: 445 | D37: 112.453 | E37: 116 | F37: 111.402 | G37: 111 | H37: 106.62 | I37: 109 | J37: 115.26 | K37: 118 | L37: 118.053 | M37: 120 | N37: 116.544 | O37: 118 | P37: 117.043 | Q37: 119 | R37: 116.588 | S37: 118 | T37: 111.805 | U37: 114 | V37: 113.555 | W37: 116 | X37: 116.58 | Y37: 120 | Z37: 113.06 | AA37: 113 | AB37: 111.898 | AC37: 114 | AD37: 112.98 | AE37: 114 | AF37: 111.701 | AG37: 115 | AH37: 101.55 | AI37: 103
A38: 04460000 | B38: Foxborough Regional Charter (District) | C38: 446 | D38: 111.694 | E38: 115 | F38: 94.644 | G38: 101 | H38: 92.25 | I38: 101 | J38: 80.8 | K38: 90 | L38: 82.182 | M38: 93 | N38: 84.061 | O38: 92 | P38: 86.003 | Q38: 91 | R38: 86.643 | S38: 91 | T38: 82.119 | U38: 91 | V38: 81.048 | W38: 91 | X38: 78.242 | Y38: 89 | Z38: 85.326 | AA38: 94 | AB38: 84.8 | AC38: 94 | AD38: 79.269 | AE38: 89 | AF38: 83 | AG38: 91 | AH38: 77.4 | AI38: 77
A39: 04470000 | B39: Benjamin Franklin Classical Charter Public (District) | C39: 447 | D39: 32.8 | E39: 33 | F39: 31.802 | G39: 38 | H39: 28.22 | I39: 35 | J39: 29.73 | K39: 31 | L39: 27.201 | M39: 28 | N39: 23.144 | O39: 32 | P39: 25.109 | Q39: 34 | R39: 33.007 | S39: 33 | T39: 32.994 | U39: 33 | V39: 31.001 | W39: 31 | X39: 32.994 | Y39: 33 | Z39: 28.934 | AA39: 30 | AB39: 36.782 | AC39: 40 | AD39: 30.791 | AE39: 34 | AF39: 30.791 | AG39: 34 | AH39: 30.74 | AI39: 33
A40: 04480000 | B40: Gloucester Community Arts Charter (District) | C40: 448 | D40: Closed | E40: Closed | F40: Closed | G40: Closed | H40: Closed | I40: Closed | J40: Closed | K40: Closed | L40: Closed | M40: Closed | N40: Closed | O40: Closed | P40: Closed | Q40: Closed | R40: Closed | S40: Closed | T40: Closed | U40: Closed | V40: Closed | W40: Closed | X40: 12.004 | Y40: 12 | Z40: 13.207 | AA40: 15 | AB40: 14.228 | AC40: 18 | AD40: 7.8 | AE40: 8 | AF40: 8.8 | AG40: 9 | AH40: NE | AI40: NE
A41: 04490000 | B41: Boston Collegiate Charter (District) | C41: 449 | D41: 63.508 | E41: 68 | F41: 60.767 | G41: 65 | H41: 65.74 | I41: 70 | J41: 59.14 | K41: 62 | L41: 63.206 | M41: 64 | N41: 59.167 | O41: 63 | P41: 58.741 | Q41: 64 | R41: 60.177 | S41: 62 | T41: 62.11 | U41: 64 | V41: 60.939 | W41: 60 | X41: 61.147 | Y41: 63 | Z41: 54.159 | AA41: 59 | AB41: 52.584 | AC41: 58 | AD41: 44.555 | AE41: 56 | AF41: 44.405 | AG41: 55 | AH41: 39.018 | AI41: 49
A42: 04500000 | B42: Hilltown Cooperative Charter Public (District) | C42: 450 | D42: 19.93 | E42: 23 | F42: 19.155 | G42: 22 | H42: 19.76 | I42: 23 | J42: 20.06 | K42: 23 | L42: 20.055 | M42: 23 | N42: 15.989 | O42: 19 | P42: 16.989 | Q42: 20 | R42: 14.442 | S42: 18 | T42: 14.692 | U42: 19 | V42: 14.692 | W42: 18 | X42: 14.692 | Y42: 18 | Z42: 14.391 | AA42: 18 | AB42: 14.391 | AC42: 18 | AD42: 13.69 | AE42: 15 | AF42: 13.69 | AG42: 15 | AH42: 13.69 | AI42: 15
A43: 04510000 | B43: Robert M. Hughes Academy Charter Public (District) | C43: 451 | D43: Closed | E43: Closed | F43: Closed | G43: Closed | H43: Closed | I43: Closed | J43: Closed | K43: Closed | L43: Closed | M43: Closed | N43: Closed | O43: Closed | P43: Closed | Q43: Closed | R43: Closed | S43: Closed | T43: Closed | U43: Closed | V43: Closed | W43: Closed | X43: Closed | Y43: Closed | Z43: Closed | AA43: Closed | AB43: Closed | AC43: Closed | AD43: Closed | AE43: Closed | AF43: Closed | AG43: Closed | AH43: 8.48 | AI43: 10
A44: 04520000 | B44: Edward M. Kennedy Academy for Health Careers (Horace Mann Charter) (District) | C44: 452 | D44: 30.296 | E44: 34 | F44: 24.98 | G44: 28 | H44: 28.7 | I44: 32 | J44: 23.25 | K44: 26 | L44: 27.854 | M44: 30 | N44: 24.275 | O44: 27 | P44: 28.25 | Q44: 31 | R44: 23.349 | S44: 29 | T44: 25.317 | U44: 30 | V44: 23.54 | W44: 27 | X44: 23.54 | Y44: 27 | Z44: 20.1 | AA44: 25 | AB44: 19.7 | AC44: 25 | AD44: 20 | AE44: 24 | AF44: 20 | AG44: 24 | AH44: 18.9 | AI44: 22
A45: 04530000 | B45: Holyoke Community Charter (District) | C45: 453 | D45: 51.92 | E45: 52 | F45: 52.5 | G45: 53 | H45: 52.52 | I45: 53 | J45: 53.68 | K45: 54 | L45: 52.03 | M45: 52 | N45: 50.948 | O45: 51 | P45: 50.938 | Q45: 51 | R45: 53.118 | S45: 54 | T45: 53.618 | U45: 54 | V45: 51.115 | W45: 51 | X45: 50.145 | Y45: 50 | Z45: 47.916 | AA45: 48 | AB45: 48.906 | AC45: 49 | AD45: 48.048 | AE45: 48 | AF45: 46.059 | AG45: 46 | AH45: 45 | AI45: 45
A46: 04540000 | B46: Lawrence Family Development Charter (District) | C46: 454 | D46: 60.499 | E46: 61 | F46: 59.543 | G46: 60 | H46: 59.54 | I46: 60 | J46: 57.47 | K46: 58 | L46: 56.466 | M46: 57 | N46: 56 | O46: 56 | P46: 56 | Q46: 56 | R46: 53 | S46: 53 | T46: 54 | U46: 54 | V46: 54 | W46: 54 | X46: 54 | Y46: 54 | Z46: 52.956 | AA46: 53 | AB46: 51.956 | AC46: 52 | AD46: 49 | AE46: 49 | AF46: 50 | AG46: 50 | AH46: 51 | AI46: 51
A47: 04550000 | B47: Hill View Montessori Charter Public (District) | C47: 455 | D47: 24.072 | E47: 24 | F47: 18.015 | G47: 22 | H47: 20.07 | I47: 25 | J47: 17.75 | K47: 22 | L47: 19.553 | M47: 24 | N47: 21.576 | O47: 24 | P47: 22.676 | Q47: 23 | R47: 20.653 | S47: 24 | T47: 20.153 | U47: 22 | V47: 22.352 | W47: 23 | X47: 21.477 | Y47: 23 | Z47: 27.478 | AA47: 30 | AB47: 27.828 | AC47: 29 | AD47: 24.201 | AE47: 27 | AF47: 26.625 | AG47: 29 | AH47: 23.725 | AI47: 25
A48: 04560000 | B48: Lowell Community Charter Public (District) | C48: 456 | D48: 64.462 | E48: 65 | F48: 62.47 | G48: 63 | H48: 60.97 | I48: 62 | J48: 62.65 | K48: 63 | L48: 61.54 | M48: 62 | N48: 49.94 | O48: 50 | P48: 55.94 | Q48: 56 | R48: 48.13 | S48: 48 | T48: 48.09 | U48: 48 | V48: 45.63 | W48: 47 | X48: 47.46 | Y48: 49 | Z48: 47.69 | AA48: 48 | AB48: 45.94 | AC48: 46 | AD48: 61.293 | AE48: 62 | AF48: 57.857 | AG48: 59 | AH48: 79 | AI48: 79
A49: 04570000 | B49: Brooke Charter School East Boston (District) | C49: 457 | D49: Closed | E49: Closed | F49: Closed | G49: Closed | H49: Closed | I49: Closed | J49: 40 | K49: 40 | L49: 40 | M49: 40 | N49: 33 | O49: 33 | P49: 33 | Q49: 33 | R49: 24.5 | S49: 25 | T49: 24.5 | U49: 25 | V49: 15.5 | W49: 16 | X49: 15.5 | Y49: 16 | Z49: NE | AA49: NE | AB49: NE | AC49: NE | AD49: NE | AE49: NE | AF49: NE | AG49: NE | AH49: NE | AI49: NE
A50: 04580000 | B50: Lowell Middlesex Academy Charter (District) | C50: 458 | D50: 10.5 | E50: 12 | F50: 11 | G50: 13 | H50: 10.48 | I50: 12 | J50: 11 | K50: 12 | L50: 9.668 | M50: 10 | N50: 11.77 | O50: 13 | P50: 11.905 | Q50: 14 | R50: 11.911 | S50: 14 | T50: 12.51 | U50: 13 | V50: 13.713 | W50: 15 | X50: 12.977 | Y50: 15 | Z50: 10.4 | AA50: 14 | AB50: 11.4 | AC50: 14 | AD50: 12.8 | AE50: 15 | AF50: 12 | AG50: 15 | AH50: 9.6 | AI50: 11
A51: 04590000 | B51: Excel Academy Charter School - Boston II | C51: 459 | D51: Closed | E51: Closed | F51: Closed | G51: Closed | H51: Closed | I51: Closed | J51: Closed | K51: Closed | L51: Closed | M51: Closed | N51: Closed | O51: Closed | P51: Closed | Q51: Closed | R51: 8.625 | S51: 14 | T51: 11.099 | U51: 15 | V51: 4.17 | W51: 6 | X51: 5.298 | Y51: 6 | Z51: NE | AA51: NE | AB51: NE | AC51: NE | AD51: NE | AE51: NE | AF51: NE | AG51: NE | AH51: NE | AI51: NE
A52: 04610000 | B52: Excel Academy Charter School - Chelsea | C52: 461 | D52: Closed | E52: Closed | F52: Closed | G52: Closed | H52: Closed | I52: Closed | J52: Closed | K52: Closed | L52: Closed | M52: Closed | N52: Closed | O52: Closed | P52: Closed | Q52: Closed | R52: 12.734 | S52: 17 | T52: 14.896 | U52: 17 | V52: 7.806 | W52: 12 | X52: 10.002 | Y52: 12 | Z52: 5.104 | AA52: 6 | AB52: 5.802 | AC52: 6 | AD52: NE | AE52: NE | AF52: NE | AG52: NE | AH52: NE | AI52: NE
A53: 04620000 | B53: Grove Hall Preparatory Charter School (District) | C53: 462 | D53: Closed | E53: Closed | F53: Closed | G53: Closed | H53: Closed | I53: Closed | J53: Closed | K53: Closed | L53: Closed | M53: Closed | N53: Closed | O53: Closed | P53: Closed | Q53: Closed | R53: Closed | S53: Closed | T53: Closed | U53: Closed | V53: Closed | W53: Closed | X53: Closed | Y53: Closed | Z53: 7.94 | AA53: 8 | AB53: 7.99 | AC53: 8 | AD53: NE | AE53: NE | AF53: NE | AG53: NE | AH53: NE | AI53: NE
A54: 04630000 | B54: KIPP Academy Boston Charter School (District) | C54: 463 | D54: 51.1 | E54: 52 | F54: 44.088 | G54: 45 | H54: 46.99 | I54: 47 | J54: 38.5 | K54: 39 | L54: 38.25 | M54: 39 | N54: 26.979 | O54: 27 | P54: 28.977 | Q54: 29 | R54: 12.988 | S54: 13 | T54: 14.987 | U54: 15 | V54: 6.5 | W54: 8 | X54: 8.194 | Y54: 10 | Z54: NE | AA54: NE | AB54: NE | AC54: NE | AD54: NE | AE54: NE | AF54: NE | AG54: NE | AH54: NE | AI54: NE
A55: 04640000 | B55: Marblehead Community Charter Public (District) | C55: 464 | D55: 22.3 | E55: 24 | F55: 22.9 | G55: 24 | H55: 21.9 | I55: 23 | J55: 20.65 | K55: 22 | L55: 19.25 | M55: 21 | N55: 20.8 | O55: 22 | P55: 20.4 | Q55: 22 | R55: 21.35 | S55: 24 | T55: 22.15 | U55: 25 | V55: 19.75 | W55: 22 | X55: 19.55 | Y55: 22 | Z55: 20.645 | AA55: 23 | AB55: 20.645 | AC55: 23 | AD55: 21.9 | AE55: 25 | AF55: 21.65 | AG55: 25 | AH55: 20.5 | AI55: 23
A56: 04650000 | B56: MATCH Community Day Charter Public School | C56: 465 | D56: Closed | E56: Closed | F56: Closed | G56: Closed | H56: Closed | I56: Closed | J56: Closed | K56: Closed | L56: Closed | M56: Closed | N56: Closed | O56: Closed | P56: Closed | Q56: Closed | R56: 20.4 | S56: 21 | T56: 18.4 | U56: 19 | V56: 12.5 | W56: 13 | X56: 12.5 | Y56: 13 | Z56: 8 | AA56: 8 | AB56: 8 | AC56: 8 | AD56: NE | AE56: NE | AF56: NE | AG56: NE | AH56: NE | AI56: NE
A57: 04660000 | B57: Martha's Vineyard Charter (District) | C57: 466 | D57: 17.63 | E57: 20 | F57: 18.76 | G57: 24 | H57: 18.87 | I57: 23 | J57: 16.93 | K57: 22 | L57: 18.2 | M57: 22 | N57: 18.07 | O57: 22 | P57: 18.04 | Q57: 21 | R57: 17.32 | S57: 21 | T57: 19.21 | U57: 23 | V57: 17.36 | W57: 21 | X57: 17.95 | Y57: 22 | Z57: 19.46 | AA57: 22 | AB57: 19.46 | AC57: 22 | AD57: 19.38 | AE57: 22 | AF57: 19.748 | AG57: 22 | AH57: 18.764 | AI57: 20
A58: 04670000 | B58: New Liberty Charter School of Salem (District) | C58: 467 | D58: Closed | E58: Closed | F58: Closed | G58: Closed | H58: Closed | I58: Closed | J58: 4.66 | K58: 6 | L58: 4.49 | M58: 6 | N58: 5.6 | O58: 7 | P58: 5.43 | Q58: 6 | R58: 4.6 | S58: 6 | T58: 4.634 | U58: 6 | V58: 4.3 | W58: 6 | X58: 4.82 | Y58: 6 | Z58: 5.52 | AA58: 7 | AB58: 5.565 | AC58: 8 | AD58: NE | AE58: NE | AF58: NE | AG58: NE | AH58: NE | AI58: NE
A59: 04690000 | B59: MATCH Charter Public School (District) | C59: 469 | D59: 101.464 | E59: 107 | F59: 79.712 | G59: 89 | H59: 84.75 | I59: 88 | J59: 67.31 | K59: 74 | L59: 69.504 | M59: 76 | N59: 53.29 | O59: 61 | P59: 57.3 | Q59: 63 | R59: 31.04 | S59: 33 | T59: 33.04 | U59: 35 | V59: 30.2 | W59: 32 | X59: 30.2 | Y59: 32 | Z59: 27.5 | AA59: 28 | AB59: 27 | AC59: 27 | AD59: 24.5 | AE59: 25 | AF59: 24.5 | AG59: 25 | AH59: 23.24 | AI59: 26
A60: 04700000 | B60: Mystic Valley Regional Charter (District) | C60: 470 | D60: 95.797 | E60: 101 | F60: 100.373 | G60: 107 | H60: 103.09 | I60: 111 | J60: 106.74 | K60: 113 | L60: 102.677 | M60: 110 | N60: 104.606 | O60: 111 | P60: 106.903 | Q60: 113 | R60: 103.615 | S60: 110 | T60: 104.815 | U60: 112 | V60: 103.853 | W60: 108 | X60: 102.387 | Y60: 108 | Z60: 98.055 | AA60: 100 | AB60: 93.347 | AC60: 99 | AD60: 89.115 | AE60: 91 | AF60: 88.368 | AG60: 92 | AH60: 94.99 | AI60: 95
A61: 04710000 | B61: New Leadership Charter (District) | C61: 471 | D61: Closed | E61: Closed | F61: Closed | G61: Closed | H61: Closed | I61: Closed | J61: Closed | K61: Closed | L61: Closed | M61: Closed | N61: Closed | O61: Closed | P61: Closed | Q61: Closed | R61: Closed | S61: Closed | T61: Closed | U61: Closed | V61: 32.416 | W61: 46 | X61: 31.516 | Y61: 46 | Z61: 30.961 | AA61: 46 | AB61: 30.683 | AC61: 48 | AD61: 15.279 | AE61: 38 | AF61: 21.872 | AG61: 51 | AH61: 42.907 | AI61: 47
A62: 04740000 | B62: Sizer School: A North Central Charter Essential (District) | C62: 474 | D62: 37.707 | E62: 46 | F62: 34.607 | G62: 39 | H62: 35.07 | I62: 40 | J62: 37.54 | K62: 48 | L62: 35.821 | M62: 44 | N62: 36.35 | O62: 44 | P62: 39.029 | Q62: 47 | R62: 34.101 | S62: 43 | T62: 35.389 | U62: 43 | V62: 34.836 | W62: 42 | X62: 35.142 | Y62: 40 | Z62: 35.077 | AA62: 45 | AB62: 34.589 | AC62: 43 | AD62: 34.325 | AE62: 41 | AF62: 33.917 | AG62: 39 | AH62: 34.125 | AI62: 37
A63: 04750000 | B63: Dorchester Collegiate Academy Charter (District) | C63: 475 | D63: Closed | E63: Closed | F63: Closed | G63: Closed | H63: Closed | I63: Closed | J63: 21.68 | K63: 27 | L63: 20.82 | M63: 25 | N63: 17.2 | O63: 17 | P63: 16 | Q63: 16 | R63: 17.502 | S63: 18 | T63: 6.89 | U63: 17 | V63: 13 | W63: 13 | X63: 13 | Y63: 13 | Z63: 9.75 | AA63: 10 | AB63: 9.75 | AC63: 10 | AD63: 5.775 | AE63: 6 | AF63: 5.4 | AG63: 6 | AH63: 2.2 | AI63: 3
A64: 04760000 | B64: Spirit of Knowledge Charter School (District) | C64: 476 | D64: Closed | E64: Closed | F64: Closed | G64: Closed | H64: Closed | I64: Closed | J64: Closed | K64: Closed | L64: Closed | M64: Closed | N64: Closed | O64: Closed | P64: Closed | Q64: Closed | R64: Closed | S64: Closed | T64: Closed | U64: Closed | V64: 14.186 | W64: 17 | X64: 14.713 | Y64: 17 | Z64: 13.577 | AA64: 15 | AB64: 13.82 | AC64: 17 | AD64: 12.682 | AE64: 18 | AF64: 9.339 | AG64: 15 | AH64: NE | AI64: NE
A65: 04770000 | B65: Silver Hill Horace Mann Charter (District) | C65: 477 | D65: 36.2 | E65: 38 | F65: 35.8 | G65: 36 | H65: 34.8 | I65: 35 | J65: 36.44 | K65: 37 | L65: 35.938 | M65: 37 | N65: 36.943 | O65: 37 | P65: 36.993 | Q65: 37 | R65: 38.513 | S65: 38 | T65: 38.057 | U65: 38 | V65: 35.735 | W65: 36 | X65: 35.921 | Y65: 36 | Z65: 32.193 | AA65: 35 | AB65: 35.966 | AC65: 36 | AD65: 34.966 | AE65: 35 | AF65: 34.966 | AG65: 35 | AH65: 38.75 | AI65: 39
A66: 04780000 | B66: Francis W. Parker Charter Essential (District) | C66: 478 | D66: 46.25 | E66: 49 | F66: 36.99 | G66: 40 | H66: 45.69 | I66: 49 | J66: 37.56 | K66: 42 | L66: 44.81 | M66: 49 | N66: 33.95 | O66: 38 | P66: 45.75 | Q66: 50 | R66: 47.411 | S66: 51 | T66: 47.242 | U66: 52 | V66: 45.197 | W66: 50 | X66: 45.096 | Y66: 49 | Z66: 45.46 | AA66: 50 | AB66: 45.45 | AC66: 50 | AD66: 44.775 | AE66: 48 | AF66: 44.775 | AG66: 48 | AH66: 45.025 | AI66: 51
A67: 04790000 | B67: Pioneer Valley Performing Arts Charter Public (District) | C67: 479 | D67: 39.826 | E67: 47 | F67: 41.89 | G67: 48 | H67: 40.59 | I67: 46 | J67: 37.28 | K67: 43 | L67: 39.2 | M67: 45 | N67: 35.696 | O67: 45 | P67: 39.52 | Q67: 50 | R67: 35.396 | S67: 43 | T67: 40.83 | U67: 54 | V67: 42.37 | W67: 56 | X67: 41.86 | Y67: 59 | Z67: 43.44 | AA67: 55 | AB67: 39.829 | AC67: 54 | AD67: 39.74 | AE67: 60 | AF67: 39 | AG67: 59 | AH67: 35.85 | AI67: 59
A68: 04800000 | B68: UP Academy Charter School of Boston (District) | C68: 480 | D68: 28.5 | E68: 29 | F68: 26.44 | G68: 27 | H68: 38.62 | I68: 39 | J68: 38.37 | K68: 40 | L68: 41.4 | M68: 42 | N68: 42.98 | O68: 44 | P68: 45.5 | Q68: 47 | R68: 27.01 | S68: 29 | T68: 45.1 | U68: 46 | V68: 45.78 | W68: 48 | X68: 47.37 | Y68: 48 | Z68: 41.16 | AA68: 43 | AB68: 42.5 | AC68: 43 | AD68: NE | AE68: NE | AF68: NE | AG68: NE | AH68: NE | AI68: NE
A69: 04810000 | B69: Boston Renaissance Charter Public (District) | C69: 481 | D69: 84.4 | E69: 85 | F69: 79 | G69: 79 | H69: 75.57 | I69: 78 | J69: 77 | K69: 77 | L69: 74.02 | M69: 76 | N69: 77 | O69: 77 | P69: 76 | Q69: 76 | R69: 73 | S69: 73 | T69: 72.67 | U69: 74 | V69: 70.05 | W69: 70 | X69: 70.82 | Y69: 71 | Z69: 78.77 | AA69: 79 | AB69: 76.86 | AC69: 77 | AD69: 93.68 | AE69: 94 | AF69: 93.8 | AG69: 94 | AH69: 95 | AI69: 96
A70: 04820000 | B70: River Valley Charter (District) | C70: 482 | D70: 20.751 | E70: 22 | F70: 18.076 | G70: 21 | H70: 18.44 | I70: 22 | J70: 19.44 | K70: 22 | L70: 19.94 | M70: 22 | N70: 19.405 | O70: 20 | P70: 18.405 | Q70: 20 | R70: 19.468 | S70: 20 | T70: 18.464 | U70: 19 | V70: 14.151 | W70: 18 | X70: 17.436 | Y70: 18 | Z70: 17.492 | AA70: 18 | AB70: 16.492 | AC70: 17 | AD70: 17.124 | AE70: 19 | AF70: 17.124 | AG70: 19 | AH70: 21 | AI70: 21
A71: 04830000 | B71: Rising Tide Charter Public (District) | C71: 483 | D71: 58.25 | E71: 59 | F71: 49.025 | G71: 60 | H71: 52.15 | I71: 58 | J71: 41.47 | K71: 47 | L71: 56.27 | M71: 58 | N71: 49.133 | O71: 54 | P71: 46.718 | Q71: 53 | R71: 39.508 | S71: 45 | T71: 43.485 | U71: 47 | V71: 31.5 | W71: 41 | X71: 34.539 | Y71: 41 | Z71: 32.24 | AA71: 34 | AB71: 32.41 | AC71: 35 | AD71: 23.57 | AE71: 25 | AF71: 24.82 | AG71: 26 | AH71: 24.36 | AI71: 26
A72: 04840000 | B72: Roxbury Preparatory Charter (District) | C72: 484 | D72: 114.436 | E72: 120 | F72: 106.35 | G72: 107 | H72: 111.18 | I72: 112 | J72: 95.14 | K72: 99 | L72: 97.98 | M72: 100 | N72: 78.14 | O72: 79 | P72: 77.56 | Q72: 79 | R72: 64.57 | S72: 67 | T72: 65.07 | U72: 67 | V72: 53.51 | W72: 56 | X72: 55.31 | Y72: 56 | Z72: 23.05 | AA72: 27 | AB72: 23.05 | AC72: 27 | AD72: 25.83 | AE72: 32 | AF72: 27.83 | AG72: 34 | AH72: 26.259 | AI72: 30
A73: 04850000 | B73: Salem Academy Charter (District) | C73: 485 | D73: 46.102 | E73: 50 | F73: 41.45 | G73: 44 | H73: 43.12 | I73: 46 | J73: 42.96 | K73: 44 | L73: 43.894 | M73: 46 | N73: 37.64 | O73: 40 | P73: 42.8 | Q73: 43 | R73: 38.65 | S73: 43 | T73: 39.03 | U73: 43 | V73: 34.146 | W73: 37 | X73: 36.04 | Y73: 37 | Z73: 31.505 | AA73: 37 | AB73: 30.41 | AC73: 37 | AD73: 33.957 | AE73: 40 | AF73: 35.59 | AG73: 41 | AH73: 36.7 | AI73: 41
A74: 04860000 | B74: Seven Hills Charter Public (District) | C74: 486 | D74: 34.75 | E74: 35 | F74: 46.613 | G74: 49 | H74: 49.61 | I74: 52 | J74: 52.39 | K74: 53 | L74: 53.37 | M74: 54 | N74: 55.3 | O74: 56 | P74: 56.3 | Q74: 57 | R74: 53.74 | S74: 54 | T74: 53.175 | U74: 54 | V74: 50.102 | W74: 52 | X74: 51.474 | Y74: 53 | Z74: 49.277 | AA74: 51 | AB74: 50.176 | AC74: 52 | AD74: 48.203 | AE74: 51 | AF74: 48.665 | AG74: 50 | AH74: 41.5 | AI74: 42
A75: 04870000 | B75: Prospect Hill Academy Charter (District) | C75: 487 | D75: 111.263 | E75: 119 | F75: 106.027 | G75: 119 | H75: 109.31 | I75: 122 | J75: 101.36 | K75: 119 | L75: 95.302 | M75: 114 | N75: 88.08 | O75: 110 | P75: 87.393 | Q75: 107 | R75: 93.022 | S75: 108 | T75: 93.3 | U75: 107 | V75: 101.852 | W75: 103 | X75: 106.767 | Y75: 107 | Z75: 103.116 | AA75: 105 | AB75: 97.654 | AC75: 100 | AD75: 87.901 | AE75: 102 | AF75: 84.601 | AG75: 101 | AH75: 80.762 | AI75: 81
A76: 04880000 | B76: South Shore Charter Public (District) | C76: 488 | D76: 76.686 | E76: 85 | F76: 60.901 | G76: 65 | H76: 64.6 | I76: 70 | J76: 53.3 | K76: 58 | L76: 54.497 | M76: 59 | N76: 51.592 | O76: 54 | P76: 56.601 | Q76: 58 | R76: 47.763 | S76: 53 | T76: 49.974 | U76: 56 | V76: 44.893 | W76: 50 | X76: 48.628 | Y76: 52 | Z76: 47.027 | AA76: 52 | AB76: 45.493 | AC76: 49 | AD76: 46.264 | AE76: 52 | AF76: 45.956 | AG76: 51 | AH76: 40.78 | AI76: 47
A77: 04890000 | B77: Sturgis Charter Public (District) | C77: 489 | D77: 85.094 | E77: 95 | F77: 86.997 | G77: 97 | H77: 89.2 | I77: 98 | J77: 72.16 | K77: 79 | L77: 85.75 | M77: 92 | N77: 83.25 | O77: 91 | P77: 85.25 | Q77: 91 | R77: 78.13 | S77: 92 | T77: 82.49 | U77: 92 | V77: 67.342 | W77: 77 | X77: 76.21 | Y77: 85 | Z77: 59.792 | AA77: 69 | AB77: 59.97 | AC77: 68 | AD77: 38.72 | AE77: 45 | AF77: 38.42 | AG77: 45 | AH77: 40.23 | AI77: 46
A78: 04910000 | B78: Atlantis Charter (District) | C78: 491 | D78: 90.052 | E78: 91 | F78: 79.51 | G78: 83 | H78: 82.18 | I78: 85 | J78: 73.94 | K78: 75 | L78: 73.14 | M78: 74 | N78: 48.66 | O78: 54 | P78: 60.26 | Q78: 62 | R78: 53.6 | S78: 54 | T78: 54.6 | U78: 55 | V78: 47.92 | W78: 49 | X78: 51.8 | Y78: 53 | Z78: 52.13 | AA78: 53 | AB78: 54.14 | AC78: 55 | AD78: 56.04 | AE78: 56 | AF78: 56.03 | AG78: 56 | AH78: 56.223 | AI78: 56
A79: 04920000 | B79: Martin Luther King Jr. Charter School of Excellence (District) | C79: 492 | D79: 35.791 | E79: 37 | F79: 34.754 | G79: 42 | H79: 37.76 | I79: 42 | J79: 36.72 | K79: 37 | L79: 30.117 | M79: 34 | N79: 38.169 | O79: 39 | P79: 37.722 | Q79: 39 | R79: 39.163 | S79: 40 | T79: 38.229 | U79: 40 | V79: 38.975 | W79: 41 | X79: 39.855 | Y79: 41 | Z79: 37.808 | AA79: 39 | AB79: 36.801 | AC79: 38 | AD79: 39.26 | AE79: 40 | AF79: 39.71 | AG79: 40 | AH79: 31.769 | AI79: 33
A80: 04930000 | B80: Phoenix Charter Academy (District) | C80: 493 | D80: 16.1 | E80: 17 | F80: 13.69 | G80: 16 | H80: 14.19 | I80: 18 | J80: 16.16 | K80: 21 | L80: 16.71 | M80: 20 | N80: 13.8 | O80: 30 | P80: 17.87 | Q80: 30 | R80: 16.48 | S80: 33 | T80: 17.17 | U80: 26 | V80: 16.05 | W80: 27 | X80: 16.64 | Y80: 28 | Z80: 17.49 | AA80: 27 | AB80: 17.17 | AC80: 27 | AD80: 14.81 | AE80: 23 | AF80: 14.57 | AG80: 23 | AH80: 21.35 | AI80: 32
A81: 04940000 | B81: Pioneer Charter School of Science (District) | C81: 494 | D81: 60.551 | E81: 69 | F81: 53.25 | G81: 58 | H81: 50.63 | I81: 57 | J81: 33.31 | K81: 39 | L81: 32.7 | M81: 39 | N81: 32.343 | O81: 37 | P81: 32.05 | Q81: 36 | R81: 30 | S81: 38 | T81: 32.16 | U81: 38 | V81: 31.15 | W81: 38 | X81: 29.96 | Y81: 35 | Z81: 27.02 | AA81: 35 | AB81: 26.8 | AC81: 34 | AD81: 29.19 | AE81: 31 | AF81: 27.7 | AG81: 31 | AH81: 21.2 | AI81: 23
A82: 04960000 | B82: Global Learning Charter Public (District) | C82: 496 | D82: 36.117 | E82: 38 | F82: 43.023 | G82: 45 | H82: 40.77 | I82: 45 | J82: 31.18 | K82: 33 | L82: 43.7 | M82: 45 | N82: 40.669 | O82: 44 | P82: 42.814 | Q82: 45 | R82: 46.716 | S82: 45 | T82: 40.533 | U82: 43 | V82: 42.905 | W82: 45 | X82: 41.52 | Y82: 44 | Z82: 36.84 | AA82: 40 | AB82: 38.6 | AC82: 40 | AD82: 38.015 | AE82: 41 | AF82: 34.286 | AG82: 41 | AH82: 28.47 | AI82: 32
A83: 04970000 | B83: Pioneer Valley Chinese Immersion Charter (District) | C83: 497 | D83: 64.053 | E83: 68 | F83: 58.83 | G83: 65 | H83: 60.7 | I83: 65 | J83: 55.3 | K83: 61 | L83: 55.75 | M83: 60 | N83: 43.914 | O83: 46 | P83: 44.864 | Q83: 47 | R83: 34.1 | S83: 37 | T83: 33.1 | U83: 36 | V83: 28.3 | W83: 31 | X83: 28.3 | Y83: 31 | Z83: 24.1 | AA83: 25 | AB83: 24.6 | AC83: 25 | AD83: 20.75 | AE83: 21 | AF83: 20.75 | AG83: 21 | AH83: 20.5 | AI83: 21
A84: 04980000 | B84: Veritas Preparatory Charter School (District) | C84: 498 | D84: 31 | E84: 31 | F84: 29.5 | G84: 30 | H84: 27.5 | I84: 28 | J84: 23.3 | K84: 25 | L84: 26 | M84: 26 | N84: 19 | O84: 19 | P84: 19 | Q84: 19 | R84: 14.5 | S84: 16 | T84: 16 | U84: 16 | V84: 9.949 | W84: 10 | X84: 7.95 | Y84: 8 | Z84: NE | AA84: NE | AB84: NE | AC84: NE | AD84: NE | AE84: NE | AF84: NE | AG84: NE | AH84: NE | AI84: NE
A85: 04990000 | B85: Hampden Charter School of Science East (District) | C85: 499 | D85: 42.243 | E85: 47 | F85: 38.321 | G85: 47 | H85: 37.68 | I85: 44 | J85: 31.32 | K85: 45 | L85: 33.078 | M85: 44 | N85: 27.466 | O85: 36 | P85: 31.501 | Q85: 37 | R85: 25.479 | S85: 40 | T85: 29.451 | U85: 39 | V85: 26.993 | W85: 33 | X85: 26.68 | Y85: 34 | Z85: 28.857 | AA85: 31 | AB85: 28 | AC85: 30 | AD85: 19.65 | AE85: 23 | AF85: 18.65 | AG85: 22 | AH85: 14.538 | AI85: 16
A86: 35010000 | B86: Paulo Freire Social Justice Charter School (District) | C86: 3501 | D86: 35.441 | E86: 38 | F86: 34.156 | G86: 40 | H86: 35.51 | I86: 42 | J86: 38.28 | K86: 46 | L86: 35.313 | M86: 43 | N86: 33.067 | O86: 38 | P86: 29.461 | Q86: 38 | R86: 25.003 | S86: 26 | T86: 19.862 | U86: 28 | V86: NE | W86: NE | X86: NE | Y86: NE | Z86: NE | AA86: NE | AB86: NE | AC86: NE | AD86: NE | AE86: NE | AF86: NE | AG86: NE | AH86: NE | AI86: NE
A87: 35020000 | B87: Baystate Academy Charter Public School (District) | C87: 3502 | D87: 46.67 | E87: 52 | F87: 38.652 | G87: 40 | H87: 36.18 | I87: 38 | J87: 25.35 | K87: 27 | L87: 26.23 | M87: 29 | N87: 19.83 | O87: 20 | P87: 22.08 | Q87: 22 | R87: 8.31 | S87: 11 | T87: 9.21 | U87: 11 | V87: NE | W87: NE | X87: NE | Y87: NE | Z87: NE | AA87: NE | AB87: NE | AC87: NE | AD87: NE | AE87: NE | AF87: NE | AG87: NE | AH87: NE | AI87: NE
A88: 35030000 | B88: Collegiate Charter School of Lowell (District) | C88: 3503 | D88: 35 | E88: 36 | F88: 35 | G88: 35 | H88: 33 | I88: 33 | J88: 29.1 | K88: 30 | L88: 28.5 | M88: 29 | N88: 21 | O88: 22 | P88: 21.48 | Q88: 22 | R88: 16.2 | S88: 18 | T88: 15.2 | U88: 17 | V88: NE | W88: NE | X88: NE | Y88: NE | Z88: NE | AA88: NE | AB88: NE | AC88: NE | AD88: NE | AE88: NE | AF88: NE | AG88: NE | AH88: NE | AI88: NE
A89: 35040000 | B89: City on a Hill Charter Public School Dudley Square (District) | C89: 3504 | D89: 22.95 | E89: 33 | F89: 24.8 | G89: 33 | H89: 25.3 | I89: 33 | J89: 20.2 | K89: 27 | L89: 20.9 | M89: 28 | N89: 13.5 | O89: 18 | P89: 13.8 | Q89: 19 | R89: 8.2 | S89: 13 | T89: 8.2 | U89: 13 | V89: NE | W89: NE | X89: NE | Y89: NE | Z89: NE | AA89: NE | AB89: NE | AC89: NE | AD89: NE | AE89: NE | AF89: NE | AG89: NE | AH89: NE | AI89: NE
A90: 35050000 | B90: UP Academy Charter School of Dorchester (District) | C90: 3505 | D90: 41.01 | E90: 41 | F90: 39.33 | G90: 40 | H90: 62.83 | I90: 63 | J90: 52.99 | K90: 52 | L90: 52.49 | M90: 51 | N90: 41 | O90: 41 | P90: 58 | Q90: 58 | R90: 44.75 | S90: 45 | T90: 55.87 | U90: 56 | V90: NE | W90: NE | X90: NE | Y90: NE | Z90: NE | AA90: NE | AB90: NE | AC90: NE | AD90: NE | AE90: NE | AF90: NE | AG90: NE | AH90: NE | AI90: NE
A91: 35060000 | B91: Pioneer Charter School of Science II (PCSS-II) (District) | C91: 3506 | D91: 33.4 | E91: 35 | F91: 31.76 | G91: 38 | H91: 32.2 | I91: 38 | J91: 28.44 | K91: 33 | L91: 25.24 | M91: 32 | N91: 22.292 | O91: 25 | P91: 21.446 | Q91: 24 | R91: 16.7 | S91: 20 | T91: 16.9 | U91: 20 | V91: NE | W91: NE | X91: NE | Y91: NE | Z91: NE | AA91: NE | AB91: NE | AC91: NE | AD91: NE | AE91: NE | AF91: NE | AG91: NE | AH91: NE | AI91: NE
A92: 35070000 | B92: City on a Hill Charter Public School New Bedford (District) | C92: 3507 | D92: 17.3 | E92: 22 | F92: 12.916 | G92: 20 | H92: 13.32 | I92: 20 | J92: 11 | K92: 15 | L92: 11.3 | M92: 15 | N92: 8.5 | O92: 13 | P92: 8.1 | Q92: 12 | R92: NE | S92: NE | T92: NE | U92: NE | V92: NE | W92: NE | X92: NE | Y92: NE | Z92: NE | AA92: NE | AB92: NE | AC92: NE | AD92: NE | AE92: NE | AF92: NE | AG92: NE | AH92: NE | AI92: NE
A93: 35080000 | B93: Phoenix Academy Public Charter High School Springfield (District) | C93: 3508 | D93: 13.421 | E93: 16 | F93: 10.525 | G93: 16 | H93: 11.9 | I93: 16 | J93: 11.4 | K93: 13 | L93: 11.75 | M93: 15 | N93: 7.4 | O93: 11 | P93: 8.5 | Q93: 15 | R93: NE | S93: NE | T93: NE | U93: NE | V93: NE | W93: NE | X93: NE | Y93: NE | Z93: NE | AA93: NE | AB93: NE | AC93: NE | AD93: NE | AE93: NE | AF93: NE | AG93: NE | AH93: NE | AI93: NE
A94: 35090000 | B94: Argosy Collegiate Charter School (District) | C94: 3509 | D94: 31.301 | E94: 33 | F94: 24.999 | G94: 25 | H94: 26 | I94: 26 | J94: 16.5 | K94: 17 | L94: 15.6 | M94: 17 | N94: 8.1 | O94: 11 | P94: 7.6 | Q94: 10 | R94: NE | S94: NE | T94: NE | U94: NE | V94: NE | W94: NE | X94: NE | Y94: NE | Z94: NE | AA94: NE | AB94: NE | AC94: NE | AD94: NE | AE94: NE | AF94: NE | AG94: NE | AH94: NE | AI94: NE
A95: 35100000 | B95: Springfield Preparatory Charter School (District) | C95: 3510 | D95: 19.3 | E95: 20 | F95: 14.8 | G95: 15 | H95: 13 | I95: 13 | J95: 6.66 | K95: 8 | L95: 6.664 | M95: 8 | N95: NE | O95: NE | P95: NE | Q95: NE | R95: NE | S95: NE | T95: NE | U95: NE | V95: NE | W95: NE | X95: NE | Y95: NE | Z95: NE | AA95: NE | AB95: NE | AC95: NE | AD95: NE | AE95: NE | AF95: NE | AG95: NE | AH95: NE | AI95: NE
A96: 35110000 | B96: Bentley Academy Charter School (District) | C96: 3511 | D96: 25.39 | E96: 30 | F96: 31.008 | G96: 31 | H96: 32.28 | I96: 32 | J96: 25.48 | K96: 30 | L96: 25.48 | M96: 30 | N96: NE | O96: NE | P96: NE | Q96: NE | R96: NE | S96: NE | T96: NE | U96: NE | V96: NE | W96: NE | X96: NE | Y96: NE | Z96: NE | AA96: NE | AB96: NE | AC96: NE | AD96: NE | AE96: NE | AF96: NE | AG96: NE | AH96: NE | AI96: NE
A97: 35130000 | B97: New Heights Charter School of Brockton (District) | C97: 3513 | D97: 26.201 | E97: 28 | F97: 21.296 | G97: 24 | H97: 22.09 | I97: 23 | J97: NE | K97: NE | L97: NE | M97: NE | N97: NE | O97: NE | P97: NE | Q97: NE | R97: NE | S97: NE | T97: NE | U97: NE | V97: NE | W97: NE | X97: NE | Y97: NE | Z97: NE | AA97: NE | AB97: NE | AC97: NE | AD97: NE | AE97: NE | AF97: NE | AG97: NE | AH97: NE | AI97: NE
A98: 35140000 | B98: Libertas Academy Charter School (District) | C98: 3514 | D98: 7.52 | E98: 9 | F98: NE | G98: NE | H98: NE | I98: NE | J98: NE | K98: NE | L98: NE | M98: NE | N98: NE | O98: NE | P98: NE | Q98: NE | R98: NE | S98: NE | T98: NE | U98: NE | V98: NE | W98: NE | X98: NE | Y98: NE | Z98: NE | AA98: NE | AB98: NE | AC98: NE | AD98: NE | AE98: NE | AF98: NE | AG98: NE | AH98: NE | AI98: NE
A99: 35150000 | B99: Old Sturbridge Academy Charter Public School (District) | C99: 3515 | D99: 13.25 | E99: 14 | F99: NE | G99: NE | H99: NE | I99: NE | J99: NE | K99: NE | L99: NE | M99: NE | N99: NE | O99: NE | P99: NE | Q99: NE | R99: NE | S99: NE | T99: NE | U99: NE | V99: NE | W99: NE | X99: NE | Y99: NE | Z99: NE | AA99: NE | AB99: NE | AC99: NE | AD99: NE | AE99: NE | AF99: NE | AG99: NE | AH99: NE | AI99: NE

Sheet FTE (hidden)
A1: LEA | B1: FTE | C1: Type | D1: Source
A2: 409 | B2: 408.08 | C2: C | D2: Final FY18 Charter School Tuition and Enrollment (Hadley)
A3: 410 | B3: 1126.08 | C3: C | D3: Final FY18 Charter School Tuition and Enrollment (Hadley)
A4: 412 | B4: 525.12 | C4: C | D4: Final FY18 Charter School Tuition and Enrollment (Hadley)
A5: 413 | B5: 221.05 | C5: C | D5: Final FY18 Charter School Tuition and Enrollment (Hadley)
A6: 414 | B6: 350.68 | C6: C | D6: Final FY18 Charter School Tuition and Enrollment (Hadley)
A7: 416 | B7: 459.57 | C7: C | D7: Final FY18 Charter School Tuition and Enrollment (Hadley)
A8: 417 | B8: 309.85 | C8: C | D8: Final FY18 Charter School Tuition and Enrollment (Hadley)
A9: 418 | B9: 396.57 | C9: C | D9: Final FY18 Charter School Tuition and Enrollment (Hadley)
A10: 419 | B10: 214.33 | C10: C | D10: Final FY18 Charter School Tuition and Enrollment (Hadley)
A11: 420 | B11: 350.6 | C11: C | D11: Final FY18 Charter School Tuition and Enrollment (Hadley)
A12: 426 | B12: 319.74 | C12: C | D12: Final FY18 Charter School Tuition and Enrollment (Hadley)
A13: 428 | B13: 1752.78 | C13: C | D13: Final FY18 Charter School Tuition and Enrollment (Hadley)
A14: 429 | B14: 1330.57 | C14: C | D14: Final FY18 Charter School Tuition and Enrollment (Hadley)
A15: 430 | B15: 990.15 | C15: C | D15: Final FY18 Charter School Tuition and Enrollment (Hadley)
A16: 431 | B16: 319.8 | C16: C | D16: Final FY18 Charter School Tuition and Enrollment (Hadley)
A17: 432 | B17: 242.13 | C17: C | D17: Final FY18 Charter School Tuition and Enrollment (Hadley)
A18: 435 | B18: 800.83 | C18: C | D18: Final FY18 Charter School Tuition and Enrollment (Hadley)
A19: 436 | B19: 361.69 | C19: C | D19: Final FY18 Charter School Tuition and Enrollment (Hadley)
A20: 437 | B20: 276.66 | C20: C | D20: Final FY18 Charter School Tuition and Enrollment (Hadley)
A21: 438 | B21: 344.13 | C21: C | D21: Final FY18 Charter School Tuition and Enrollment (Hadley)
A22: 439 | B22: 446.22 | C22: C | D22: Final FY18 Charter School Tuition and Enrollment (Hadley)
A23: 440 | B23: 399.91 | C23: C | D23: Final FY18 Charter School Tuition and Enrollment (Hadley)
A24: 441 | B24: 1570.44 | C24: C | D24: Final FY18 Charter School Tuition and Enrollment (Hadley)
A25: 444 | B25: 551.68 | C25: C | D25: Final FY18 Charter School Tuition and Enrollment (Hadley)
A26: 445 | B26: 1424.91 | C26: C | D26: Final FY18 Charter School Tuition and Enrollment (Hadley)
A27: 446 | B27: 1462.21 | C27: C | D27: Final FY18 Charter School Tuition and Enrollment (Hadley)
A28: 447 | B28: 445.15 | C28: C | D28: Final FY18 Charter School Tuition and Enrollment (Hadley)
A29: 449 | B29: 697.23 | C29: C | D29: Final FY18 Charter School Tuition and Enrollment (Hadley)
A30: 450 | B30: 217.99 | C30: C | D30: Final FY18 Charter School Tuition and Enrollment (Hadley)
A31: 453 | B31: 702.48 | C31: C | D31: Final FY18 Charter School Tuition and Enrollment (Hadley)
A32: 454 | B32: 737.03 | C32: C | D32: Final FY18 Charter School Tuition and Enrollment (Hadley)
A33: 455 | B33: 301.87 | C33: C | D33: Final FY18 Charter School Tuition and Enrollment (Hadley)
A34: 456 | B34: 805.36 | C34: C | D34: Final FY18 Charter School Tuition and Enrollment (Hadley)
A35: 458 | B35: 96.1 | C35: C | D35: Final FY18 Charter School Tuition and Enrollment (Hadley)
A36: 463 | B36: 554.95 | C36: C | D36: Final FY18 Charter School Tuition and Enrollment (Hadley)
A37: 464 | B37: 229.43 | C37: C | D37: Final FY18 Charter School Tuition and Enrollment (Hadley)
A38: 466 | B38: 184.76 | C38: C | D38: Final FY18 Charter School Tuition and Enrollment (Hadley)
A39: 469 | B39: 1217.57 | C39: C | D39: Final FY18 Charter School Tuition and Enrollment (Hadley)
A40: 470 | B40: 1563.67 | C40: C | D40: Final FY18 Charter School Tuition and Enrollment (Hadley)
A41: 474 | B41: 350.89 | C41: C | D41: Final FY18 Charter School Tuition and Enrollment (Hadley)
A42: 478 | B42: 396.62 | C42: C | D42: Final FY18 Charter School Tuition and Enrollment (Hadley)
A43: 479 | B43: 401.35 | C43: C | D43: Final FY18 Charter School Tuition and Enrollment (Hadley)
A44: 481 | B44: 942.76 | C44: C | D44: Final FY18 Charter School Tuition and Enrollment (Hadley)
A45: 482 | B45: 288 | C45: C | D45: Final FY18 Charter School Tuition and Enrollment (Hadley)
A46: 483 | B46: 661.53 | C46: C | D46: Final FY18 Charter School Tuition and Enrollment (Hadley)
A47: 484 | B47: 1407.31 | C47: C | D47: Final FY18 Charter School Tuition and Enrollment (Hadley)
A48: 485 | B48: 474.22 | C48: C | D48: Final FY18 Charter School Tuition and Enrollment (Hadley)
A49: 486 | B49: 664.53 | C49: C | D49: Final FY18 Charter School Tuition and Enrollment (Hadley)
A50: 487 | B50: 1150.76 | C50: C | D50: Final FY18 Charter School Tuition and Enrollment (Hadley)
A51: 488 | B51: 923.71 | C51: C | D51: Final FY18 Charter School Tuition and Enrollment (Hadley)
A52: 489 | B52: 819.11 | C52: C | D52: Final FY18 Charter School Tuition and Enrollment (Hadley)
A53: 491 | B53: 1209.77 | C53: C | D53: Final FY18 Charter School Tuition and Enrollment (Hadley)
A54: 492 | B54: 356.6 | C54: C | D54: Final FY18 Charter School Tuition and Enrollment (Hadley)
A55: 493 | B55: 197 | C55: C | D55: Final FY18 Charter School Tuition and Enrollment (Hadley)
A56: 494 | B56: 669.34 | C56: C | D56: Final FY18 Charter School Tuition and Enrollment (Hadley)
A57: 496 | B57: 505.45 | C57: C | D57: Final FY18 Charter School Tuition and Enrollment (Hadley)
A58: 497 | B58: 492.66 | C58: C | D58: Final FY18 Charter School Tuition and Enrollment (Hadley)
A59: 498 | B59: 317.55 | C59: C | D59: Final FY18 Charter School Tuition and Enrollment (Hadley)
A60: 499 | B60: 489.8 | C60: C | D60: Final FY18 Charter School Tuition and Enrollment (Hadley)
A61: 3501 | B61: 289.18 | C61: C | D61: Final FY18 Charter School Tuition and Enrollment (Hadley)
A62: 3502 | B62: 440.7 | C62: C | D62: Final FY18 Charter School Tuition and Enrollment (Hadley)
A63: 3503 | B63: 755.86 | C63: C | D63: Final FY18 Charter School Tuition and Enrollment (Hadley)
A64: 3504 | B64: 265.03 | C64: C | D64: Final FY18 Charter School Tuition and Enrollment (Hadley)
A65: 3506 | B65: 353.02 | C65: C | D65: Final FY18 Charter School Tuition and Enrollment (Hadley)
A66: 3507 | B66: 228.68 | C66: C | D66: Final FY18 Charter School Tuition and Enrollment (Hadley)
A67: 3508 | B67: 190.54 | C67: C | D67: Final FY18 Charter School Tuition and Enrollment (Hadley)
A68: 3509 | B68: 397.13 | C68: C | D68: Final FY18 Charter School Tuition and Enrollment (Hadley)
A69: 3510 | B69: 210.37 | C69: C | D69: Final FY18 Charter School Tuition and Enrollment (Hadley)
A70: 3513 | B70: 417.54 | C70: C | D70: Final FY18 Charter School Tuition and Enrollment (Hadley)
A71: 3514 | B71: 87.56 | C71: C | D71: Final FY18 Charter School Tuition and Enrollment (Hadley)
A72: 3515 | B72: 159.86 | C72: C | D72: Final FY18 Charter School Tuition and Enrollment (Hadley)
A73: 407 | B73: 288.1381215 | C73: HM | D73: DaysofMemreport
A74: 411 | B74: 469.05 | C74: HM | D74: DaysofMemreport
A75: 424 | B75: 401.5642458 | C75: HM | D75: DaysofMemreport
A76: 427 | B76: 303.05 | C76: HM | D76: DaysofMemreport
A77: 452 | B77: 367.7833333 | C77: HM | D77: DaysofMemreport
A78: 477 | B78: 558.5 | C78: HM | D78: DaysofMemreport
A79: 480 | B79: 502.027027 | C79: HM | D79: DaysofMemreport
A80: 3505 | B80: 733.7201426 | C80: HM | D80: DaysofMemreport
A81: 3511 | B81: 286.0004457 | C81: HM | D81: DaysofMemreport
